{"text_format":"3","workbook":"xlsx","n_sheets":14,"sheets":["Hospital DR. ALEJANDRO CABRAL","Mes en Curso","Enero","Febrero","Marzo","Abril","Mayo","Junio","Julio","Agosto","Septiembre","Octubre","Noviembre","Diciembre"],"not_rendered":{"charts":10,"images":1,"defined_names":14},"read":"whole","date_system":"1900"}

{"sheet":"Hospital DR. ALEJANDRO CABRAL","index":0,"n_rows":103,"n_cols":15,"rows_kept":103,"merged":[[1,2,1,9],[1,11,2,12],[1,13,2,13],[3,2,3,9],[4,11,4,14],[5,11,5,14],[8,2,8,3],[20,0,21,14],[24,0,27,0],[24,1,25,1],[24,7,25,7],[24,8,25,8],[24,9,25,9],[24,10,25,10],[26,1,27,1],[26,7,27,7],[26,8,27,8],[26,9,27,9],[26,10,27,10],[28,0,31,0],[28,1,29,1],[28,7,29,7],[28,8,29,8],[28,9,29,9],[28,10,29,10],[30,1,31,1],[30,7,31,7],[30,8,31,8],[30,9,31,9],[30,10,31,10],[32,0,35,0],[32,1,33,1],[32,7,33,7],[32,8,33,8],[32,9,33,9],[32,10,33,10],[34,1,35,1],[34,7,35,7],[34,8,35,8],[34,9,35,9],[34,10,35,10],[36,0,41,0],[36,1,37,1],[36,7,37,7],[36,8,37,8],[36,9,37,9],[36,10,37,10],[38,1,39,1],[38,7,39,7],[38,8,39,8],[38,9,39,9],[38,10,39,10],[40,1,41,1],[40,9,41,9],[40,10,41,10],[43,0,44,14],[46,0,47,0],[46,1,47,1],[46,2,47,2],[46,3,47,3],[46,4,47,4],[46,5,47,5],[46,6,47,6],[46,8,47,8],[46,9,47,9],[46,10,47,10],[46,11,47,11],[46,12,47,12],[46,13,47,13],[46,14,47,14],[100,0,100,2],[102,0,102,3]]}
[]
[null,null,"CUMPLIMIENTO CARTA COMPROMISOS AL CIUDADANO CCC",{"$nulls":8},"Satisfacción General:",null,{"$f":"AVERAGE(K25:K42)","v":{"v":1,"d":"100.0%"}}]
[]
[null,null,"HOSPITAL REGIONAL DOCTOR ALEJANDRO CABRAL"]
[{"$nulls":11},"Link directo a la plataforma de Encuestas:"]
[{"$nulls":11},"https://encuesta.sns.gob.do/"]
{"$rows_empty":12}
[{"$f":"TODAY()","v":"2024-01-16"}]
[]
["Satifacción"]
[]
[]
["Servicio","Atributo","Muy Mala","Mala","Regular","Buena","Muy Buena","Total","Buena y Muy Buena","Compromiso","Satisfecho"]
["Consulta Externa","Amabilidad",{"$f":"+'Mes en Curso'!G3","v":0},{"$f":"+'Mes en Curso'!H3","v":0},{"$f":"+'Mes en Curso'!I3","v":0},{"$f":"+'Mes en Curso'!J3","v":85},{"$f":"+'Mes en Curso'!K3","v":5},{"$f":"C25+D25+F25+G25","v":90},{"$f":"F25+G25","v":90},{"v":0.9,"d":"90%"},{"$f":"IF(I25=0,0,I25/H25)","v":{"v":1,"d":"100.0%"}}]
[null,null,{"$f":"IF(C25=\"\",\"\",C25/$H$25)","v":{"v":0,"d":"0%"}},{"$f":"IF(D25=\"\",\"\",D25/$H$25)","v":{"v":0,"d":"0%"}},{"$f":"IF(E25=\"\",\"\",E25/$H$25)","v":{"v":0,"d":"0%"}},{"$f":"IF(F25=\"\",\"\",F25/$H$25)","v":{"v":0.9444444444444444,"d":"94%"}},{"$f":"IF(G25=\"\",\"\",G25/$H$25)","v":{"v":0.05555555555555555,"d":"6%"}}]
[null,"Profesionalidad",{"$f":"+'Mes en Curso'!G4","v":0},{"$f":"+'Mes en Curso'!H4","v":0},{"$f":"+'Mes en Curso'!I4","v":4},{"$f":"+'Mes en Curso'!J4","v":85},{"$f":"+'Mes en Curso'!K4","v":1},{"$f":"C27+D27+F27+G27","v":86},{"$f":"F27+G27","v":86},{"v":0.896,"d":"90%"},{"$f":"IF(I27=0,0,I27/H27)","v":{"v":1,"d":"100.0%"}}]
[null,null,{"$f":"IF(C27=\"\",\"\",C27/$H$27)","v":{"v":0,"d":"0%"}},{"$f":"IF(D27=\"\",\"\",D27/$H$27)","v":{"v":0,"d":"0%"}},{"$f":"IF(E27=\"\",\"\",E27/$H$27)","v":{"v":0.046511627906976744,"d":"5%"}},{"$f":"IF(F27=\"\",\"\",F27/$H$27)","v":{"v":0.9883720930232558,"d":"99%"}},{"$f":"IF(G27=\"\",\"\",G27/$H$27)","v":{"v":0.011627906976744186,"d":"1%"}}]
["Hospitalización","Amabilidad",{"$f":"+'Mes en Curso'!G5","v":0},{"$f":"+'Mes en Curso'!H5","v":0},{"$f":"+'Mes en Curso'!I5","v":1},{"$f":"+'Mes en Curso'!J5","v":38},{"$f":"+'Mes en Curso'!K5","v":3},{"$f":"C29+D29+F29+G29","v":41},{"$f":"F29+G29","v":41},{"v":0.896,"d":"90%"},{"$f":"IF(I29=0,0,I29/H29)","v":{"v":1,"d":"100.0%"}}]
[null,null,{"$f":"IF(C29=\"\",\"\",C29/$H$29)","v":{"v":0,"d":"0%"}},{"$f":"IF(D29=\"\",\"\",D29/$H$29)","v":{"v":0,"d":"0%"}},{"$f":"IF(E29=\"\",\"\",E29/$H$29)","v":{"v":0.024390243902439025,"d":"2%"}},{"$f":"IF(F29=\"\",\"\",F29/$H$29)","v":{"v":0.926829268292683,"d":"93%"}},{"$f":"IF(G29=\"\",\"\",G29/$H$29)","v":{"v":0.07317073170731707,"d":"7%"}}]
[null,"Profesionalidad",{"$f":"+'Mes en Curso'!G6","v":0},{"$f":"+'Mes en Curso'!H6","v":0},{"$f":"+'Mes en Curso'!I6","v":3},{"$f":"+'Mes en Curso'!J6","v":34},{"$f":"+'Mes en Curso'!K6","v":5},{"$f":"C31+D31+F31+G31","v":39},{"$f":"F31+G31","v":39},{"v":0.85,"d":"85%"},{"$f":"IF(I31=0,0,I31/H31)","v":{"v":1,"d":"100.0%"}}]
[null,null,{"$f":"IF(C31=\"\",\"\",C31/$H$31)","v":{"v":0,"d":"0%"}},{"$f":"IF(D31=\"\",\"\",D31/$H$31)","v":{"v":0,"d":"0%"}},{"v":0.07692307692307693,"d":"8%"},{"v":0.8717948717948718,"d":"87%"},{"v":0.1282051282051282,"d":"13%"}]
["Imágenes","Amabilidad",{"$f":"+'Mes en Curso'!G9","v":0},{"$f":"+'Mes en Curso'!H9","v":0},{"$f":"+'Mes en Curso'!I9","v":1},{"$f":"+'Mes en Curso'!J9","v":25},{"$f":"+'Mes en Curso'!K9","v":0},{"$f":"C33+D33+F33+G33","v":25},{"$f":"F33+G33","v":25},{"v":0.9,"d":"90%"},{"$f":"IF(I33=0,0,I33/H33)","v":{"v":1,"d":"100.0%"}}]
[null,null,{"$f":"IF(C33=\"\",\"\",C33/$H$37)","v":{"v":0,"d":"0%"}},{"$f":"IF(D33=\"\",\"\",D33/$H$37)","v":{"v":0,"d":"0%"}},{"$f":"IF(E33=\"\",\"\",E33/$H$37)","v":{"v":0.013157894736842105,"d":"1%"}},{"$f":"IF(F33=\"\",\"\",F33/$H$37)","v":{"v":0.32894736842105265,"d":"33%"}},{"$f":"IF(G33=\"\",\"\",G33/$H$37)","v":{"v":0,"d":"0%"}}]
[null,"Profesionalidad",{"$f":"+'Mes en Curso'!G10","v":0},{"$f":"+'Mes en Curso'!H10","v":0},{"$f":"+'Mes en Curso'!I10","v":2},{"$f":"+'Mes en Curso'!J10","v":23},{"$f":"+'Mes en Curso'!K10","v":1},{"$f":"C35+D35+F35+G35","v":24},{"$f":"F35+G35","v":24},{"v":0.9,"d":"90%"},{"$f":"IF(I35=0,0,I35/H35)","v":{"v":1,"d":"100.0%"}}]
[null,null,{"$f":"IF(C35=\"\",\"\",C35/$H$37)","v":{"v":0,"d":"0%"}},{"$f":"IF(D35=\"\",\"\",D35/$H$37)","v":{"v":0,"d":"0%"}},{"$f":"IF(E35=\"\",\"\",E35/$H$37)","v":{"v":0.02631578947368421,"d":"3%"}},{"$f":"IF(F35=\"\",\"\",F35/$H$37)","v":{"v":0.3026315789473684,"d":"30%"}},{"$f":"IF(G35=\"\",\"\",G35/$H$37)","v":{"v":0.013157894736842105,"d":"1%"}}]
["Laboratorio","Amabilidad",{"$f":"+'Mes en Curso'!G7","v":0},{"$f":"+'Mes en Curso'!H7","v":0},{"$f":"+'Mes en Curso'!I7","v":0},{"$f":"+'Mes en Curso'!J7","v":68},{"$f":"+'Mes en Curso'!K7","v":8},{"$f":"C37+D37+F37+G37","v":76},{"$f":"F37+G37","v":76},{"v":0.9,"d":"90%"},{"$f":"IF(I37=0,0,I37/H37)","v":{"v":1,"d":"100.0%"}}]
[null,null,{"$f":"IF(C37=\"\",\"\",C37/$H$37)","v":{"v":0,"d":"0%"}},{"$f":"IF(D37=\"\",\"\",D37/$H$37)","v":{"v":0,"d":"0%"}},{"$f":"IF(E37=\"\",\"\",E37/$H$37)","v":{"v":0,"d":"0%"}},{"$f":"IF(F37=\"\",\"\",F37/$H$37)","v":{"v":0.8947368421052632,"d":"89%"}},{"$f":"IF(G37=\"\",\"\",G37/$H$37)","v":{"v":0.10526315789473684,"d":"11%"}}]
[null,"Profesionalidad",{"$f":"+'Mes en Curso'!G8","v":0},{"$f":"+'Mes en Curso'!H8","v":0},{"$f":"+'Mes en Curso'!I8","v":0},{"$f":"+'Mes en Curso'!J8","v":68},{"$f":"+'Mes en Curso'!K8","v":8},{"$f":"C39+D39+F39+G39","v":76},{"$f":"F39+G39","v":76},{"v":0.9,"d":"90%"},{"$f":"IF(I39=0,0,I39/H39)","v":{"v":1,"d":"100.0%"}}]
[null,null,{"$f":"IF(C39=\"\",\"\",C39/$H$37)","v":{"v":0,"d":"0%"}},{"$f":"IF(D39=\"\",\"\",D39/$H$37)","v":{"v":0,"d":"0%"}},{"$f":"IF(E39=\"\",\"\",E39/$H$37)","v":{"v":0,"d":"0%"}},{"$f":"IF(F39=\"\",\"\",F39/$H$37)","v":{"v":0.8947368421052632,"d":"89%"}},{"$f":"IF(G39=\"\",\"\",G39/$H$37)","v":{"v":0.10526315789473684,"d":"11%"}}]
[null,"Disponibilidad",{"$nulls":3},604,9175,{"$f":"+SUM(C41:G41)","v":9779},{"$f":"F41+G41","v":9779},{"v":1,"d":"100%"},{"$f":"IF(I41=0,0,I41/H41)","v":{"v":1,"d":"100.0%"}}]
[null,null,"≥ 10 días","6 - 9 días","3 - 5 días","1 - 2 días (Meta)","1 día"]
[]
["CONSOLIDADO MENSUAL 2022"]
[]
[]
["Mes","Compromiso","Consulta Externa - Amabilidad","Consulta Externa - Profesionalidad","Compromiso","Hospitalización - Amabilidad","Hospitalización - Profesionalidad",null,"X","Compromiso","Laboratorio - Amabilidad","Laboratorio - Profesionalidad","Laboratorio - Disponibilidad","Imágenes - Amabilidad","Imágenes - Profesionalidad"]
[]
["Enero",{"$f":"+$J$25","v":{"v":0.9,"d":"90%"}},{"$f":"IF(Enero!N3=0%,\"\",Enero!N3)","v":""},{"$f":"IF(Enero!N4=0%,\"\",Enero!N4)","v":""},{"$f":"+$J$31","v":{"v":0.85,"d":"85%"}},{"$f":"IF(Enero!N5=0%,\"\",Enero!N5)","v":""},{"$f":"IF(Enero!N6=0%,\"\",Enero!N6)","v":""},null,{"$f":"IF(#REF!=0%,\"\",#REF!)","v":{"$error":"#REF!"}},{"$f":"+$J$41","v":{"v":1,"d":"100%"}},{"$f":"IF(Enero!N7=0%,\"\",Enero!N7)","v":""},{"$f":"IF(Enero!N8=0%,\"\",Enero!N8)","v":""},null,{"$f":"IF(Enero!N9=0%,\"\",Enero!N9)","v":""},{"$f":"IF(Enero!N10=0%,\"\",Enero!N10)","v":""}]
["Febrero",{"$f":"+$J$25","v":{"v":0.9,"d":"90%"}},{"$f":"IF(Febrero!N3=0%,\"\",Febrero!N3)","v":""},{"$f":"IF(Febrero!N4=0%,\"\",Febrero!N4)","v":""},{"$f":"+$J$31","v":{"v":0.85,"d":"85%"}},{"$f":"IF(Febrero!N5=0%,\"\",Febrero!N5)","v":""},{"$f":"IF(Febrero!N6=0%,\"\",Febrero!N6)","v":""},null,{"$f":"IF(#REF!=0%,\"\",#REF!)","v":{"$error":"#REF!"}},{"v":1,"d":"100%"},{"$f":"IF(Febrero!N7=0%,\"\",Febrero!N7)","v":""},{"$f":"IF(Febrero!N8=0%,\"\",Febrero!N8)","v":""},null,{"$f":"IF(Febrero!N9=0%,\"\",Febrero!N9)","v":""},{"$f":"IF(Febrero!N10=0%,\"\",Febrero!N10)","v":""}]
["Marzo",{"v":0.9,"d":"90%"},{"$f":"IF(Marzo!N3=0%,\"\",Marzo!N3)","v":""},{"$f":"IF(Marzo!N4=0%,\"\",Marzo!N4)","v":""},{"v":0.85,"d":"85%"},{"$f":"IF(Marzo!N5=0%,\"\",Marzo!N5)","v":""},{"$f":"IF(Marzo!N6=0%,\"\",Marzo!N6)","v":""},null,{"$f":"IF(#REF!=0%,\"\",#REF!)","v":{"$error":"#REF!"}},{"v":1,"d":"100%"},{"$f":"IF(Marzo!N7=0%,\"\",Marzo!N7)","v":""},{"$f":"IF(Marzo!N8=0%,\"\",Marzo!N8)","v":""},null,{"$f":"IF(Marzo!N9=0%,\"\",Marzo!N9)","v":""},{"$f":"IF(Marzo!N10=0%,\"\",Marzo!N10)","v":""}]
["Abril",{"v":0.9,"d":"90%"},{"$f":"IF(Abril!N3=0%,\"\",Abril!N3)","v":""},{"$f":"IF(Abril!N4=0%,\"\",Abril!N4)","v":""},{"v":0.85,"d":"85%"},{"$f":"IF(Abril!N5=0%,\"\",Abril!N5)","v":""},{"$f":"IF(Abril!N6=0%,\"\",Abril!N6)","v":""},null,{"$f":"IF(#REF!=0%,\"\",#REF!)","v":{"$error":"#REF!"}},{"v":1,"d":"100%"},{"$f":"IF(Abril!N7=0%,\"\",Abril!N7)","v":""},{"$f":"IF(Abril!N8=0%,\"\",Abril!N8)","v":""},null,{"$f":"IF(Abril!N9=0%,\"\",Abril!N9)","v":""},{"$f":"IF(Abril!N10=0%,\"\",Abril!N10)","v":""}]
["Mayo",{"v":0.9,"d":"90%"},{"$f":"IF(Mayo!N3=0%,\"\",Mayo!N3)","v":""},{"$f":"IF(Mayo!N4=0%,\"\",Mayo!N4)","v":""},{"v":0.85,"d":"85%"},{"$f":"IF(Mayo!N5=0%,\"\",Mayo!N5)","v":""},{"$f":"IF(Mayo!N6=0%,\"\",Mayo!N6)","v":""},null,{"$f":"IF(#REF!=0%,\"\",#REF!)","v":{"$error":"#REF!"}},{"v":1,"d":"100%"},{"$f":"IF(Mayo!N7=0%,\"\",Mayo!N7)","v":""},{"$f":"IF(Mayo!N8=0%,\"\",Mayo!N8)","v":""},null,{"$f":"IF(Mayo!N9=0%,\"\",Mayo!N9)","v":""},{"$f":"IF(Mayo!N10=0%,\"\",Mayo!N10)","v":""}]
["Junio",{"v":0.9,"d":"90%"},{"$f":"IF(Junio!N3=0%,\"\",Junio!N3)","v":""},{"$f":"IF(Junio!N4=0%,\"\",Junio!N4)","v":""},{"v":0.85,"d":"85%"},{"$f":"IF(Junio!N5=0%,\"\",Junio!N5)","v":""},{"$f":"IF(Junio!N6=0%,\"\",Junio!N6)","v":""},null,{"$f":"IF(#REF!=0%,\"\",#REF!)","v":{"$error":"#REF!"}},{"v":1,"d":"100%"},{"$f":"IF(Junio!N7=0%,\"\",Junio!N7)","v":""},{"$f":"IF(Junio!N8=0%,\"\",Junio!N8)","v":""},null,{"$f":"IF(Junio!N9=0%,\"\",Junio!N9)","v":""},{"$f":"IF(Junio!N10=0%,\"\",Junio!N10)","v":""}]
["Julio",{"v":0.9,"d":"90%"},{"$f":"IF(Julio!N3=0%,\"\",Julio!N3)","v":""},{"$f":"IF(Julio!N4=0%,\"\",Julio!N4)","v":""},{"v":0.85,"d":"85%"},{"$f":"IF(Julio!N5=0%,\"\",Julio!N5)","v":""},{"$f":"IF(Julio!N6=0%,\"\",Julio!N6)","v":""},null,{"$f":"IF(#REF!=0%,\"\",#REF!)","v":{"$error":"#REF!"}},{"v":1,"d":"100%"},{"$f":"IF(Julio!N7=0%,\"\",Julio!N7)","v":""},{"$f":"IF(Julio!N8=0%,\"\",Julio!N8)","v":""},null,{"$f":"IF(Julio!N9=0%,\"\",Julio!N9)","v":""},{"$f":"IF(Julio!N10=0%,\"\",Julio!N10)","v":""}]
["Agosto",{"v":0.9,"d":"90%"},{"$f":"IF(Agosto!N3=0%,\"\",Agosto!N3)","v":""},{"$f":"IF(Agosto!N4=0%,\"\",Agosto!N4)","v":""},{"v":0.85,"d":"85%"},{"$f":"IF(Agosto!N5=0%,\"\",Agosto!N5)","v":""},{"$f":"IF(Agosto!N6=0%,\"\",Agosto!N6)","v":""},null,{"$f":"IF(#REF!=0%,\"\",#REF!)","v":{"$error":"#REF!"}},{"v":1,"d":"100%"},{"$f":"IF(Agosto!N7=0%,\"\",Agosto!N7)","v":""},{"$f":"IF(Agosto!N8=0%,\"\",Agosto!N8)","v":""},null,{"$f":"IF(Agosto!N9=0%,\"\",Agosto!N7)","v":""},{"$f":"IF(Agosto!N10=0%,\"\",Agosto!N10)","v":""}]
["Septiembre",{"v":0.9,"d":"90%"},{"$f":"IF(Septiembre!N3=0%,\"\",Septiembre!N3)","v":""},{"$f":"IF(Septiembre!N4=0%,\"\",Septiembre!N4)","v":""},{"v":0.85,"d":"85%"},{"$f":"IF(Septiembre!N5=0%,\"\",Septiembre!N5)","v":""},{"$f":"IF(Septiembre!N6=0%,\"\",Septiembre!N6)","v":""},null,{"$f":"IF(#REF!=0%,\"\",#REF!)","v":{"$error":"#REF!"}},{"v":1,"d":"100%"},{"$f":"IF(Septiembre!N7=0%,\"\",Septiembre!N7)","v":""},{"$f":"IF(Septiembre!N8=0%,\"\",Septiembre!N8)","v":""},null,{"$f":"IF(Septiembre!N9=0%,\"\",Septiembre!N9)","v":""},{"$f":"IF(Septiembre!N10=0%,\"\",Septiembre!N10)","v":""}]
["Octubre",{"v":0.9,"d":"90%"},{"$f":"IF(Octubre!N3=0%,\"\",Octubre!N3)","v":""},{"$f":"IF(Octubre!N4=0%,\"\",Octubre!N4)","v":""},{"v":0.85,"d":"85%"},{"$f":"IF(Octubre!N5=0%,\"\",Octubre!N5)","v":""},{"$f":"IF(Octubre!N6=0%,\"\",Octubre!N6)","v":""},null,{"$f":"IF(#REF!=0%,\"\",#REF!)","v":{"$error":"#REF!"}},{"v":1,"d":"100%"},{"$f":"IF(Octubre!N7=0%,\"\",Octubre!N7)","v":""},{"$f":"IF(Octubre!N8=0%,\"\",Octubre!N8)","v":""},null,{"$f":"IF(Octubre!N9=0%,\"\",Octubre!N9)","v":""},{"$f":"IF(Octubre!N10=0%,\"\",Octubre!N10)","v":""}]
["Noviembre",{"v":0.9,"d":"90%"},{"$f":"IF(Noviembre!N3=0%,\"\",Noviembre!N3)","v":""},{"$f":"IF(Noviembre!N4=0%,\"\",Noviembre!N4)","v":""},{"v":0.85,"d":"85%"},{"$f":"IF(Noviembre!N5=0%,\"\",Noviembre!N5)","v":""},{"$f":"IF(Noviembre!N6=0%,\"\",Noviembre!N6)","v":""},null,{"$f":"IF(#REF!=0%,\"\",#REF!)","v":{"$error":"#REF!"}},{"v":1,"d":"100%"},{"$f":"IF(Noviembre!N7=0%,\"\",Noviembre!N7)","v":""},{"$f":"IF(Noviembre!N8=0%,\"\",Noviembre!N8)","v":""},null,{"$f":"IF(Noviembre!N9=0%,\"\",Noviembre!N9)","v":""},{"$f":"IF(Noviembre!N10=0%,\"\",Noviembre!N10)","v":""}]
["Diciembre",{"v":0.9,"d":"90%"},{"$f":"IF(Diciembre!N3=0%,\"\",Diciembre!N3)","v":{"v":1,"d":"100.0%"}},{"$f":"IF(Diciembre!N4=0%,\"\",Diciembre!N4)","v":{"v":0.9555555555555556,"d":"95.6%"}},{"v":0.85,"d":"85%"},{"$f":"IF(Diciembre!N5=0%,\"\",Diciembre!N5)","v":{"v":0.9761904761904762,"d":"97.6%"}},{"$f":"IF(Diciembre!N6=0%,\"\",Diciembre!N6)","v":{"v":0.9285714285714286,"d":"92.9%"}},null,{"$f":"IF(#REF!=0%,\"\",#REF!)","v":{"$error":"#REF!"}},{"v":1,"d":"100%"},{"$f":"IF(Diciembre!N7=0%,\"\",Diciembre!N7)","v":{"v":1,"d":"100.0%"}},{"$f":"IF(Diciembre!N8=0%,\"\",Diciembre!N8)","v":{"v":1,"d":"100.0%"}},{"v":1,"d":"100.0%"},{"$f":"IF(Diciembre!N9=0%,\"\",Diciembre!N9)","v":{"v":0.9615384615384616,"d":"96.2%"}},{"$f":"IF(Diciembre!N10=0%,\"\",Diciembre!N10)","v":{"v":0.9230769230769231,"d":"92.3%"}}]
{"$rows_empty":40}
["Requiere Acción Correctiva, Preventiva o de Mejora:                                                      ",{"$nulls":3},"SI:",null,"NO:",null,"NO:"]
[]
["Observaciones / Accion Correctiva, Preventiva o de Mejora:"]

{"sheet":"Mes en Curso","index":1,"n_rows":314,"n_cols":17,"rows_kept":314,"merged":[[2,0,3,0],[2,1,3,2],[2,4,2,5],[3,4,3,5],[4,0,5,0],[4,1,5,2],[4,4,4,5],[5,4,5,5],[6,0,7,0],[6,1,7,2],[6,4,6,5],[7,4,7,5],[8,0,9,0],[8,1,9,2],[8,4,8,5],[9,4,9,5]]}
[]
["Hospital:","HOSPITAL REGIONAL DR. ALEJANDRO CABRAL",{"$nulls":4},"Muy Mala","Mala","Regular","Buena","Muy Buena"]
["Servicio:","Consulta Externa",null,"Atributo:","Amabilidad",null,{"$f":"COUNTIFS($C$14:$C$20006,$B$2,$I$14:$I$20006,$B$3,$J$14:$J$20006,G2)","v":0},{"$f":"COUNTIFS($C$14:$C$20006,$B$2,$I$14:$I$20006,$B$3,$J$14:$J$20006,H2)","v":0},{"$f":"COUNTIFS($C$14:$C$20006,$B$2,$I$14:$I$20006,$B$3,$J$14:$J$20006,I2)","v":0},{"$f":"COUNTIFS($C$14:$C$20006,$B$2,$I$14:$I$20006,$B$3,$J$14:$J$20006,J2)","v":85},{"$f":"COUNTIFS($C$14:$C$20006,$B$2,$I$14:$I$20006,$B$3,$J$14:$J$20006,K2)","v":5}]
[{"$nulls":3},"Atributo:","Profesionalidad",null,{"$f":"COUNTIFS($C$14:$C$20006,$B$2,$I$14:$I$20006,$B$3,$K$14:$K$20006,G2)","v":0},{"$f":"COUNTIFS($C$14:$C$20006,$B$2,$I$14:$I$20006,$B$3,$K$14:$K$20006,H2)","v":0},{"$f":"COUNTIFS($C$14:$C$20006,$B$2,$I$14:$I$20006,$B$3,$K$14:$K$20006,I2)","v":4},{"$f":"COUNTIFS($C$14:$C$20006,$B$2,$I$14:$I$20006,$B$3,$K$14:$K$20006,J2)","v":85},{"$f":"COUNTIFS($C$14:$C$20006,$B$2,$I$14:$I$20006,$B$3,$K$14:$K$20006,K2)","v":1}]
["Servicio:","Hospitalización",null,"Atributo:","Amabilidad",null,{"$f":"COUNTIFS($C$14:$C$20006,$B$2,$I$14:$I$20006,$B$5,$J$14:$J$20006,G2)","v":0},{"$f":"COUNTIFS($C$14:$C$20006,$B$2,$I$14:$I$20006,$B$5,$J$14:$J$20006,H2)","v":0},{"$f":"COUNTIFS($C$14:$C$20006,$B$2,$I$14:$I$20006,$B$5,$J$14:$J$20006,I2)","v":1},{"$f":"COUNTIFS($C$14:$C$20006,$B$2,$I$14:$I$20006,$B$5,$J$14:$J$20006,J2)","v":38},{"$f":"COUNTIFS($C$14:$C$20006,$B$2,$I$14:$I$20006,$B$5,$J$14:$J$20006,K2)","v":3}]
[{"$nulls":3},"Atributo:","Profesionalidad",null,{"$f":"COUNTIFS($C$14:$C$20006,$B$2,$I$14:$I$20006,$B$5,$K$14:$K$20006,G2)","v":0},{"$f":"COUNTIFS($C$14:$C$20006,$B$2,$I$14:$I$20006,$B$5,$K$14:$K$20006,H2)","v":0},{"$f":"COUNTIFS($C$14:$C$20006,$B$2,$I$14:$I$20006,$B$5,$K$14:$K$20006,I2)","v":3},{"$f":"COUNTIFS($C$14:$C$20006,$B$2,$I$14:$I$20006,$B$5,$K$14:$K$20006,J2)","v":34},{"$f":"COUNTIFS($C$14:$C$20006,$B$2,$I$14:$I$20006,$B$5,$K$14:$K$20006,K2)","v":5}]
["Servicio:","Laboratorio",null,"Atributo:","Amabilidad",null,{"$f":"COUNTIFS($C$14:$C$20006,$B$2,$I$14:$I$20006,$B$7,$J$14:$J$20006,G2)","v":0},{"$f":"COUNTIFS($C$14:$C$20006,$B$2,$I$14:$I$20006,$B$7,$J$14:$J$20006,H2)","v":0},{"$f":"COUNTIFS($C$14:$C$20006,$B$2,$I$14:$I$20006,$B$7,$J$14:$J$20006,I2)","v":0},{"$f":"COUNTIFS($C$14:$C$20006,$B$2,$I$14:$I$20006,$B$7,$J$14:$J$20006,J2)","v":68},{"$f":"COUNTIFS($C$14:$C$20006,$B$2,$I$14:$I$20006,$B$7,$J$14:$J$20006,K2)","v":8}]
[{"$nulls":3},"Atributo:","Profesionalidad",null,{"$f":"COUNTIFS($C$14:$C$20006,$B$2,$I$14:$I$20006,$B$7,$K$14:$K$20006,G2)","v":0},{"$f":"COUNTIFS($C$14:$C$20006,$B$2,$I$14:$I$20006,$B$7,$K$14:$K$20006,H2)","v":0},{"$f":"COUNTIFS($C$14:$C$20006,$B$2,$I$14:$I$20006,$B$7,$K$14:$K$20006,I2)","v":0},{"$f":"COUNTIFS($C$14:$C$20006,$B$2,$I$14:$I$20006,$B$7,$K$14:$K$20006,J2)","v":68},{"$f":"COUNTIFS($C$14:$C$20006,$B$2,$I$14:$I$20006,$B$7,$K$14:$K$20006,K2)","v":8}]
["Servicio:","Imágenes",null,"Atributo:","Amabilidad",null,{"$f":"COUNTIFS($C$14:$C$20006,$B$2,$I$14:$I$20006,$B$9,$J$14:$J$20006,G2)","v":0},{"$f":"COUNTIFS($C$14:$C$20006,$B$2,$I$14:$I$20006,$B$9,$J$14:$J$20006,H2)","v":0},{"$f":"COUNTIFS($C$14:$C$20006,$B$2,$I$14:$I$20006,$B$9,$J$14:$J$20006,I2)","v":1},{"$f":"COUNTIFS($C$14:$C$20006,$B$2,$I$14:$I$20006,$B$9,$J$14:$J$20006,J2)","v":25},{"$f":"COUNTIFS($C$14:$C$20006,$B$2,$I$14:$I$20006,$B$9,$J$14:$J$20006,K2)","v":0}]
[{"$nulls":3},"Atributo:","Profesionalidad",null,{"$f":"COUNTIFS($C$14:$C$20006,$B$2,$I$14:$I$20006,$B$9,$K$14:$K$20006,G2)","v":0},{"$f":"COUNTIFS($C$14:$C$20006,$B$2,$I$14:$I$20006,$B$9,$K$14:$K$20006,H2)","v":0},{"$f":"COUNTIFS($C$14:$C$20006,$B$2,$I$14:$I$20006,$B$9,$K$14:$K$20006,I2)","v":2},{"$f":"COUNTIFS($C$14:$C$20006,$B$2,$I$14:$I$20006,$B$9,$K$14:$K$20006,J2)","v":23},{"$f":"COUNTIFS($C$14:$C$20006,$B$2,$I$14:$I$20006,$B$9,$K$14:$K$20006,K2)","v":1}]
[]
[{"$nulls":9},"Amabilidad","Profesionalidad"]
["Código","Formulario","Establecimiento","Fecha","Nivel de Atención","Municipio","Provincia","¿Recomendaría a otra persona atenderse en este establecimiento de salud?","Seleccione el servicio recibido","¿Cómo califica la amabilidad del personal que le atendió?","¿Cómo considera la profesionalidad del personal que le atendió?","¿Cómo considera la facilidad y rapidez del servicio brindado?","¿Cómo percibe el manejo de las informaciones del personal que le atendió?","¿Cómo considera el acceso a los servicios solicitados?","¿Cómo considera el tiempo para recibir los resultados de los estudios realizados?","¿Cómo considera la higiene y comodidad del espacio físico?","En general, ¿Cómo considera la calidad del servicio recibido?"]
[2197949,"Encuesta General de Satisfacción HOSPITALES","HOSPITAL REGIONAL DR. ALEJANDRO CABRAL","viernes, 1 de diciembre de 2023 4:15:39 p. m.","Tercer Nivel","San Juan","San Juan","Si","Consulta Externa","Buena","Buena","Buena","Buena","Buena","Buena","Buena","Muy Buena"]
[2197950,"Encuesta General de Satisfacción HOSPITALES","HOSPITAL REGIONAL DR. ALEJANDRO CABRAL","viernes, 1 de diciembre de 2023 4:15:59 p. m.","Tercer Nivel","San Juan","San Juan","Si","Consulta Externa","Buena","Buena","Buena","Buena","Buena","Buena","Buena","Buena"]
[2197951,"Encuesta General de Satisfacción HOSPITALES","HOSPITAL REGIONAL DR. ALEJANDRO CABRAL","viernes, 1 de diciembre de 2023 4:16:19 p. m.","Tercer Nivel","San Juan","San Juan","Si","Consulta Externa","Buena","Buena","Buena","Buena","Buena","Buena","Buena","Buena"]
[2197952,"Encuesta General de Satisfacción HOSPITALES","HOSPITAL REGIONAL DR. ALEJANDRO CABRAL","viernes, 1 de diciembre de 2023 4:16:38 p. m.","Tercer Nivel","San Juan","San Juan","Si","Consulta Externa","Buena","Buena","Buena","Buena","Buena","Buena","Buena","Buena"]
[2197953,"Encuesta General de Satisfacción HOSPITALES","HOSPITAL REGIONAL DR. ALEJANDRO CABRAL","viernes, 1 de diciembre de 2023 4:16:55 p. m.","Tercer Nivel","San Juan","San Juan","Si","Consulta Externa","Buena","Buena","Buena","Buena","Buena","Buena","Buena","Buena"]
[2197955,"Encuesta General de Satisfacción HOSPITALES","HOSPITAL REGIONAL DR. ALEJANDRO CABRAL","viernes, 1 de diciembre de 2023 4:17:12 p. m.","Tercer Nivel","San Juan","San Juan","Si","Consulta Externa","Buena","Buena","Buena","Buena","Buena","Buena","Buena","Buena"]
[2197956,"Encuesta General de Satisfacción HOSPITALES","HOSPITAL REGIONAL DR. ALEJANDRO CABRAL","viernes, 1 de diciembre de 2023 4:17:29 p. m.","Tercer Nivel","San Juan","San Juan","Si","Consulta Externa","Buena","Buena","Buena","Buena","Buena","Buena","Buena","Buena"]
[2197958,"Encuesta General de Satisfacción HOSPITALES","HOSPITAL REGIONAL DR. ALEJANDRO CABRAL","viernes, 1 de diciembre de 2023 4:17:46 p. m.","Tercer Nivel","San Juan","San Juan","Si","Consulta Externa","Buena","Buena","Buena","Buena","Buena","Buena","Buena","Buena"]
[2197959,"Encuesta General de Satisfacción HOSPITALES","HOSPITAL REGIONAL DR. ALEJANDRO CABRAL","viernes, 1 de diciembre de 2023 4:18:02 p. m.","Tercer Nivel","San Juan","San Juan","Si","Laboratorio","Buena","Buena","Buena","Buena","Buena","Buena","Buena","Buena"]
[2197961,"Encuesta General de Satisfacción HOSPITALES","HOSPITAL REGIONAL DR. ALEJANDRO CABRAL","viernes, 1 de diciembre de 2023 4:18:19 p. m.","Tercer Nivel","San Juan","San Juan","Si","Laboratorio","Buena","Buena","Buena","Buena","Buena","Buena","Muy Buena","Buena"]
[2197962,"Encuesta General de Satisfacción HOSPITALES","HOSPITAL REGIONAL DR. ALEJANDRO CABRAL","viernes, 1 de diciembre de 2023 4:18:47 p. m.","Tercer Nivel","San Juan","San Juan","Si","Laboratorio","Buena","Buena","Buena","Buena","Buena","Buena","Buena","Buena"]
[2197965,"Encuesta General de Satisfacción HOSPITALES","HOSPITAL REGIONAL DR. ALEJANDRO CABRAL","viernes, 1 de diciembre de 2023 4:19:07 p. m.","Tercer Nivel","San Juan","San Juan","Si","Laboratorio","Buena","Buena","Muy Buena","Muy Buena","Buena","Buena","Buena","Buena"]
[2197966,"Encuesta General de Satisfacción HOSPITALES","HOSPITAL REGIONAL DR. ALEJANDRO CABRAL","viernes, 1 de diciembre de 2023 4:21:14 p. m.","Tercer Nivel","San Juan","San Juan","Si","Consulta Externa","Buena","Buena","Buena","Buena","Buena","Buena","Buena","Buena"]
[2197968,"Encuesta General de Satisfacción HOSPITALES","HOSPITAL REGIONAL DR. ALEJANDRO CABRAL","viernes, 1 de diciembre de 2023 4:21:36 p. m.","Tercer Nivel","San Juan","San Juan","Si","Laboratorio","Muy Buena","Muy Buena","Muy Buena","Muy Buena","Muy Buena","Muy Buena","Muy Buena","Muy Buena"]
[2197969,"Encuesta General de Satisfacción HOSPITALES","HOSPITAL REGIONAL DR. ALEJANDRO CABRAL","viernes, 1 de diciembre de 2023 4:21:55 p. m.","Tercer Nivel","San Juan","San Juan","Si","Laboratorio","Buena","Buena","Buena","Buena","Buena","Buena","Buena","Buena"]
[2197970,"Encuesta General de Satisfacción HOSPITALES","HOSPITAL REGIONAL DR. ALEJANDRO CABRAL","viernes, 1 de diciembre de 2023 4:22:20 p. m.","Tercer Nivel","San Juan","San Juan","Si","Laboratorio","Buena","Buena","Buena","Buena","Buena","Buena","Buena","Buena"]
[2197971,"Encuesta General de Satisfacción HOSPITALES","HOSPITAL REGIONAL DR. ALEJANDRO CABRAL","viernes, 1 de diciembre de 2023 4:22:47 p. m.","Tercer Nivel","San Juan","San Juan","Si","Laboratorio","Buena","Buena","Buena","Buena","Regular","Muy Buena","Muy Buena","Muy Buena"]
[2197972,"Encuesta General de Satisfacción HOSPITALES","HOSPITAL REGIONAL DR. ALEJANDRO CABRAL","viernes, 1 de diciembre de 2023 4:23:05 p. m.","Tercer Nivel","San Juan","San Juan","Si","Imágenes","Buena","Buena","Buena","Buena","Buena","Buena","Buena","Buena"]
[2197974,"Encuesta General de Satisfacción HOSPITALES","HOSPITAL REGIONAL DR. ALEJANDRO CABRAL","viernes, 1 de diciembre de 2023 4:23:23 p. m.","Tercer Nivel","San Juan","San Juan","Si","Imágenes","Buena","Regular","Buena","Buena","Buena","Buena","Buena","Buena"]
[2197975,"Encuesta General de Satisfacción HOSPITALES","HOSPITAL REGIONAL DR. ALEJANDRO CABRAL","viernes, 1 de diciembre de 2023 4:23:38 p. m.","Tercer Nivel","San Juan","San Juan","Si","Hospitalización","Buena","Buena","Buena","Buena","Buena","Buena","Buena","Buena"]
[2197977,"Encuesta General de Satisfacción HOSPITALES","HOSPITAL REGIONAL DR. ALEJANDRO CABRAL","viernes, 1 de diciembre de 2023 4:24:09 p. m.","Tercer Nivel","San Juan","San Juan","Si","Hospitalización","Buena","Buena","Buena","Buena","Buena","Buena","Buena","Buena"]
[2197978,"Encuesta General de Satisfacción HOSPITALES","HOSPITAL REGIONAL DR. ALEJANDRO CABRAL","viernes, 1 de diciembre de 2023 4:24:36 p. m.","Tercer Nivel","San Juan","San Juan","Si","Emergencia","Buena","Buena","Buena","Buena","Buena","Buena","Buena","Buena"]
[2197979,"Encuesta General de Satisfacción HOSPITALES","HOSPITAL REGIONAL DR. ALEJANDRO CABRAL","viernes, 1 de diciembre de 2023 4:25:09 p. m.","Tercer Nivel","San Juan","San Juan","Si","Emergencia","Buena","Buena","Buena","Buena","Buena","Buena","Buena","Buena"]
[2197981,"Encuesta General de Satisfacción HOSPITALES","HOSPITAL REGIONAL DR. ALEJANDRO CABRAL","viernes, 1 de diciembre de 2023 4:25:32 p. m.","Tercer Nivel","San Juan","San Juan","Si","Emergencia","Buena","Buena","Buena","Buena","Buena","Buena","Buena","Buena"]
[2198615,"Encuesta General de Satisfacción HOSPITALES","HOSPITAL REGIONAL DR. ALEJANDRO CABRAL","sábado, 2 de diciembre de 2023 10:20:48 p. m.","Tercer Nivel","San Juan","San Juan","Si","Emergencia","Buena","Buena","Regular","Buena","Regular","Buena","Buena","Buena"]
[2198616,"Encuesta General de Satisfacción HOSPITALES","HOSPITAL REGIONAL DR. ALEJANDRO CABRAL","sábado, 2 de diciembre de 2023 10:21:21 p. m.","Tercer Nivel","San Juan","San Juan","Si","Emergencia","Buena","Buena","Buena","Buena","Regular","Buena","Buena","Buena"]
[2198617,"Encuesta General de Satisfacción HOSPITALES","HOSPITAL REGIONAL DR. ALEJANDRO CABRAL","sábado, 2 de diciembre de 2023 10:22:07 p. m.","Tercer Nivel","San Juan","San Juan","Si","Emergencia","Buena","Muy Buena","Muy Buena","Buena","Buena","Buena","Regular","Buena"]
[2198618,"Encuesta General de Satisfacción HOSPITALES","HOSPITAL REGIONAL DR. ALEJANDRO CABRAL","sábado, 2 de diciembre de 2023 10:22:47 p. m.","Tercer Nivel","San Juan","San Juan","Si","Hospitalización","Muy Buena","Buena","Buena","Buena","Regular","Buena","Buena","Buena"]
[2198619,"Encuesta General de Satisfacción HOSPITALES","HOSPITAL REGIONAL DR. ALEJANDRO CABRAL","sábado, 2 de diciembre de 2023 10:23:45 p. m.","Tercer Nivel","San Juan","San Juan","Si","Hospitalización","Buena","Buena","Buena","Muy Buena","Regular","Buena","Regular","Buena"]
[2198703,"Encuesta General de Satisfacción HOSPITALES","HOSPITAL REGIONAL DR. ALEJANDRO CABRAL","domingo, 3 de diciembre de 2023 10:36:50 p. m.","Tercer Nivel","San Juan","San Juan","Si","Emergencia","Buena","Buena","Muy Buena","Buena","Buena","Muy Buena","Buena","Buena"]
[2198705,"Encuesta General de Satisfacción HOSPITALES","HOSPITAL REGIONAL DR. ALEJANDRO CABRAL","domingo, 3 de diciembre de 2023 10:38:07 p. m.","Tercer Nivel","San Juan","San Juan","Si","Emergencia","Buena","Buena","Buena","Muy Buena","Buena","Muy Buena","Buena","Buena"]
[2198709,"Encuesta General de Satisfacción HOSPITALES","HOSPITAL REGIONAL DR. ALEJANDRO CABRAL","domingo, 3 de diciembre de 2023 11:05:18 p. m.","Tercer Nivel","San Juan","San Juan","Si","Emergencia","Buena","Regular","Buena","Muy Buena","Buena","Muy Buena","Buena","Buena"]
[2198710,"Encuesta General de Satisfacción HOSPITALES","HOSPITAL REGIONAL DR. ALEJANDRO CABRAL","domingo, 3 de diciembre de 2023 11:05:42 p. m.","Tercer Nivel","San Juan","San Juan","Si","Hospitalización","Buena","Buena","Muy Buena","Buena","Buena","Buena","Regular","Buena"]
[2200442,"Encuesta General de Satisfacción HOSPITALES","HOSPITAL REGIONAL DR. ALEJANDRO CABRAL","lunes, 4 de diciembre de 2023 4:49:21 p. m.","Tercer Nivel","San Juan","San Juan","Si","Consulta Externa","Buena","Buena","Buena","Buena","Buena","Buena","Buena","Buena"]
[2200444,"Encuesta General de Satisfacción HOSPITALES","HOSPITAL REGIONAL DR. ALEJANDRO CABRAL","lunes, 4 de diciembre de 2023 4:49:40 p. m.","Tercer Nivel","San Juan","San Juan","Si","Consulta Externa","Buena","Buena","Buena","Buena","Buena","Buena","Buena","Buena"]
[2200446,"Encuesta General de Satisfacción HOSPITALES","HOSPITAL REGIONAL DR. ALEJANDRO CABRAL","lunes, 4 de diciembre de 2023 4:50:00 p. m.","Tercer Nivel","San Juan","San Juan","Si","Consulta Externa","Buena","Buena","Buena","Buena","Buena","Buena","Buena","Buena"]
[2200449,"Encuesta General de Satisfacción HOSPITALES","HOSPITAL REGIONAL DR. ALEJANDRO CABRAL","lunes, 4 de diciembre de 2023 4:50:21 p. m.","Tercer Nivel","San Juan","San Juan","Si","Consulta Externa","Buena","Buena","Buena","Buena","Buena","Buena","Buena","Buena"]
[2200450,"Encuesta General de Satisfacción HOSPITALES","HOSPITAL REGIONAL DR. ALEJANDRO CABRAL","lunes, 4 de diciembre de 2023 4:50:40 p. m.","Tercer Nivel","San Juan","San Juan","Si","Consulta Externa","Buena","Buena","Buena","Buena","Buena","Buena","Buena","Buena"]
[2200451,"Encuesta General de Satisfacción HOSPITALES","HOSPITAL REGIONAL DR. ALEJANDRO CABRAL","lunes, 4 de diciembre de 2023 4:50:56 p. m.","Tercer Nivel","San Juan","San Juan","Si","Consulta Externa","Buena","Buena","Buena","Buena","Buena","Buena","Buena","Buena"]
[2200453,"Encuesta General de Satisfacción HOSPITALES","HOSPITAL REGIONAL DR. ALEJANDRO CABRAL","lunes, 4 de diciembre de 2023 4:51:15 p. m.","Tercer Nivel","San Juan","San Juan","Si","Consulta Externa","Buena","Buena","Muy Buena","Buena","Buena","Buena","Buena","Buena"]
[2200455,"Encuesta General de Satisfacción HOSPITALES","HOSPITAL REGIONAL DR. ALEJANDRO CABRAL","lunes, 4 de diciembre de 2023 4:51:32 p. m.","Tercer Nivel","San Juan","San Juan","Si","Consulta Externa","Buena","Buena","Buena","Muy Buena","Buena","Buena","Buena","Buena"]
[2200456,"Encuesta General de Satisfacción HOSPITALES","HOSPITAL REGIONAL DR. ALEJANDRO CABRAL","lunes, 4 de diciembre de 2023 4:51:45 p. m.","Tercer Nivel","San Juan","San Juan","Si","Laboratorio","Buena","Buena","Buena","Buena","Buena","Buena","Buena","Buena"]
[2200457,"Encuesta General de Satisfacción HOSPITALES","HOSPITAL REGIONAL DR. ALEJANDRO CABRAL","lunes, 4 de diciembre de 2023 4:52:02 p. m.","Tercer Nivel","San Juan","San Juan","Si","Laboratorio","Buena","Buena","Buena","Buena","Buena","Buena","Buena","Buena"]
[2200459,"Encuesta General de Satisfacción HOSPITALES","HOSPITAL REGIONAL DR. ALEJANDRO CABRAL","lunes, 4 de diciembre de 2023 4:52:18 p. m.","Tercer Nivel","San Juan","San Juan","Si","Laboratorio","Buena","Buena","Buena","Buena","Buena","Buena","Buena","Buena"]
[2200462,"Encuesta General de Satisfacción HOSPITALES","HOSPITAL REGIONAL DR. ALEJANDRO CABRAL","lunes, 4 de diciembre de 2023 4:52:57 p. m.","Tercer Nivel","San Juan","San Juan","Si","Laboratorio","Muy Buena","Buena","Buena","Buena","Buena","Buena","Buena","Buena"]
[2200464,"Encuesta General de Satisfacción HOSPITALES","HOSPITAL REGIONAL DR. ALEJANDRO CABRAL","lunes, 4 de diciembre de 2023 4:53:13 p. m.","Tercer Nivel","San Juan","San Juan","Si","Laboratorio","Buena","Buena","Buena","Buena","Buena","Buena","Buena","Buena"]
[2200466,"Encuesta General de Satisfacción HOSPITALES","HOSPITAL REGIONAL DR. ALEJANDRO CABRAL","lunes, 4 de diciembre de 2023 4:53:33 p. m.","Tercer Nivel","San Juan","San Juan","Si","Laboratorio","Buena","Buena","Buena","Buena","Buena","Muy Buena","Buena","Buena"]
[2200468,"Encuesta General de Satisfacción HOSPITALES","HOSPITAL REGIONAL DR. ALEJANDRO CABRAL","lunes, 4 de diciembre de 2023 4:53:47 p. m.","Tercer Nivel","San Juan","San Juan","Si","Laboratorio","Buena","Buena","Buena","Buena","Buena","Buena","Buena","Buena"]
[2200470,"Encuesta General de Satisfacción HOSPITALES","HOSPITAL REGIONAL DR. ALEJANDRO CABRAL","lunes, 4 de diciembre de 2023 4:54:12 p. m.","Tercer Nivel","San Juan","San Juan","Si","Laboratorio","Buena","Buena","Buena","Buena","Buena","Buena","Buena","Buena"]
[2200474,"Encuesta General de Satisfacción HOSPITALES","HOSPITAL REGIONAL DR. ALEJANDRO CABRAL","lunes, 4 de diciembre de 2023 4:54:55 p. m.","Tercer Nivel","San Juan","San Juan","Si","Imágenes","Buena","Buena","Buena","Buena","Buena","Buena","Buena","Buena"]
[2200477,"Encuesta General de Satisfacción HOSPITALES","HOSPITAL REGIONAL DR. ALEJANDRO CABRAL","lunes, 4 de diciembre de 2023 4:55:09 p. m.","Tercer Nivel","San Juan","San Juan","Si","Imágenes","Buena","Buena","Buena","Buena","Buena","Buena","Buena","Buena"]
[2200481,"Encuesta General de Satisfacción HOSPITALES","HOSPITAL REGIONAL DR. ALEJANDRO CABRAL","lunes, 4 de diciembre de 2023 4:55:37 p. m.","Tercer Nivel","San Juan","San Juan","Si","Imágenes","Buena","Buena","Buena","Buena","Buena","Buena","Buena","Buena"]
[2200490,"Encuesta General de Satisfacción HOSPITALES","HOSPITAL REGIONAL DR. ALEJANDRO CABRAL","lunes, 4 de diciembre de 2023 4:57:02 p. m.","Tercer Nivel","San Juan","San Juan","Si","Hospitalización","Buena","Buena","Buena","Buena","Buena","Buena","Buena","Buena"]
[2200493,"Encuesta General de Satisfacción HOSPITALES","HOSPITAL REGIONAL DR. ALEJANDRO CABRAL","lunes, 4 de diciembre de 2023 4:57:19 p. m.","Tercer Nivel","San Juan","San Juan","Si","Hospitalización","Buena","Buena","Buena","Buena","Buena","Buena","Buena","Buena"]
[2200495,"Encuesta General de Satisfacción HOSPITALES","HOSPITAL REGIONAL DR. ALEJANDRO CABRAL","lunes, 4 de diciembre de 2023 4:57:35 p. m.","Tercer Nivel","San Juan","San Juan","Si","Emergencia","Buena","Buena","Buena","Buena","Buena","Buena","Buena","Buena"]
[2200496,"Encuesta General de Satisfacción HOSPITALES","HOSPITAL REGIONAL DR. ALEJANDRO CABRAL","lunes, 4 de diciembre de 2023 4:57:53 p. m.","Tercer Nivel","San Juan","San Juan","Si","Emergencia","Buena","Buena","Buena","Buena","Buena","Buena","Buena","Buena"]
[2200499,"Encuesta General de Satisfacción HOSPITALES","HOSPITAL REGIONAL DR. ALEJANDRO CABRAL","lunes, 4 de diciembre de 2023 4:58:08 p. m.","Tercer Nivel","San Juan","San Juan","Si","Emergencia","Buena","Buena","Buena","Buena","Buena","Buena","Buena","Buena"]
[2200502,"Encuesta General de Satisfacción HOSPITALES","HOSPITAL REGIONAL DR. ALEJANDRO CABRAL","lunes, 4 de diciembre de 2023 4:58:27 p. m.","Tercer Nivel","San Juan","San Juan","Si","Emergencia","Buena","Buena","Buena","Buena","Buena","Buena","Buena","Buena"]
[2203076,"Encuesta General de Satisfacción HOSPITALES","HOSPITAL REGIONAL DR. ALEJANDRO CABRAL","martes, 5 de diciembre de 2023 5:31:01 p. m.","Tercer Nivel","San Juan","San Juan","Si","Consulta Externa","Buena","Buena","Buena","Buena","Buena","Buena","Buena","Buena"]
[2203077,"Encuesta General de Satisfacción HOSPITALES","HOSPITAL REGIONAL DR. ALEJANDRO CABRAL","martes, 5 de diciembre de 2023 5:31:26 p. m.","Tercer Nivel","San Juan","San Juan","Si","Consulta Externa","Buena","Buena","Buena","Buena","Buena","Buena","Buena","Buena"]
[2203080,"Encuesta General de Satisfacción HOSPITALES","HOSPITAL REGIONAL DR. ALEJANDRO CABRAL","martes, 5 de diciembre de 2023 5:31:43 p. m.","Tercer Nivel","San Juan","San Juan","Si","Consulta Externa","Buena","Buena","Buena","Buena","Buena","Buena","Buena","Buena"]
[2203082,"Encuesta General de Satisfacción HOSPITALES","HOSPITAL REGIONAL DR. ALEJANDRO CABRAL","martes, 5 de diciembre de 2023 5:31:59 p. m.","Tercer Nivel","San Juan","San Juan","Si","Consulta Externa","Buena","Buena","Buena","Muy Buena","Muy Buena","Muy Buena","Buena","Buena"]
[2203084,"Encuesta General de Satisfacción HOSPITALES","HOSPITAL REGIONAL DR. ALEJANDRO CABRAL","martes, 5 de diciembre de 2023 5:32:13 p. m.","Tercer Nivel","San Juan","San Juan","Si","Consulta Externa","Buena","Buena","Buena","Buena","Buena","Buena","Buena","Buena"]
[2203087,"Encuesta General de Satisfacción HOSPITALES","HOSPITAL REGIONAL DR. ALEJANDRO CABRAL","martes, 5 de diciembre de 2023 5:32:29 p. m.","Tercer Nivel","San Juan","San Juan","Si","Consulta Externa","Buena","Buena","Buena","Buena","Muy Buena","Muy Buena","Muy Buena","Muy Buena"]
[2203090,"Encuesta General de Satisfacción HOSPITALES","HOSPITAL REGIONAL DR. ALEJANDRO CABRAL","martes, 5 de diciembre de 2023 5:32:45 p. m.","Tercer Nivel","San Juan","San Juan","Si","Consulta Externa","Muy Buena","Buena","Buena","Buena","Buena","Buena","Regular","Buena"]
[2203094,"Encuesta General de Satisfacción HOSPITALES","HOSPITAL REGIONAL DR. ALEJANDRO CABRAL","martes, 5 de diciembre de 2023 5:33:05 p. m.","Tercer Nivel","San Juan","San Juan","Si","Consulta Externa","Buena","Buena","Buena","Buena","Buena","Buena","Buena","Buena"]
[2203099,"Encuesta General de Satisfacción HOSPITALES","HOSPITAL REGIONAL DR. ALEJANDRO CABRAL","martes, 5 de diciembre de 2023 5:33:35 p. m.","Tercer Nivel","San Juan","San Juan","Si","Consulta Externa","Buena","Buena","Buena","Buena","Buena","Buena","Buena","Buena"]
[2203108,"Encuesta General de Satisfacción HOSPITALES","HOSPITAL REGIONAL DR. ALEJANDRO CABRAL","martes, 5 de diciembre de 2023 5:35:14 p. m.","Tercer Nivel","San Juan","San Juan","Si","Laboratorio","Buena","Buena","Buena","Buena","Buena","Buena","Buena","Buena"]
[2203112,"Encuesta General de Satisfacción HOSPITALES","HOSPITAL REGIONAL DR. ALEJANDRO CABRAL","martes, 5 de diciembre de 2023 5:35:49 p. m.","Tercer Nivel","San Juan","San Juan","Si","Laboratorio","Buena","Buena","Buena","Buena","Buena","Buena","Buena","Buena"]
[2203114,"Encuesta General de Satisfacción HOSPITALES","HOSPITAL REGIONAL DR. ALEJANDRO CABRAL","martes, 5 de diciembre de 2023 5:36:04 p. m.","Tercer Nivel","San Juan","San Juan","Si","Laboratorio","Muy Buena","Muy Buena","Buena","Buena","Buena","Buena","Buena","Buena"]
[2203117,"Encuesta General de Satisfacción HOSPITALES","HOSPITAL REGIONAL DR. ALEJANDRO CABRAL","martes, 5 de diciembre de 2023 5:36:20 p. m.","Tercer Nivel","San Juan","San Juan","Si","Laboratorio","Buena","Buena","Buena","Buena","Buena","Buena","Buena","Buena"]
[2203118,"Encuesta General de Satisfacción HOSPITALES","HOSPITAL REGIONAL DR. ALEJANDRO CABRAL","martes, 5 de diciembre de 2023 5:36:35 p. m.","Tercer Nivel","San Juan","San Juan","Si","Laboratorio","Buena","Buena","Buena","Buena","Buena","Buena","Buena","Buena"]
[2203127,"Encuesta General de Satisfacción HOSPITALES","HOSPITAL REGIONAL DR. ALEJANDRO CABRAL","martes, 5 de diciembre de 2023 5:38:37 p. m.","Tercer Nivel","San Juan","San Juan","Si","Laboratorio","Buena","Buena","Buena","Buena","Buena","Buena","Buena","Buena"]
[2203134,"Encuesta General de Satisfacción HOSPITALES","HOSPITAL REGIONAL DR. ALEJANDRO CABRAL","martes, 5 de diciembre de 2023 5:39:30 p. m.","Tercer Nivel","San Juan","San Juan","Si","Imágenes","Buena","Buena","Buena","Buena","Buena","Buena","Buena","Buena"]
[2203138,"Encuesta General de Satisfacción HOSPITALES","HOSPITAL REGIONAL DR. ALEJANDRO CABRAL","martes, 5 de diciembre de 2023 5:39:49 p. m.","Tercer Nivel","San Juan","San Juan","Si","Imágenes","Buena","Buena","Buena","Buena","Buena","Buena","Buena","Buena"]
[2203141,"Encuesta General de Satisfacción HOSPITALES","HOSPITAL REGIONAL DR. ALEJANDRO CABRAL","martes, 5 de diciembre de 2023 5:40:06 p. m.","Tercer Nivel","San Juan","San Juan","Si","Hospitalización","Buena","Buena","Buena","Muy Buena","Buena","Buena","Buena","Buena"]
[2203145,"Encuesta General de Satisfacción HOSPITALES","HOSPITAL REGIONAL DR. ALEJANDRO CABRAL","martes, 5 de diciembre de 2023 5:40:19 p. m.","Tercer Nivel","San Juan","San Juan","Si","Hospitalización","Buena","Buena","Buena","Buena","Buena","Buena","Buena","Buena"]
[2203148,"Encuesta General de Satisfacción HOSPITALES","HOSPITAL REGIONAL DR. ALEJANDRO CABRAL","martes, 5 de diciembre de 2023 5:40:34 p. m.","Tercer Nivel","San Juan","San Juan","Si","Emergencia","Buena","Buena","Buena","Buena","Buena","Buena","Buena","Buena"]
[2203151,"Encuesta General de Satisfacción HOSPITALES","HOSPITAL REGIONAL DR. ALEJANDRO CABRAL","martes, 5 de diciembre de 2023 5:40:50 p. m.","Tercer Nivel","San Juan","San Juan","Si","Emergencia","Buena","Buena","Buena","Buena","Buena","Buena","Buena","Buena"]
[2203153,"Encuesta General de Satisfacción HOSPITALES","HOSPITAL REGIONAL DR. ALEJANDRO CABRAL","martes, 5 de diciembre de 2023 5:41:09 p. m.","Tercer Nivel","San Juan","San Juan","Si","Emergencia","Buena","Buena","Buena","Buena","Buena","Regular","Buena","Buena"]
[2208081,"Encuesta General de Satisfacción HOSPITALES","HOSPITAL REGIONAL DR. ALEJANDRO CABRAL","jueves, 7 de diciembre de 2023 4:36:50 p. m.","Tercer Nivel","San Juan","San Juan","Si","Consulta Externa","Buena","Buena","Buena","Buena","Buena","Buena","Buena","Buena"]
[2208134,"Encuesta General de Satisfacción HOSPITALES","HOSPITAL REGIONAL DR. ALEJANDRO CABRAL","jueves, 7 de diciembre de 2023 5:01:00 p. m.","Tercer Nivel","San Juan","San Juan","Si","Consulta Externa","Buena","Buena","Buena","Buena","Buena","Buena","Buena","Buena"]
[2208137,"Encuesta General de Satisfacción HOSPITALES","HOSPITAL REGIONAL DR. ALEJANDRO CABRAL","jueves, 7 de diciembre de 2023 5:01:14 p. m.","Tercer Nivel","San Juan","San Juan","Si","Consulta Externa","Buena","Buena","Buena","Buena","Muy Buena","Muy Buena","Buena","Buena"]
[2208140,"Encuesta General de Satisfacción HOSPITALES","HOSPITAL REGIONAL DR. ALEJANDRO CABRAL","jueves, 7 de diciembre de 2023 5:01:31 p. m.","Tercer Nivel","San Juan","San Juan","Si","Consulta Externa","Buena","Buena","Buena","Buena","Buena","Buena","Buena","Buena"]
[2208143,"Encuesta General de Satisfacción HOSPITALES","HOSPITAL REGIONAL DR. ALEJANDRO CABRAL","jueves, 7 de diciembre de 2023 5:01:55 p. m.","Tercer Nivel","San Juan","San Juan","Si","Consulta Externa","Buena","Buena","Buena","Buena","Buena","Buena","Buena","Muy Buena"]
[2208147,"Encuesta General de Satisfacción HOSPITALES","HOSPITAL REGIONAL DR. ALEJANDRO CABRAL","jueves, 7 de diciembre de 2023 5:02:13 p. m.","Tercer Nivel","San Juan","San Juan","Si","Consulta Externa","Buena","Buena","Buena","Buena","Buena","Buena","Buena","Buena"]
[2208150,"Encuesta General de Satisfacción HOSPITALES","HOSPITAL REGIONAL DR. ALEJANDRO CABRAL","jueves, 7 de diciembre de 2023 5:02:38 p. m.","Tercer Nivel","San Juan","San Juan","Si","Consulta Externa","Buena","Buena","Buena","Buena","Buena","Buena","Buena","Buena"]
[2208152,"Encuesta General de Satisfacción HOSPITALES","HOSPITAL REGIONAL DR. ALEJANDRO CABRAL","jueves, 7 de diciembre de 2023 5:02:54 p. m.","Tercer Nivel","San Juan","San Juan","Si","Laboratorio","Buena","Buena","Muy Buena","Muy Buena","Muy Buena","Muy Buena","Buena","Buena"]
[2208154,"Encuesta General de Satisfacción HOSPITALES","HOSPITAL REGIONAL DR. ALEJANDRO CABRAL","jueves, 7 de diciembre de 2023 5:03:13 p. m.","Tercer Nivel","San Juan","San Juan","Si","Laboratorio","Buena","Buena","Buena","Buena","Buena","Buena","Buena","Buena"]
[2208157,"Encuesta General de Satisfacción HOSPITALES","HOSPITAL REGIONAL DR. ALEJANDRO CABRAL","jueves, 7 de diciembre de 2023 5:03:33 p. m.","Tercer Nivel","San Juan","San Juan","Si","Laboratorio","Buena","Buena","Buena","Buena","Buena","Buena","Buena","Buena"]
[2208160,"Encuesta General de Satisfacción HOSPITALES","HOSPITAL REGIONAL DR. ALEJANDRO CABRAL","jueves, 7 de diciembre de 2023 5:03:56 p. m.","Tercer Nivel","San Juan","San Juan","Si","Laboratorio","Buena","Buena","Buena","Buena","Buena","Buena","Buena","Buena"]
[2208163,"Encuesta General de Satisfacción HOSPITALES","HOSPITAL REGIONAL DR. ALEJANDRO CABRAL","jueves, 7 de diciembre de 2023 5:04:20 p. m.","Tercer Nivel","San Juan","San Juan","Si","Laboratorio","Buena","Buena","Buena","Buena","Buena","Buena","Buena","Buena"]
[2208167,"Encuesta General de Satisfacción HOSPITALES","HOSPITAL REGIONAL DR. ALEJANDRO CABRAL","jueves, 7 de diciembre de 2023 5:04:39 p. m.","Tercer Nivel","San Juan","San Juan","Si","Laboratorio","Buena","Muy Buena","Buena","Buena","Buena","Buena","Buena","Buena"]
[2208168,"Encuesta General de Satisfacción HOSPITALES","HOSPITAL REGIONAL DR. ALEJANDRO CABRAL","jueves, 7 de diciembre de 2023 5:05:02 p. m.","Tercer Nivel","San Juan","San Juan","Si","Laboratorio","Buena","Buena","Buena","Buena","Buena","Buena","Buena","Buena"]
[2208169,"Encuesta General de Satisfacción HOSPITALES","HOSPITAL REGIONAL DR. ALEJANDRO CABRAL","jueves, 7 de diciembre de 2023 5:05:28 p. m.","Tercer Nivel","San Juan","San Juan","Si","Laboratorio","Buena","Buena","Buena","Buena","Buena","Buena","Buena","Buena"]
[2208171,"Encuesta General de Satisfacción HOSPITALES","HOSPITAL REGIONAL DR. ALEJANDRO CABRAL","jueves, 7 de diciembre de 2023 5:05:46 p. m.","Tercer Nivel","San Juan","San Juan","Si","Imágenes","Buena","Buena","Buena","Buena","Buena","Buena","Buena","Buena"]
[2208173,"Encuesta General de Satisfacción HOSPITALES","HOSPITAL REGIONAL DR. ALEJANDRO CABRAL","jueves, 7 de diciembre de 2023 5:06:09 p. m.","Tercer Nivel","San Juan","San Juan","Si","Imágenes","Buena","Buena","Buena","Buena","Buena","Buena","Buena","Buena"]
[2208175,"Encuesta General de Satisfacción HOSPITALES","HOSPITAL REGIONAL DR. ALEJANDRO CABRAL","jueves, 7 de diciembre de 2023 5:06:29 p. m.","Tercer Nivel","San Juan","San Juan","Si","Hospitalización","Buena","Buena","Buena","Buena","Buena","Buena","Buena","Buena"]
[2208176,"Encuesta General de Satisfacción HOSPITALES","HOSPITAL REGIONAL DR. ALEJANDRO CABRAL","jueves, 7 de diciembre de 2023 5:06:50 p. m.","Tercer Nivel","San Juan","San Juan","Si","Hospitalización","Buena","Buena","Buena","Buena","Buena","Buena","Buena","Buena"]
[2208178,"Encuesta General de Satisfacción HOSPITALES","HOSPITAL REGIONAL DR. ALEJANDRO CABRAL","jueves, 7 de diciembre de 2023 5:07:19 p. m.","Tercer Nivel","San Juan","San Juan","Si","Emergencia","Buena","Buena","Buena","Buena","Buena","Buena","Muy Buena","Buena"]
[2208180,"Encuesta General de Satisfacción HOSPITALES","HOSPITAL REGIONAL DR. ALEJANDRO CABRAL","jueves, 7 de diciembre de 2023 5:07:33 p. m.","Tercer Nivel","San Juan","San Juan","Si","Emergencia","Buena","Buena","Buena","Buena","Buena","Buena","Buena","Buena"]
[2208182,"Encuesta General de Satisfacción HOSPITALES","HOSPITAL REGIONAL DR. ALEJANDRO CABRAL","jueves, 7 de diciembre de 2023 5:07:48 p. m.","Tercer Nivel","San Juan","San Juan","Si","Emergencia","Buena","Buena","Buena","Buena","Buena","Buena","Buena","Buena"]
[2210116,"Encuesta General de Satisfacción HOSPITALES","HOSPITAL REGIONAL DR. ALEJANDRO CABRAL","viernes, 8 de diciembre de 2023 5:42:39 p. m.","Tercer Nivel","San Juan","San Juan","Si","Consulta Externa","Buena","Buena","Buena","Buena","Buena","Buena","Buena","Buena"]
[2210118,"Encuesta General de Satisfacción HOSPITALES","HOSPITAL REGIONAL DR. ALEJANDRO CABRAL","viernes, 8 de diciembre de 2023 5:42:53 p. m.","Tercer Nivel","San Juan","San Juan","Si","Consulta Externa","Buena","Buena","Buena","Buena","Buena","Buena","Buena","Buena"]
[2210119,"Encuesta General de Satisfacción HOSPITALES","HOSPITAL REGIONAL DR. ALEJANDRO CABRAL","viernes, 8 de diciembre de 2023 5:43:10 p. m.","Tercer Nivel","San Juan","San Juan","Si","Consulta Externa","Buena","Buena","Buena","Buena","Buena","Buena","Buena","Buena"]
[2210120,"Encuesta General de Satisfacción HOSPITALES","HOSPITAL REGIONAL DR. ALEJANDRO CABRAL","viernes, 8 de diciembre de 2023 5:43:36 p. m.","Tercer Nivel","San Juan","San Juan","Si","Consulta Externa","Muy Buena","Regular","Buena","Buena","Buena","Buena","Buena","Buena"]
[2210122,"Encuesta General de Satisfacción HOSPITALES","HOSPITAL REGIONAL DR. ALEJANDRO CABRAL","viernes, 8 de diciembre de 2023 5:43:50 p. m.","Tercer Nivel","San Juan","San Juan","Si","Consulta Externa","Buena","Buena","Buena","Buena","Buena","Buena","Buena","Buena"]
[2210124,"Encuesta General de Satisfacción HOSPITALES","HOSPITAL REGIONAL DR. ALEJANDRO CABRAL","viernes, 8 de diciembre de 2023 5:44:02 p. m.","Tercer Nivel","San Juan","San Juan","Si","Consulta Externa","Buena","Buena","Buena","Buena","Buena","Buena","Buena","Buena"]
[2210127,"Encuesta General de Satisfacción HOSPITALES","HOSPITAL REGIONAL DR. ALEJANDRO CABRAL","viernes, 8 de diciembre de 2023 5:44:14 p. m.","Tercer Nivel","San Juan","San Juan","Si","Consulta Externa","Buena","Buena","Muy Buena","Buena","Buena","Buena","Buena","Buena"]
[2210128,"Encuesta General de Satisfacción HOSPITALES","HOSPITAL REGIONAL DR. ALEJANDRO CABRAL","viernes, 8 de diciembre de 2023 5:44:29 p. m.","Tercer Nivel","San Juan","San Juan","Si","Laboratorio","Buena","Buena","Buena","Buena","Buena","Buena","Buena","Buena"]
[2210131,"Encuesta General de Satisfacción HOSPITALES","HOSPITAL REGIONAL DR. ALEJANDRO CABRAL","viernes, 8 de diciembre de 2023 5:44:42 p. m.","Tercer Nivel","San Juan","San Juan","Si","Hospitalización","Buena","Buena","Buena","Buena","Buena","Buena","Buena","Buena"]
[2210132,"Encuesta General de Satisfacción HOSPITALES","HOSPITAL REGIONAL DR. ALEJANDRO CABRAL","viernes, 8 de diciembre de 2023 5:45:01 p. m.","Tercer Nivel","San Juan","San Juan","Si","Hospitalización","Buena","Regular","Regular","Regular","Regular","Regular","Regular","Regular"]
[2210135,"Encuesta General de Satisfacción HOSPITALES","HOSPITAL REGIONAL DR. ALEJANDRO CABRAL","viernes, 8 de diciembre de 2023 5:45:20 p. m.","Tercer Nivel","San Juan","San Juan","Si","Laboratorio","Buena","Buena","Buena","Buena","Buena","Buena","Buena","Buena"]
[2210138,"Encuesta General de Satisfacción HOSPITALES","HOSPITAL REGIONAL DR. ALEJANDRO CABRAL","viernes, 8 de diciembre de 2023 5:45:35 p. m.","Tercer Nivel","San Juan","San Juan","Si","Laboratorio","Buena","Buena","Buena","Buena","Buena","Buena","Buena","Buena"]
[2210140,"Encuesta General de Satisfacción HOSPITALES","HOSPITAL REGIONAL DR. ALEJANDRO CABRAL","viernes, 8 de diciembre de 2023 5:45:50 p. m.","Tercer Nivel","San Juan","San Juan","Si","Laboratorio","Buena","Buena","Buena","Buena","Buena","Buena","Buena","Buena"]
[2210142,"Encuesta General de Satisfacción HOSPITALES","HOSPITAL REGIONAL DR. ALEJANDRO CABRAL","viernes, 8 de diciembre de 2023 5:46:05 p. m.","Tercer Nivel","San Juan","San Juan","Si","Laboratorio","Buena","Buena","Buena","Buena","Buena","Buena","Buena","Muy Buena"]
[2210145,"Encuesta General de Satisfacción HOSPITALES","HOSPITAL REGIONAL DR. ALEJANDRO CABRAL","viernes, 8 de diciembre de 2023 5:46:19 p. m.","Tercer Nivel","San Juan","San Juan","Si","Laboratorio","Buena","Buena","Buena","Buena","Buena","Buena","Buena","Buena"]
[2210147,"Encuesta General de Satisfacción HOSPITALES","HOSPITAL REGIONAL DR. ALEJANDRO CABRAL","viernes, 8 de diciembre de 2023 5:46:39 p. m.","Tercer Nivel","San Juan","San Juan","Si","Imágenes","Buena","Regular","Buena","Buena","Buena","Buena","Buena","Buena"]
[2210149,"Encuesta General de Satisfacción HOSPITALES","HOSPITAL REGIONAL DR. ALEJANDRO CABRAL","viernes, 8 de diciembre de 2023 5:46:56 p. m.","Tercer Nivel","San Juan","San Juan","Si","Imágenes","Buena","Buena","Buena","Buena","Buena","Buena","Buena","Buena"]
[2210152,"Encuesta General de Satisfacción HOSPITALES","HOSPITAL REGIONAL DR. ALEJANDRO CABRAL","viernes, 8 de diciembre de 2023 5:47:10 p. m.","Tercer Nivel","San Juan","San Juan","Si","Emergencia","Buena","Buena","Buena","Buena","Buena","Buena","Buena","Buena"]
[2210153,"Encuesta General de Satisfacción HOSPITALES","HOSPITAL REGIONAL DR. ALEJANDRO CABRAL","viernes, 8 de diciembre de 2023 5:47:24 p. m.","Tercer Nivel","San Juan","San Juan","Si","Emergencia","Buena","Regular","Regular","Regular","Regular","Regular","Regular","Regular"]
[2210156,"Encuesta General de Satisfacción HOSPITALES","HOSPITAL REGIONAL DR. ALEJANDRO CABRAL","viernes, 8 de diciembre de 2023 5:47:47 p. m.","Tercer Nivel","San Juan","San Juan","Si","Emergencia","Buena","Buena","Buena","Buena","Buena","Buena","Buena","Buena"]
[2210582,"Encuesta General de Satisfacción HOSPITALES","HOSPITAL REGIONAL DR. ALEJANDRO CABRAL","sábado, 9 de diciembre de 2023 10:27:06 p. m.","Tercer Nivel","San Juan","San Juan","Si","Emergencia","Buena","Buena","Buena","Buena","Buena","Buena","Buena","Buena"]
[2210583,"Encuesta General de Satisfacción HOSPITALES","HOSPITAL REGIONAL DR. ALEJANDRO CABRAL","sábado, 9 de diciembre de 2023 10:27:31 p. m.","Tercer Nivel","San Juan","San Juan","Si","Emergencia","Regular","Buena","Buena","Buena","Buena","Buena","Buena","Buena"]
[2210584,"Encuesta General de Satisfacción HOSPITALES","HOSPITAL REGIONAL DR. ALEJANDRO CABRAL","sábado, 9 de diciembre de 2023 10:28:04 p. m.","Tercer Nivel","San Juan","San Juan","Si","Emergencia","Muy Buena","Buena","Muy Buena","Muy Buena","Buena","Buena","Regular","Muy Buena"]
[2210585,"Encuesta General de Satisfacción HOSPITALES","HOSPITAL REGIONAL DR. ALEJANDRO CABRAL","sábado, 9 de diciembre de 2023 10:28:28 p. m.","Tercer Nivel","San Juan","San Juan","Si","Hospitalización","Buena","Buena","Muy Buena","Muy Buena","Muy Buena","Buena","Buena","Buena"]
[2210586,"Encuesta General de Satisfacción HOSPITALES","HOSPITAL REGIONAL DR. ALEJANDRO CABRAL","sábado, 9 de diciembre de 2023 10:28:56 p. m.","Tercer Nivel","San Juan","San Juan","Si","Hospitalización","Buena","Buena","Buena","Buena","Regular","Buena","Buena","Muy Buena"]
[2210620,"Encuesta General de Satisfacción HOSPITALES","HOSPITAL REGIONAL DR. ALEJANDRO CABRAL","domingo, 10 de diciembre de 2023 10:46:44 p. m.","Tercer Nivel","San Juan","San Juan","Si","Emergencia","Buena","Buena","Buena","Buena","Regular","Buena","Buena","Buena"]
[2210621,"Encuesta General de Satisfacción HOSPITALES","HOSPITAL REGIONAL DR. ALEJANDRO CABRAL","domingo, 10 de diciembre de 2023 10:47:15 p. m.","Tercer Nivel","San Juan","San Juan","Si","Emergencia","Buena","Muy Buena","Muy Buena","Buena","Regular","Regular","Buena","Buena"]
[2210622,"Encuesta General de Satisfacción HOSPITALES","HOSPITAL REGIONAL DR. ALEJANDRO CABRAL","domingo, 10 de diciembre de 2023 10:47:39 p. m.","Tercer Nivel","San Juan","San Juan","Si","Emergencia","Buena","Buena","Buena","Buena","Regular","Regular","Regular","Regular"]
[2210623,"Encuesta General de Satisfacción HOSPITALES","HOSPITAL REGIONAL DR. ALEJANDRO CABRAL","domingo, 10 de diciembre de 2023 10:47:59 p. m.","Tercer Nivel","San Juan","San Juan","Si","Hospitalización","Buena","Buena","Buena","Buena","Buena","Buena","Buena","Buena"]
[2210624,"Encuesta General de Satisfacción HOSPITALES","HOSPITAL REGIONAL DR. ALEJANDRO CABRAL","domingo, 10 de diciembre de 2023 10:48:24 p. m.","Tercer Nivel","San Juan","San Juan","Si","Hospitalización","Buena","Buena","Muy Buena","Buena","Buena","Buena","Buena","Buena"]
[2214967,"Encuesta General de Satisfacción HOSPITALES","HOSPITAL REGIONAL DR. ALEJANDRO CABRAL","martes, 12 de diciembre de 2023 5:06:32 p. m.","Tercer Nivel","San Juan","San Juan","Si","Consulta Externa","Buena","Buena","Buena","Buena","Buena","Buena","Buena","Buena"]
[2214968,"Encuesta General de Satisfacción HOSPITALES","HOSPITAL REGIONAL DR. ALEJANDRO CABRAL","martes, 12 de diciembre de 2023 5:06:46 p. m.","Tercer Nivel","San Juan","San Juan","Si","Consulta Externa","Buena","Buena","Buena","Buena","Buena","Buena","Buena","Buena"]
[2214969,"Encuesta General de Satisfacción HOSPITALES","HOSPITAL REGIONAL DR. ALEJANDRO CABRAL","martes, 12 de diciembre de 2023 5:07:02 p. m.","Tercer Nivel","San Juan","San Juan","Si","Consulta Externa","Buena","Buena","Buena","Buena","Buena","Buena","Buena","Buena"]
[2214970,"Encuesta General de Satisfacción HOSPITALES","HOSPITAL REGIONAL DR. ALEJANDRO CABRAL","martes, 12 de diciembre de 2023 5:07:27 p. m.","Tercer Nivel","San Juan","San Juan","Si","Consulta Externa","Buena","Buena","Buena","Buena","Buena","Buena","Buena","Buena"]
[2214971,"Encuesta General de Satisfacción HOSPITALES","HOSPITAL REGIONAL DR. ALEJANDRO CABRAL","martes, 12 de diciembre de 2023 5:07:45 p. m.","Tercer Nivel","San Juan","San Juan","Si","Consulta Externa","Buena","Buena","Buena","Buena","Buena","Buena","Buena","Buena"]
[2214972,"Encuesta General de Satisfacción HOSPITALES","HOSPITAL REGIONAL DR. ALEJANDRO CABRAL","martes, 12 de diciembre de 2023 5:08:02 p. m.","Tercer Nivel","San Juan","San Juan","Si","Consulta Externa","Buena","Buena","Buena","Buena","Buena","Buena","Buena","Buena"]
[2214973,"Encuesta General de Satisfacción HOSPITALES","HOSPITAL REGIONAL DR. ALEJANDRO CABRAL","martes, 12 de diciembre de 2023 5:08:20 p. m.","Tercer Nivel","San Juan","San Juan","Si","Consulta Externa","Muy Buena","Buena","Buena","Buena","Buena","Buena","Buena","Buena"]
[2214974,"Encuesta General de Satisfacción HOSPITALES","HOSPITAL REGIONAL DR. ALEJANDRO CABRAL","martes, 12 de diciembre de 2023 5:08:45 p. m.","Tercer Nivel","San Juan","San Juan","Si","Laboratorio","Buena","Buena","Buena","Buena","Buena","Buena","Buena","Buena"]
[2214975,"Encuesta General de Satisfacción HOSPITALES","HOSPITAL REGIONAL DR. ALEJANDRO CABRAL","martes, 12 de diciembre de 2023 5:08:59 p. m.","Tercer Nivel","San Juan","San Juan","Si","Laboratorio","Buena","Muy Buena","Buena","Buena","Buena","Buena","Buena","Buena"]
[2214976,"Encuesta General de Satisfacción HOSPITALES","HOSPITAL REGIONAL DR. ALEJANDRO CABRAL","martes, 12 de diciembre de 2023 5:09:12 p. m.","Tercer Nivel","San Juan","San Juan","Si","Laboratorio","Buena","Muy Buena","Buena","Buena","Buena","Buena","Buena","Buena"]
[2214977,"Encuesta General de Satisfacción HOSPITALES","HOSPITAL REGIONAL DR. ALEJANDRO CABRAL","martes, 12 de diciembre de 2023 5:09:27 p. m.","Tercer Nivel","San Juan","San Juan","Si","Laboratorio","Buena","Buena","Buena","Buena","Buena","Muy Buena","Buena","Buena"]
[2214978,"Encuesta General de Satisfacción HOSPITALES","HOSPITAL REGIONAL DR. ALEJANDRO CABRAL","martes, 12 de diciembre de 2023 5:09:42 p. m.","Tercer Nivel","San Juan","San Juan","Si","Laboratorio","Buena","Buena","Buena","Buena","Buena","Buena","Buena","Buena"]
[2214979,"Encuesta General de Satisfacción HOSPITALES","HOSPITAL REGIONAL DR. ALEJANDRO CABRAL","martes, 12 de diciembre de 2023 5:09:57 p. m.","Tercer Nivel","San Juan","San Juan","Si","Laboratorio","Buena","Buena","Buena","Buena","Buena","Buena","Buena","Buena"]
[2214980,"Encuesta General de Satisfacción HOSPITALES","HOSPITAL REGIONAL DR. ALEJANDRO CABRAL","martes, 12 de diciembre de 2023 5:10:11 p. m.","Tercer Nivel","San Juan","San Juan","Si","Imágenes","Buena","Buena","Buena","Buena","Buena","Buena","Buena","Buena"]
[2214981,"Encuesta General de Satisfacción HOSPITALES","HOSPITAL REGIONAL DR. ALEJANDRO CABRAL","martes, 12 de diciembre de 2023 5:10:27 p. m.","Tercer Nivel","San Juan","San Juan","Si","Imágenes","Buena","Buena","Buena","Buena","Buena","Buena","Buena","Buena"]
[2214982,"Encuesta General de Satisfacción HOSPITALES","HOSPITAL REGIONAL DR. ALEJANDRO CABRAL","martes, 12 de diciembre de 2023 5:10:46 p. m.","Tercer Nivel","San Juan","San Juan","Si","Imágenes","Buena","Buena","Buena","Buena","Buena","Buena","Buena","Buena"]
[2214983,"Encuesta General de Satisfacción HOSPITALES","HOSPITAL REGIONAL DR. ALEJANDRO CABRAL","martes, 12 de diciembre de 2023 5:11:00 p. m.","Tercer Nivel","San Juan","San Juan","Si","Hospitalización","Buena","Buena","Buena","Buena","Buena","Buena","Buena","Buena"]
[2214984,"Encuesta General de Satisfacción HOSPITALES","HOSPITAL REGIONAL DR. ALEJANDRO CABRAL","martes, 12 de diciembre de 2023 5:11:14 p. m.","Tercer Nivel","San Juan","San Juan","Si","Hospitalización","Buena","Buena","Buena","Buena","Regular","Regular","Regular","Regular"]
[2214986,"Encuesta General de Satisfacción HOSPITALES","HOSPITAL REGIONAL DR. ALEJANDRO CABRAL","martes, 12 de diciembre de 2023 5:11:39 p. m.","Tercer Nivel","San Juan","San Juan","Si","Emergencia","Buena","Buena","Buena","Buena","Buena","Buena","Buena","Buena"]
[2214987,"Encuesta General de Satisfacción HOSPITALES","HOSPITAL REGIONAL DR. ALEJANDRO CABRAL","martes, 12 de diciembre de 2023 5:11:57 p. m.","Tercer Nivel","San Juan","San Juan","Si","Emergencia","Buena","Buena","Buena","Regular","Regular","Regular","Regular","Regular"]
[2214988,"Encuesta General de Satisfacción HOSPITALES","HOSPITAL REGIONAL DR. ALEJANDRO CABRAL","martes, 12 de diciembre de 2023 5:12:14 p. m.","Tercer Nivel","San Juan","San Juan","Si","Emergencia","Buena","Buena","Buena","Buena","Buena","Buena","Buena","Buena"]
[2223399,"Encuesta General de Satisfacción HOSPITALES","HOSPITAL REGIONAL DR. ALEJANDRO CABRAL","sábado, 16 de diciembre de 2023 4:11:41 p. m.","Tercer Nivel","San Juan","San Juan","Si","Emergencia","Muy Buena","Muy Buena","Buena","Muy Buena","Buena","Buena","Buena","Buena"]
[2223400,"Encuesta General de Satisfacción HOSPITALES","HOSPITAL REGIONAL DR. ALEJANDRO CABRAL","sábado, 16 de diciembre de 2023 4:12:26 p. m.","Tercer Nivel","San Juan","San Juan","Si","Emergencia","Buena","Buena","Buena","Buena","Buena","Buena","Buena","Buena"]
[2223401,"Encuesta General de Satisfacción HOSPITALES","HOSPITAL REGIONAL DR. ALEJANDRO CABRAL","sábado, 16 de diciembre de 2023 4:15:07 p. m.","Tercer Nivel","San Juan","San Juan","Si","Emergencia","Buena","Buena","Muy Buena","Buena","Buena","Buena","Buena","Buena"]
[2223402,"Encuesta General de Satisfacción HOSPITALES","HOSPITAL REGIONAL DR. ALEJANDRO CABRAL","sábado, 16 de diciembre de 2023 4:19:36 p. m.","Tercer Nivel","San Juan","San Juan","Si","Hospitalización","Buena","Muy Buena","Muy Buena","Buena","Regular","Buena","Buena","Buena"]
[2223403,"Encuesta General de Satisfacción HOSPITALES","HOSPITAL REGIONAL DR. ALEJANDRO CABRAL","sábado, 16 de diciembre de 2023 4:20:10 p. m.","Tercer Nivel","San Juan","San Juan","Si","Hospitalización","Buena","Buena","Buena","Buena","Buena","Muy Buena","Buena","Buena"]
[2223494,"Encuesta General de Satisfacción HOSPITALES","HOSPITAL REGIONAL DR. ALEJANDRO CABRAL","domingo, 17 de diciembre de 2023 8:58:13 p. m.","Tercer Nivel","San Juan","San Juan","Si","Emergencia","Buena","Buena","Buena","Buena","Buena","Muy Buena","Regular","Buena"]
[2223495,"Encuesta General de Satisfacción HOSPITALES","HOSPITAL REGIONAL DR. ALEJANDRO CABRAL","domingo, 17 de diciembre de 2023 8:58:52 p. m.","Tercer Nivel","San Juan","San Juan","Si","Emergencia","Buena","Muy Buena","Muy Buena","Buena","Buena","Muy Buena","Buena","Muy Buena"]
[2223496,"Encuesta General de Satisfacción HOSPITALES","HOSPITAL REGIONAL DR. ALEJANDRO CABRAL","domingo, 17 de diciembre de 2023 8:59:30 p. m.","Tercer Nivel","San Juan","San Juan","Si","Emergencia","Buena","Buena","Buena","Buena","Buena","Buena","Buena","Buena"]
[2223497,"Encuesta General de Satisfacción HOSPITALES","HOSPITAL REGIONAL DR. ALEJANDRO CABRAL","domingo, 17 de diciembre de 2023 9:01:10 p. m.","Tercer Nivel","San Juan","San Juan","Si","Hospitalización","Buena","Buena","Buena","Buena","Regular","Buena","Buena","Buena"]
[2223498,"Encuesta General de Satisfacción HOSPITALES","HOSPITAL REGIONAL DR. ALEJANDRO CABRAL","domingo, 17 de diciembre de 2023 9:01:52 p. m.","Tercer Nivel","San Juan","San Juan","Si","Hospitalización","Buena","Buena","Muy Buena","Muy Buena","Buena","Buena","Buena","Buena"]
[2227311,"Encuesta General de Satisfacción HOSPITALES","HOSPITAL REGIONAL DR. ALEJANDRO CABRAL","martes, 19 de diciembre de 2023 4:40:28 p. m.","Tercer Nivel","San Juan","San Juan","Si","Consulta Externa","Buena","Buena","Buena","Buena","Buena","Buena","Buena","Buena"]
[2227313,"Encuesta General de Satisfacción HOSPITALES","HOSPITAL REGIONAL DR. ALEJANDRO CABRAL","martes, 19 de diciembre de 2023 4:40:42 p. m.","Tercer Nivel","San Juan","San Juan","Si","Consulta Externa","Buena","Regular","Buena","Buena","Buena","Buena","Buena","Buena"]
[2227314,"Encuesta General de Satisfacción HOSPITALES","HOSPITAL REGIONAL DR. ALEJANDRO CABRAL","martes, 19 de diciembre de 2023 4:40:59 p. m.","Tercer Nivel","San Juan","San Juan","Si","Consulta Externa","Buena","Buena","Buena","Buena","Buena","Buena","Buena","Buena"]
[2227317,"Encuesta General de Satisfacción HOSPITALES","HOSPITAL REGIONAL DR. ALEJANDRO CABRAL","martes, 19 de diciembre de 2023 4:41:15 p. m.","Tercer Nivel","San Juan","San Juan","Si","Consulta Externa","Buena","Buena","Buena","Buena","Buena","Buena","Buena","Buena"]
[2227322,"Encuesta General de Satisfacción HOSPITALES","HOSPITAL REGIONAL DR. ALEJANDRO CABRAL","martes, 19 de diciembre de 2023 4:42:00 p. m.","Tercer Nivel","San Juan","San Juan","Si","Consulta Externa","Buena","Buena","Buena","Buena","Buena","Buena","Buena","Buena"]
[2227324,"Encuesta General de Satisfacción HOSPITALES","HOSPITAL REGIONAL DR. ALEJANDRO CABRAL","martes, 19 de diciembre de 2023 4:42:25 p. m.","Tercer Nivel","San Juan","San Juan","Si","Consulta Externa","Buena","Buena","Buena","Buena","Buena","Buena","Muy Buena","Buena"]
[2227326,"Encuesta General de Satisfacción HOSPITALES","HOSPITAL REGIONAL DR. ALEJANDRO CABRAL","martes, 19 de diciembre de 2023 4:42:51 p. m.","Tercer Nivel","San Juan","San Juan","Si","Consulta Externa","Buena","Buena","Buena","Buena","Buena","Buena","Muy Buena","Buena"]
[2227328,"Encuesta General de Satisfacción HOSPITALES","HOSPITAL REGIONAL DR. ALEJANDRO CABRAL","martes, 19 de diciembre de 2023 4:43:06 p. m.","Tercer Nivel","San Juan","San Juan","Si","Consulta Externa","Buena","Buena","Buena","Buena","Buena","Buena","Buena","Buena"]
[2227329,"Encuesta General de Satisfacción HOSPITALES","HOSPITAL REGIONAL DR. ALEJANDRO CABRAL","martes, 19 de diciembre de 2023 4:43:26 p. m.","Tercer Nivel","San Juan","San Juan","Si","Consulta Externa","Muy Buena","Buena","Buena","Buena","Buena","Muy Buena","Buena","Buena"]
[2227330,"Encuesta General de Satisfacción HOSPITALES","HOSPITAL REGIONAL DR. ALEJANDRO CABRAL","martes, 19 de diciembre de 2023 4:43:43 p. m.","Tercer Nivel","San Juan","San Juan","Si","Consulta Externa","Buena","Buena","Buena","Buena","Buena","Buena","Buena","Buena"]
[2227332,"Encuesta General de Satisfacción HOSPITALES","HOSPITAL REGIONAL DR. ALEJANDRO CABRAL","martes, 19 de diciembre de 2023 4:44:05 p. m.","Tercer Nivel","San Juan","San Juan","Si","Consulta Externa","Buena","Regular","Buena","Buena","Buena","Buena","Buena","Buena"]
[2227333,"Encuesta General de Satisfacción HOSPITALES","HOSPITAL REGIONAL DR. ALEJANDRO CABRAL","martes, 19 de diciembre de 2023 4:44:24 p. m.","Tercer Nivel","San Juan","San Juan","Si","Consulta Externa","Buena","Buena","Buena","Buena","Buena","Buena","Buena","Buena"]
[2227337,"Encuesta General de Satisfacción HOSPITALES","HOSPITAL REGIONAL DR. ALEJANDRO CABRAL","martes, 19 de diciembre de 2023 4:44:52 p. m.","Tercer Nivel","San Juan","San Juan","Si","Consulta Externa","Buena","Buena","Buena","Buena","Buena","Buena","Buena","Muy Buena"]
[2227343,"Encuesta General de Satisfacción HOSPITALES","HOSPITAL REGIONAL DR. ALEJANDRO CABRAL","martes, 19 de diciembre de 2023 4:45:40 p. m.","Tercer Nivel","San Juan","San Juan","Si","Consulta Externa","Buena","Buena","Buena","Buena","Regular","Buena","Buena","Buena"]
[2227346,"Encuesta General de Satisfacción HOSPITALES","HOSPITAL REGIONAL DR. ALEJANDRO CABRAL","martes, 19 de diciembre de 2023 4:45:58 p. m.","Tercer Nivel","San Juan","San Juan","Si","Laboratorio","Buena","Buena","Buena","Buena","Buena","Buena","Buena","Buena"]
[2227351,"Encuesta General de Satisfacción HOSPITALES","HOSPITAL REGIONAL DR. ALEJANDRO CABRAL","martes, 19 de diciembre de 2023 4:46:17 p. m.","Tercer Nivel","San Juan","San Juan","Si","Laboratorio","Buena","Buena","Buena","Buena","Buena","Buena","Buena","Buena"]
[2227357,"Encuesta General de Satisfacción HOSPITALES","HOSPITAL REGIONAL DR. ALEJANDRO CABRAL","martes, 19 de diciembre de 2023 4:46:48 p. m.","Tercer Nivel","San Juan","San Juan","Si","Laboratorio","Buena","Buena","Muy Buena","Buena","Buena","Buena","Buena","Buena"]
[2227364,"Encuesta General de Satisfacción HOSPITALES","HOSPITAL REGIONAL DR. ALEJANDRO CABRAL","martes, 19 de diciembre de 2023 4:47:28 p. m.","Tercer Nivel","San Juan","San Juan","Si","Laboratorio","Buena","Buena","Buena","Buena","Buena","Buena","Buena","Buena"]
[2227365,"Encuesta General de Satisfacción HOSPITALES","HOSPITAL REGIONAL DR. ALEJANDRO CABRAL","martes, 19 de diciembre de 2023 4:47:52 p. m.","Tercer Nivel","San Juan","San Juan","Si","Laboratorio","Buena","Buena","Buena","Buena","Buena","Buena","Buena","Buena"]
[2227366,"Encuesta General de Satisfacción HOSPITALES","HOSPITAL REGIONAL DR. ALEJANDRO CABRAL","martes, 19 de diciembre de 2023 4:48:10 p. m.","Tercer Nivel","San Juan","San Juan","Si","Laboratorio","Buena","Buena","Muy Buena","Muy Buena","Muy Buena","Muy Buena","Muy Buena","Muy Buena"]
[2227367,"Encuesta General de Satisfacción HOSPITALES","HOSPITAL REGIONAL DR. ALEJANDRO CABRAL","martes, 19 de diciembre de 2023 4:48:29 p. m.","Tercer Nivel","San Juan","San Juan","Si","Laboratorio","Buena","Muy Buena","Muy Buena","Muy Buena","Muy Buena","Muy Buena","Muy Buena","Muy Buena"]
[2227368,"Encuesta General de Satisfacción HOSPITALES","HOSPITAL REGIONAL DR. ALEJANDRO CABRAL","martes, 19 de diciembre de 2023 4:48:52 p. m.","Tercer Nivel","San Juan","San Juan","Si","Laboratorio","Muy Buena","Muy Buena","Muy Buena","Muy Buena","Muy Buena","Muy Buena","Buena","Muy Buena"]
[2227369,"Encuesta General de Satisfacción HOSPITALES","HOSPITAL REGIONAL DR. ALEJANDRO CABRAL","martes, 19 de diciembre de 2023 4:49:17 p. m.","Tercer Nivel","San Juan","San Juan","Si","Laboratorio","Buena","Buena","Buena","Buena","Buena","Buena","Buena","Buena"]
[2227370,"Encuesta General de Satisfacción HOSPITALES","HOSPITAL REGIONAL DR. ALEJANDRO CABRAL","martes, 19 de diciembre de 2023 4:49:39 p. m.","Tercer Nivel","San Juan","San Juan","Si","Imágenes","Buena","Buena","Buena","Buena","Buena","Buena","Buena","Buena"]
[2227376,"Encuesta General de Satisfacción HOSPITALES","HOSPITAL REGIONAL DR. ALEJANDRO CABRAL","martes, 19 de diciembre de 2023 4:51:51 p. m.","Tercer Nivel","San Juan","San Juan","Si","Imágenes","Regular","Muy Buena","Buena","Buena","Buena","Buena","Buena","Buena"]
[2227430,"Encuesta General de Satisfacción HOSPITALES","HOSPITAL REGIONAL DR. ALEJANDRO CABRAL","martes, 19 de diciembre de 2023 5:07:40 p. m.","Tercer Nivel","San Juan","San Juan","Si","Imágenes","Buena","Buena","Buena","Buena","Buena","Buena","Buena","Buena"]
[2227432,"Encuesta General de Satisfacción HOSPITALES","HOSPITAL REGIONAL DR. ALEJANDRO CABRAL","martes, 19 de diciembre de 2023 5:07:56 p. m.","Tercer Nivel","San Juan","San Juan","Si","Imágenes","Buena","Buena","Buena","Buena","Buena","Buena","Buena","Buena"]
[2227433,"Encuesta General de Satisfacción HOSPITALES","HOSPITAL REGIONAL DR. ALEJANDRO CABRAL","martes, 19 de diciembre de 2023 5:08:10 p. m.","Tercer Nivel","San Juan","San Juan","Si","Hospitalización","Buena","Buena","Buena","Buena","Buena","Buena","Buena","Buena"]
[2227435,"Encuesta General de Satisfacción HOSPITALES","HOSPITAL REGIONAL DR. ALEJANDRO CABRAL","martes, 19 de diciembre de 2023 5:08:26 p. m.","Tercer Nivel","San Juan","San Juan","Si","Hospitalización","Buena","Regular","Regular","Regular","Regular","Buena","Buena","Regular"]
[2227437,"Encuesta General de Satisfacción HOSPITALES","HOSPITAL REGIONAL DR. ALEJANDRO CABRAL","martes, 19 de diciembre de 2023 5:08:55 p. m.","Tercer Nivel","San Juan","San Juan","Si","Hospitalización","Buena","Buena","Buena","Buena","Buena","Buena","Buena","Buena"]
[2227439,"Encuesta General de Satisfacción HOSPITALES","HOSPITAL REGIONAL DR. ALEJANDRO CABRAL","martes, 19 de diciembre de 2023 5:09:10 p. m.","Tercer Nivel","San Juan","San Juan","Si","Emergencia","Buena","Buena","Buena","Buena","Buena","Buena","Buena","Buena"]
[2227442,"Encuesta General de Satisfacción HOSPITALES","HOSPITAL REGIONAL DR. ALEJANDRO CABRAL","martes, 19 de diciembre de 2023 5:09:29 p. m.","Tercer Nivel","San Juan","San Juan","Si","Emergencia","Buena","Buena","Buena","Buena","Buena","Buena","Buena","Buena"]
[2227445,"Encuesta General de Satisfacción HOSPITALES","HOSPITAL REGIONAL DR. ALEJANDRO CABRAL","martes, 19 de diciembre de 2023 5:10:12 p. m.","Tercer Nivel","San Juan","San Juan","Si","Emergencia","Buena","Buena","Buena","Buena","Buena","Buena","Buena","Buena"]
[2227446,"Encuesta General de Satisfacción HOSPITALES","HOSPITAL REGIONAL DR. ALEJANDRO CABRAL","martes, 19 de diciembre de 2023 5:10:28 p. m.","Tercer Nivel","San Juan","San Juan","Si","Emergencia","Regular","Regular","Regular","Regular","Regular","Regular","Regular","Regular"]
[2227449,"Encuesta General de Satisfacción HOSPITALES","HOSPITAL REGIONAL DR. ALEJANDRO CABRAL","martes, 19 de diciembre de 2023 5:16:35 p. m.","Tercer Nivel","San Juan","San Juan","Si","Emergencia","Buena","Buena","Buena","Buena","Buena","Buena","Buena","Buena"]
[2229729,"Encuesta General de Satisfacción HOSPITALES","HOSPITAL REGIONAL DR. ALEJANDRO CABRAL","miércoles, 20 de diciembre de 2023 6:12:30 p. m.","Tercer Nivel","San Juan","San Juan","Si","Consulta Externa","Buena","Buena","Buena","Buena","Buena","Buena","Buena","Buena"]
[2229730,"Encuesta General de Satisfacción HOSPITALES","HOSPITAL REGIONAL DR. ALEJANDRO CABRAL","miércoles, 20 de diciembre de 2023 6:12:47 p. m.","Tercer Nivel","San Juan","San Juan","Si","Consulta Externa","Buena","Buena","Buena","Buena","Buena","Buena","Buena","Buena"]
[2229733,"Encuesta General de Satisfacción HOSPITALES","HOSPITAL REGIONAL DR. ALEJANDRO CABRAL","miércoles, 20 de diciembre de 2023 6:13:02 p. m.","Tercer Nivel","San Juan","San Juan","Si","Consulta Externa","Buena","Regular","Buena","Buena","Buena","Buena","Buena","Buena"]
[2229735,"Encuesta General de Satisfacción HOSPITALES","HOSPITAL REGIONAL DR. ALEJANDRO CABRAL","miércoles, 20 de diciembre de 2023 6:13:24 p. m.","Tercer Nivel","San Juan","San Juan","Si","Consulta Externa","Buena","Buena","Buena","Buena","Buena","Buena","Buena","Buena"]
[2229737,"Encuesta General de Satisfacción HOSPITALES","HOSPITAL REGIONAL DR. ALEJANDRO CABRAL","miércoles, 20 de diciembre de 2023 6:13:46 p. m.","Tercer Nivel","San Juan","San Juan","Si","Consulta Externa","Buena","Buena","Buena","Buena","Buena","Buena","Buena","Buena"]
[2229738,"Encuesta General de Satisfacción HOSPITALES","HOSPITAL REGIONAL DR. ALEJANDRO CABRAL","miércoles, 20 de diciembre de 2023 6:14:06 p. m.","Tercer Nivel","San Juan","San Juan","Si","Consulta Externa","Buena","Buena","Buena","Buena","Regular","Buena","Buena","Buena"]
[2229741,"Encuesta General de Satisfacción HOSPITALES","HOSPITAL REGIONAL DR. ALEJANDRO CABRAL","miércoles, 20 de diciembre de 2023 6:14:23 p. m.","Tercer Nivel","San Juan","San Juan","Si","Consulta Externa","Buena","Buena","Buena","Buena","Buena","Buena","Buena","Buena"]
[2229746,"Encuesta General de Satisfacción HOSPITALES","HOSPITAL REGIONAL DR. ALEJANDRO CABRAL","miércoles, 20 de diciembre de 2023 6:14:47 p. m.","Tercer Nivel","San Juan","San Juan","Si","Consulta Externa","Buena","Buena","Buena","Buena","Buena","Buena","Buena","Buena"]
[2229748,"Encuesta General de Satisfacción HOSPITALES","HOSPITAL REGIONAL DR. ALEJANDRO CABRAL","miércoles, 20 de diciembre de 2023 6:15:04 p. m.","Tercer Nivel","San Juan","San Juan","Si","Laboratorio","Buena","Buena","Buena","Buena","Buena","Buena","Buena","Buena"]
[2229750,"Encuesta General de Satisfacción HOSPITALES","HOSPITAL REGIONAL DR. ALEJANDRO CABRAL","miércoles, 20 de diciembre de 2023 6:15:24 p. m.","Tercer Nivel","San Juan","San Juan","Si","Laboratorio","Buena","Buena","Buena","Muy Buena","Buena","Muy Buena","Muy Buena","Muy Buena"]
[2229752,"Encuesta General de Satisfacción HOSPITALES","HOSPITAL REGIONAL DR. ALEJANDRO CABRAL","miércoles, 20 de diciembre de 2023 6:15:38 p. m.","Tercer Nivel","San Juan","San Juan","Si","Laboratorio","Muy Buena","Muy Buena","Muy Buena","Muy Buena","Muy Buena","Muy Buena","Muy Buena","Muy Buena"]
[2229754,"Encuesta General de Satisfacción HOSPITALES","HOSPITAL REGIONAL DR. ALEJANDRO CABRAL","miércoles, 20 de diciembre de 2023 6:15:55 p. m.","Tercer Nivel","San Juan","San Juan","Si","Laboratorio","Buena","Buena","Buena","Buena","Buena","Buena","Buena","Buena"]
[2229755,"Encuesta General de Satisfacción HOSPITALES","HOSPITAL REGIONAL DR. ALEJANDRO CABRAL","miércoles, 20 de diciembre de 2023 6:16:14 p. m.","Tercer Nivel","San Juan","San Juan","Si","Laboratorio","Muy Buena","Buena","Buena","Buena","Buena","Buena","Buena","Buena"]
[2229757,"Encuesta General de Satisfacción HOSPITALES","HOSPITAL REGIONAL DR. ALEJANDRO CABRAL","miércoles, 20 de diciembre de 2023 6:16:27 p. m.","Tercer Nivel","San Juan","San Juan","Si","Laboratorio","Buena","Buena","Buena","Buena","Buena","Buena","Buena","Buena"]
[2229759,"Encuesta General de Satisfacción HOSPITALES","HOSPITAL REGIONAL DR. ALEJANDRO CABRAL","miércoles, 20 de diciembre de 2023 6:16:41 p. m.","Tercer Nivel","San Juan","San Juan","Si","Imágenes","Buena","Buena","Buena","Buena","Buena","Buena","Buena","Muy Buena"]
[2229762,"Encuesta General de Satisfacción HOSPITALES","HOSPITAL REGIONAL DR. ALEJANDRO CABRAL","miércoles, 20 de diciembre de 2023 6:17:50 p. m.","Tercer Nivel","San Juan","San Juan","Si","Imágenes","Buena","Buena","Buena","Buena","Buena","Buena","Buena","Buena"]
[2229763,"Encuesta General de Satisfacción HOSPITALES","HOSPITAL REGIONAL DR. ALEJANDRO CABRAL","miércoles, 20 de diciembre de 2023 6:18:09 p. m.","Tercer Nivel","San Juan","San Juan","Si","Hospitalización","Buena","Buena","Buena","Buena","Buena","Buena","Buena","Buena"]
[2229766,"Encuesta General de Satisfacción HOSPITALES","HOSPITAL REGIONAL DR. ALEJANDRO CABRAL","miércoles, 20 de diciembre de 2023 6:18:32 p. m.","Tercer Nivel","San Juan","San Juan","Si","Emergencia","Buena","Buena","Buena","Buena","Buena","Buena","Buena","Buena"]
[2229769,"Encuesta General de Satisfacción HOSPITALES","HOSPITAL REGIONAL DR. ALEJANDRO CABRAL","miércoles, 20 de diciembre de 2023 6:18:50 p. m.","Tercer Nivel","San Juan","San Juan","Si","Emergencia","Buena","Buena","Buena","Buena","Buena","Buena","Buena","Buena"]
[2229773,"Encuesta General de Satisfacción HOSPITALES","HOSPITAL REGIONAL DR. ALEJANDRO CABRAL","miércoles, 20 de diciembre de 2023 6:19:08 p. m.","Tercer Nivel","San Juan","San Juan","Si","Emergencia","Buena","Buena","Buena","Buena","Buena","Buena","Buena","Buena"]
[2234338,"Encuesta General de Satisfacción HOSPITALES","HOSPITAL REGIONAL DR. ALEJANDRO CABRAL","domingo, 24 de diciembre de 2023 10:31:44 p. m.","Tercer Nivel","San Juan","San Juan","Si","Emergencia","Buena","Buena","Buena","Buena","Buena","Buena","Buena","Buena"]
[2234339,"Encuesta General de Satisfacción HOSPITALES","HOSPITAL REGIONAL DR. ALEJANDRO CABRAL","domingo, 24 de diciembre de 2023 10:32:19 p. m.","Tercer Nivel","San Juan","San Juan","Si","Emergencia","Buena","Muy Buena","Muy Buena","Muy Buena","Buena","Muy Buena","Buena","Muy Buena"]
[2234340,"Encuesta General de Satisfacción HOSPITALES","HOSPITAL REGIONAL DR. ALEJANDRO CABRAL","domingo, 24 de diciembre de 2023 10:33:03 p. m.","Tercer Nivel","San Juan","San Juan","Si","Emergencia","Buena","Buena","Buena","Buena","Regular","Muy Buena","Regular","Buena"]
[2234341,"Encuesta General de Satisfacción HOSPITALES","HOSPITAL REGIONAL DR. ALEJANDRO CABRAL","domingo, 24 de diciembre de 2023 10:33:49 p. m.","Tercer Nivel","San Juan","San Juan","Si","Emergencia","Buena","Buena","Regular","Buena","Buena","Buena","Regular","Buena"]
[2234342,"Encuesta General de Satisfacción HOSPITALES","HOSPITAL REGIONAL DR. ALEJANDRO CABRAL","domingo, 24 de diciembre de 2023 10:34:27 p. m.","Tercer Nivel","San Juan","San Juan","Si","Emergencia","Regular","Regular","Regular","Regular","Regular","Regular","Regular","Regular"]
[2234343,"Encuesta General de Satisfacción HOSPITALES","HOSPITAL REGIONAL DR. ALEJANDRO CABRAL","domingo, 24 de diciembre de 2023 10:34:56 p. m.","Tercer Nivel","San Juan","San Juan","Si","Hospitalización","Buena","Buena","Buena","Buena","Regular","Regular","Buena","Buena"]
[2234344,"Encuesta General de Satisfacción HOSPITALES","HOSPITAL REGIONAL DR. ALEJANDRO CABRAL","domingo, 24 de diciembre de 2023 10:35:53 p. m.","Tercer Nivel","San Juan","San Juan","Si","Hospitalización","Muy Buena","Muy Buena","Muy Buena","Buena","Buena","Buena","Buena","Buena"]
[2234345,"Encuesta General de Satisfacción HOSPITALES","HOSPITAL REGIONAL DR. ALEJANDRO CABRAL","domingo, 24 de diciembre de 2023 10:36:23 p. m.","Tercer Nivel","San Juan","San Juan","Si","Hospitalización","Buena","Muy Buena","Muy Buena","Muy Buena","Muy Buena","Muy Buena","Buena","Buena"]
[2234373,"Encuesta General de Satisfacción HOSPITALES","HOSPITAL REGIONAL DR. ALEJANDRO CABRAL","lunes, 25 de diciembre de 2023 10:24:48 p. m.","Tercer Nivel","San Juan","San Juan","Si","Emergencia","Buena","Buena","Buena","Buena","Buena","Buena","Regular","Buena"]
[2234374,"Encuesta General de Satisfacción HOSPITALES","HOSPITAL REGIONAL DR. ALEJANDRO CABRAL","lunes, 25 de diciembre de 2023 10:25:22 p. m.","Tercer Nivel","San Juan","San Juan","Si","Emergencia","Buena","Buena","Buena","Buena","Buena","Buena","Buena","Buena"]
[2234375,"Encuesta General de Satisfacción HOSPITALES","HOSPITAL REGIONAL DR. ALEJANDRO CABRAL","lunes, 25 de diciembre de 2023 10:26:10 p. m.","Tercer Nivel","San Juan","San Juan","Si","Emergencia","Buena","Muy Buena","Buena","Regular","Regular","Buena","Buena","Buena"]
[2234376,"Encuesta General de Satisfacción HOSPITALES","HOSPITAL REGIONAL DR. ALEJANDRO CABRAL","lunes, 25 de diciembre de 2023 10:26:27 p. m.","Tercer Nivel","San Juan","San Juan","Si","Hospitalización","Buena","Buena","Buena","Buena","Buena","Buena","Buena","Buena"]
[2234377,"Encuesta General de Satisfacción HOSPITALES","HOSPITAL REGIONAL DR. ALEJANDRO CABRAL","lunes, 25 de diciembre de 2023 10:27:00 p. m.","Tercer Nivel","San Juan","San Juan","Si","Hospitalización","Muy Buena","Muy Buena","Muy Buena","Muy Buena","Muy Buena","Muy Buena","Buena","Buena"]
[2237706,"Encuesta General de Satisfacción HOSPITALES","HOSPITAL REGIONAL DR. ALEJANDRO CABRAL","miércoles, 27 de diciembre de 2023 5:17:11 p. m.","Tercer Nivel","San Juan","San Juan","Si","Consulta Externa","Buena","Buena","Buena","Buena","Buena","Buena","Buena","Buena"]
[2237709,"Encuesta General de Satisfacción HOSPITALES","HOSPITAL REGIONAL DR. ALEJANDRO CABRAL","miércoles, 27 de diciembre de 2023 5:17:44 p. m.","Tercer Nivel","San Juan","San Juan","Si","Consulta Externa","Buena","Buena","Buena","Buena","Buena","Buena","Buena","Buena"]
[2237729,"Encuesta General de Satisfacción HOSPITALES","HOSPITAL REGIONAL DR. ALEJANDRO CABRAL","miércoles, 27 de diciembre de 2023 5:21:52 p. m.","Tercer Nivel","San Juan","San Juan","Si","Consulta Externa","Buena","Buena","Buena","Buena","Buena","Buena","Buena","Buena"]
[2237731,"Encuesta General de Satisfacción HOSPITALES","HOSPITAL REGIONAL DR. ALEJANDRO CABRAL","miércoles, 27 de diciembre de 2023 5:22:20 p. m.","Tercer Nivel","San Juan","San Juan","Si","Consulta Externa","Buena","Buena","Buena","Buena","Buena","Buena","Buena","Buena"]
[2237734,"Encuesta General de Satisfacción HOSPITALES","HOSPITAL REGIONAL DR. ALEJANDRO CABRAL","miércoles, 27 de diciembre de 2023 5:22:43 p. m.","Tercer Nivel","San Juan","San Juan","Si","Consulta Externa","Muy Buena","Buena","Buena","Buena","Buena","Buena","Buena","Buena"]
[2237737,"Encuesta General de Satisfacción HOSPITALES","HOSPITAL REGIONAL DR. ALEJANDRO CABRAL","miércoles, 27 de diciembre de 2023 5:23:12 p. m.","Tercer Nivel","San Juan","San Juan","Si","Consulta Externa","Buena","Buena","Buena","Buena","Buena","Buena","Buena","Buena"]
[2237740,"Encuesta General de Satisfacción HOSPITALES","HOSPITAL REGIONAL DR. ALEJANDRO CABRAL","miércoles, 27 de diciembre de 2023 5:23:32 p. m.","Tercer Nivel","San Juan","San Juan","Si","Consulta Externa","Buena","Buena","Buena","Buena","Buena","Buena","Buena","Buena"]
[2237742,"Encuesta General de Satisfacción HOSPITALES","HOSPITAL REGIONAL DR. ALEJANDRO CABRAL","miércoles, 27 de diciembre de 2023 5:23:48 p. m.","Tercer Nivel","San Juan","San Juan","Si","Consulta Externa","Buena","Buena","Regular","Buena","Buena","Buena","Buena","Buena"]
[2237745,"Encuesta General de Satisfacción HOSPITALES","HOSPITAL REGIONAL DR. ALEJANDRO CABRAL","miércoles, 27 de diciembre de 2023 5:24:06 p. m.","Tercer Nivel","San Juan","San Juan","Si","Laboratorio","Buena","Buena","Buena","Buena","Buena","Buena","Buena","Buena"]
[2237747,"Encuesta General de Satisfacción HOSPITALES","HOSPITAL REGIONAL DR. ALEJANDRO CABRAL","miércoles, 27 de diciembre de 2023 5:24:28 p. m.","Tercer Nivel","San Juan","San Juan","Si","Laboratorio","Buena","Buena","Buena","Buena","Buena","Buena","Buena","Buena"]
[2237749,"Encuesta General de Satisfacción HOSPITALES","HOSPITAL REGIONAL DR. ALEJANDRO CABRAL","miércoles, 27 de diciembre de 2023 5:24:51 p. m.","Tercer Nivel","San Juan","San Juan","Si","Laboratorio","Buena","Buena","Buena","Buena","Buena","Buena","Buena","Buena"]
[2237751,"Encuesta General de Satisfacción HOSPITALES","HOSPITAL REGIONAL DR. ALEJANDRO CABRAL","miércoles, 27 de diciembre de 2023 5:25:07 p. m.","Tercer Nivel","San Juan","San Juan","Si","Laboratorio","Muy Buena","Buena","Buena","Buena","Buena","Buena","Buena","Buena"]
[2237752,"Encuesta General de Satisfacción HOSPITALES","HOSPITAL REGIONAL DR. ALEJANDRO CABRAL","miércoles, 27 de diciembre de 2023 5:25:25 p. m.","Tercer Nivel","San Juan","San Juan","Si","Laboratorio","Muy Buena","Buena","Buena","Buena","Muy Buena","Buena","Buena","Buena"]
[2237755,"Encuesta General de Satisfacción HOSPITALES","HOSPITAL REGIONAL DR. ALEJANDRO CABRAL","miércoles, 27 de diciembre de 2023 5:25:45 p. m.","Tercer Nivel","San Juan","San Juan","Si","Laboratorio","Buena","Buena","Buena","Buena","Buena","Buena","Buena","Buena"]
[2237756,"Encuesta General de Satisfacción HOSPITALES","HOSPITAL REGIONAL DR. ALEJANDRO CABRAL","miércoles, 27 de diciembre de 2023 5:26:04 p. m.","Tercer Nivel","San Juan","San Juan","Si","Imágenes","Buena","Buena","Buena","Buena","Buena","Buena","Buena","Buena"]
[2237757,"Encuesta General de Satisfacción HOSPITALES","HOSPITAL REGIONAL DR. ALEJANDRO CABRAL","miércoles, 27 de diciembre de 2023 5:26:17 p. m.","Tercer Nivel","San Juan","San Juan","Si","Imágenes","Buena","Buena","Buena","Buena","Buena","Buena","Buena","Buena"]
[2237758,"Encuesta General de Satisfacción HOSPITALES","HOSPITAL REGIONAL DR. ALEJANDRO CABRAL","miércoles, 27 de diciembre de 2023 5:26:33 p. m.","Tercer Nivel","San Juan","San Juan","Si","Hospitalización","Buena","Buena","Buena","Buena","Buena","Buena","Buena","Buena"]
[2237759,"Encuesta General de Satisfacción HOSPITALES","HOSPITAL REGIONAL DR. ALEJANDRO CABRAL","miércoles, 27 de diciembre de 2023 5:26:50 p. m.","Tercer Nivel","San Juan","San Juan","Si","Hospitalización","Buena","Buena","Buena","Buena","Buena","Buena","Buena","Buena"]
[2237760,"Encuesta General de Satisfacción HOSPITALES","HOSPITAL REGIONAL DR. ALEJANDRO CABRAL","miércoles, 27 de diciembre de 2023 5:27:07 p. m.","Tercer Nivel","San Juan","San Juan","Si","Emergencia","Buena","Buena","Regular","Buena","Buena","Buena","Buena","Buena"]
[2237761,"Encuesta General de Satisfacción HOSPITALES","HOSPITAL REGIONAL DR. ALEJANDRO CABRAL","miércoles, 27 de diciembre de 2023 5:27:22 p. m.","Tercer Nivel","San Juan","San Juan","Si","Emergencia","Regular","Buena","Buena","Buena","Buena","Buena","Buena","Buena"]
[2237762,"Encuesta General de Satisfacción HOSPITALES","HOSPITAL REGIONAL DR. ALEJANDRO CABRAL","miércoles, 27 de diciembre de 2023 5:27:40 p. m.","Tercer Nivel","San Juan","San Juan","Si","Emergencia","Buena","Buena","Buena","Buena","Buena","Buena","Buena","Buena"]
[2239536,"Encuesta General de Satisfacción HOSPITALES","HOSPITAL REGIONAL DR. ALEJANDRO CABRAL","jueves, 28 de diciembre de 2023 4:24:26 p. m.","Tercer Nivel","San Juan","San Juan","Si","Consulta Externa","Buena","Buena","Buena","Buena","Buena","Buena","Buena","Buena"]
[2239538,"Encuesta General de Satisfacción HOSPITALES","HOSPITAL REGIONAL DR. ALEJANDRO CABRAL","jueves, 28 de diciembre de 2023 4:24:49 p. m.","Tercer Nivel","San Juan","San Juan","Si","Consulta Externa","Buena","Buena","Buena","Buena","Buena","Buena","Buena","Buena"]
[2239540,"Encuesta General de Satisfacción HOSPITALES","HOSPITAL REGIONAL DR. ALEJANDRO CABRAL","jueves, 28 de diciembre de 2023 4:25:17 p. m.","Tercer Nivel","San Juan","San Juan","Si","Consulta Externa","Buena","Buena","Buena","Buena","Buena","Buena","Buena","Buena"]
[2239543,"Encuesta General de Satisfacción HOSPITALES","HOSPITAL REGIONAL DR. ALEJANDRO CABRAL","jueves, 28 de diciembre de 2023 4:26:12 p. m.","Tercer Nivel","San Juan","San Juan","Si","Consulta Externa","Buena","Buena","Buena","Buena","Buena","Buena","Buena","Muy Buena"]
[2239545,"Encuesta General de Satisfacción HOSPITALES","HOSPITAL REGIONAL DR. ALEJANDRO CABRAL","jueves, 28 de diciembre de 2023 4:26:26 p. m.","Tercer Nivel","San Juan","San Juan","Si","Consulta Externa","Buena","Buena","Buena","Buena","Buena","Buena","Buena","Buena"]
[2239546,"Encuesta General de Satisfacción HOSPITALES","HOSPITAL REGIONAL DR. ALEJANDRO CABRAL","jueves, 28 de diciembre de 2023 4:26:41 p. m.","Tercer Nivel","San Juan","San Juan","Si","Consulta Externa","Buena","Muy Buena","Buena","Buena","Buena","Buena","Buena","Buena"]
[2239547,"Encuesta General de Satisfacción HOSPITALES","HOSPITAL REGIONAL DR. ALEJANDRO CABRAL","jueves, 28 de diciembre de 2023 4:26:54 p. m.","Tercer Nivel","San Juan","San Juan","Si","Laboratorio","Buena","Buena","Buena","Buena","Buena","Buena","Buena","Buena"]
[2239551,"Encuesta General de Satisfacción HOSPITALES","HOSPITAL REGIONAL DR. ALEJANDRO CABRAL","jueves, 28 de diciembre de 2023 4:27:18 p. m.","Tercer Nivel","San Juan","San Juan","Si","Laboratorio","Buena","Buena","Buena","Buena","Buena","Buena","Buena","Buena"]
[2239552,"Encuesta General de Satisfacción HOSPITALES","HOSPITAL REGIONAL DR. ALEJANDRO CABRAL","jueves, 28 de diciembre de 2023 4:28:04 p. m.","Tercer Nivel","San Juan","San Juan","Si","Laboratorio","Buena","Buena","Buena","Buena","Buena","Buena","Buena","Buena"]
[2239556,"Encuesta General de Satisfacción HOSPITALES","HOSPITAL REGIONAL DR. ALEJANDRO CABRAL","jueves, 28 de diciembre de 2023 4:28:55 p. m.","Tercer Nivel","San Juan","San Juan","Si","Laboratorio","Buena","Buena","Buena","Buena","Buena","Muy Buena","Buena","Buena"]
[2239557,"Encuesta General de Satisfacción HOSPITALES","HOSPITAL REGIONAL DR. ALEJANDRO CABRAL","jueves, 28 de diciembre de 2023 4:29:35 p. m.","Tercer Nivel","San Juan","San Juan","Si","Laboratorio","Buena","Buena","Buena","Buena","Buena","Buena","Buena","Buena"]
[2239563,"Encuesta General de Satisfacción HOSPITALES","HOSPITAL REGIONAL DR. ALEJANDRO CABRAL","jueves, 28 de diciembre de 2023 4:31:16 p. m.","Tercer Nivel","San Juan","San Juan","Si","Laboratorio","Buena","Buena","Buena","Buena","Buena","Buena","Buena","Buena"]
[2239565,"Encuesta General de Satisfacción HOSPITALES","HOSPITAL REGIONAL DR. ALEJANDRO CABRAL","jueves, 28 de diciembre de 2023 4:31:34 p. m.","Tercer Nivel","San Juan","San Juan","Si","Imágenes","Buena","Buena","Buena","Buena","Buena","Buena","Buena","Buena"]
[2239567,"Encuesta General de Satisfacción HOSPITALES","HOSPITAL REGIONAL DR. ALEJANDRO CABRAL","jueves, 28 de diciembre de 2023 4:31:51 p. m.","Tercer Nivel","San Juan","San Juan","Si","Imágenes","Buena","Buena","Buena","Buena","Buena","Buena","Buena","Buena"]
[2239572,"Encuesta General de Satisfacción HOSPITALES","HOSPITAL REGIONAL DR. ALEJANDRO CABRAL","jueves, 28 de diciembre de 2023 4:32:52 p. m.","Tercer Nivel","San Juan","San Juan","Si","Hospitalización","Buena","Buena","Buena","Buena","Buena","Buena","Buena","Buena"]
[2239573,"Encuesta General de Satisfacción HOSPITALES","HOSPITAL REGIONAL DR. ALEJANDRO CABRAL","jueves, 28 de diciembre de 2023 4:33:07 p. m.","Tercer Nivel","San Juan","San Juan","Si","Hospitalización","Buena","Buena","Buena","Buena","Buena","Buena","Buena","Buena"]
[2239574,"Encuesta General de Satisfacción HOSPITALES","HOSPITAL REGIONAL DR. ALEJANDRO CABRAL","jueves, 28 de diciembre de 2023 4:33:21 p. m.","Tercer Nivel","San Juan","San Juan","Si","Emergencia","Buena","Buena","Buena","Buena","Buena","Buena","Buena","Buena"]
[2239575,"Encuesta General de Satisfacción HOSPITALES","HOSPITAL REGIONAL DR. ALEJANDRO CABRAL","jueves, 28 de diciembre de 2023 4:33:47 p. m.","Tercer Nivel","San Juan","San Juan","Si","Emergencia","Buena","Buena","Buena","Buena","Buena","Buena","Buena","Buena"]
[2239576,"Encuesta General de Satisfacción HOSPITALES","HOSPITAL REGIONAL DR. ALEJANDRO CABRAL","jueves, 28 de diciembre de 2023 4:34:01 p. m.","Tercer Nivel","San Juan","San Juan","Si","Emergencia","Buena","Buena","Buena","Buena","Buena","Buena","Buena","Buena"]
[2240637,"Encuesta General de Satisfacción HOSPITALES","HOSPITAL REGIONAL DR. ALEJANDRO CABRAL","viernes, 29 de diciembre de 2023 1:24:40 p. m.","Tercer Nivel","San Juan","San Juan","Si","Consulta Externa","Buena","Buena","Buena","Buena","Buena","Buena","Buena","Buena"]
[2240639,"Encuesta General de Satisfacción HOSPITALES","HOSPITAL REGIONAL DR. ALEJANDRO CABRAL","viernes, 29 de diciembre de 2023 1:24:59 p. m.","Tercer Nivel","San Juan","San Juan","Si","Consulta Externa","Buena","Buena","Buena","Buena","Buena","Buena","Buena","Buena"]
[2240642,"Encuesta General de Satisfacción HOSPITALES","HOSPITAL REGIONAL DR. ALEJANDRO CABRAL","viernes, 29 de diciembre de 2023 1:25:25 p. m.","Tercer Nivel","San Juan","San Juan","Si","Consulta Externa","Buena","Buena","Buena","Buena","Buena","Buena","Buena","Buena"]
[2240645,"Encuesta General de Satisfacción HOSPITALES","HOSPITAL REGIONAL DR. ALEJANDRO CABRAL","viernes, 29 de diciembre de 2023 1:25:45 p. m.","Tercer Nivel","San Juan","San Juan","Si","Consulta Externa","Buena","Buena","Muy Buena","Buena","Buena","Buena","Buena","Buena"]
[2240646,"Encuesta General de Satisfacción HOSPITALES","HOSPITAL REGIONAL DR. ALEJANDRO CABRAL","viernes, 29 de diciembre de 2023 1:26:02 p. m.","Tercer Nivel","San Juan","San Juan","Si","Consulta Externa","Buena","Buena","Buena","Buena","Buena","Buena","Buena","Buena"]
[2240649,"Encuesta General de Satisfacción HOSPITALES","HOSPITAL REGIONAL DR. ALEJANDRO CABRAL","viernes, 29 de diciembre de 2023 1:26:24 p. m.","Tercer Nivel","San Juan","San Juan","Si","Consulta Externa","Buena","Buena","Buena","Buena","Buena","Buena","Buena","Buena"]
[2240651,"Encuesta General de Satisfacción HOSPITALES","HOSPITAL REGIONAL DR. ALEJANDRO CABRAL","viernes, 29 de diciembre de 2023 1:26:51 p. m.","Tercer Nivel","San Juan","San Juan","Si","Consulta Externa","Buena","Buena","Buena","Buena","Buena","Buena","Regular","Buena"]
[2240653,"Encuesta General de Satisfacción HOSPITALES","HOSPITAL REGIONAL DR. ALEJANDRO CABRAL","viernes, 29 de diciembre de 2023 1:27:07 p. m.","Tercer Nivel","San Juan","San Juan","Si","Laboratorio","Buena","Buena","Buena","Buena","Buena","Buena","Buena","Buena"]
[2240655,"Encuesta General de Satisfacción HOSPITALES","HOSPITAL REGIONAL DR. ALEJANDRO CABRAL","viernes, 29 de diciembre de 2023 1:27:26 p. m.","Tercer Nivel","San Juan","San Juan","Si","Laboratorio","Buena","Buena","Buena","Buena","Buena","Buena","Buena","Buena"]
[2240657,"Encuesta General de Satisfacción HOSPITALES","HOSPITAL REGIONAL DR. ALEJANDRO CABRAL","viernes, 29 de diciembre de 2023 1:28:53 p. m.","Tercer Nivel","San Juan","San Juan","Si","Laboratorio","Buena","Buena","Buena","Buena","Buena","Buena","Buena","Buena"]
[2240658,"Encuesta General de Satisfacción HOSPITALES","HOSPITAL REGIONAL DR. ALEJANDRO CABRAL","viernes, 29 de diciembre de 2023 1:29:07 p. m.","Tercer Nivel","San Juan","San Juan","Si","Laboratorio","Buena","Buena","Buena","Buena","Buena","Buena","Buena","Buena"]
[2240661,"Encuesta General de Satisfacción HOSPITALES","HOSPITAL REGIONAL DR. ALEJANDRO CABRAL","viernes, 29 de diciembre de 2023 1:29:22 p. m.","Tercer Nivel","San Juan","San Juan","Si","Laboratorio","Buena","Buena","Buena","Buena","Buena","Buena","Buena","Muy Buena"]
[2240663,"Encuesta General de Satisfacción HOSPITALES","HOSPITAL REGIONAL DR. ALEJANDRO CABRAL","viernes, 29 de diciembre de 2023 1:29:38 p. m.","Tercer Nivel","San Juan","San Juan","Si","Laboratorio","Buena","Buena","Buena","Buena","Buena","Buena","Buena","Buena"]
[2240664,"Encuesta General de Satisfacción HOSPITALES","HOSPITAL REGIONAL DR. ALEJANDRO CABRAL","viernes, 29 de diciembre de 2023 1:29:53 p. m.","Tercer Nivel","San Juan","San Juan","Si","Laboratorio","Buena","Buena","Buena","Buena","Buena","Buena","Buena","Buena"]
[2240665,"Encuesta General de Satisfacción HOSPITALES","HOSPITAL REGIONAL DR. ALEJANDRO CABRAL","viernes, 29 de diciembre de 2023 1:30:10 p. m.","Tercer Nivel","San Juan","San Juan","Si","Imágenes","Buena","Buena","Buena","Buena","Buena","Buena","Buena","Buena"]
[2240666,"Encuesta General de Satisfacción HOSPITALES","HOSPITAL REGIONAL DR. ALEJANDRO CABRAL","viernes, 29 de diciembre de 2023 1:30:24 p. m.","Tercer Nivel","San Juan","San Juan","Si","Imágenes","Buena","Buena","Buena","Buena","Buena","Buena","Buena","Buena"]
[2240667,"Encuesta General de Satisfacción HOSPITALES","HOSPITAL REGIONAL DR. ALEJANDRO CABRAL","viernes, 29 de diciembre de 2023 1:30:41 p. m.","Tercer Nivel","San Juan","San Juan","Si","Hospitalización","Buena","Buena","Buena","Buena","Muy Buena","Buena","Buena","Buena"]
[2240669,"Encuesta General de Satisfacción HOSPITALES","HOSPITAL REGIONAL DR. ALEJANDRO CABRAL","viernes, 29 de diciembre de 2023 1:31:01 p. m.","Tercer Nivel","San Juan","San Juan","Si","Hospitalización","Buena","Buena","Buena","Buena","Buena","Buena","Buena","Buena"]
[2240673,"Encuesta General de Satisfacción HOSPITALES","HOSPITAL REGIONAL DR. ALEJANDRO CABRAL","viernes, 29 de diciembre de 2023 1:31:15 p. m.","Tercer Nivel","San Juan","San Juan","Si","Emergencia","Buena","Buena","Buena","Buena","Buena","Buena","Buena","Buena"]
[2240674,"Encuesta General de Satisfacción HOSPITALES","HOSPITAL REGIONAL DR. ALEJANDRO CABRAL","viernes, 29 de diciembre de 2023 1:31:32 p. m.","Tercer Nivel","San Juan","San Juan","Si","Emergencia","Buena","Buena","Buena","Buena","Buena","Buena","Buena","Buena"]
[2241786,"Encuesta General de Satisfacción HOSPITALES","HOSPITAL REGIONAL DR. ALEJANDRO CABRAL","sábado, 30 de diciembre de 2023 10:28:11 p. m.","Tercer Nivel","San Juan","San Juan","Si","Emergencia","Buena","Buena","Buena","Muy Buena","Buena","Buena","Buena","Buena"]
[2241787,"Encuesta General de Satisfacción HOSPITALES","HOSPITAL REGIONAL DR. ALEJANDRO CABRAL","sábado, 30 de diciembre de 2023 10:28:35 p. m.","Tercer Nivel","San Juan","San Juan","Si","Emergencia","Buena","Buena","Muy Buena","Muy Buena","Buena","Buena","Regular","Buena"]
[2241788,"Encuesta General de Satisfacción HOSPITALES","HOSPITAL REGIONAL DR. ALEJANDRO CABRAL","sábado, 30 de diciembre de 2023 10:29:20 p. m.","Tercer Nivel","San Juan","San Juan","Si","Emergencia","Regular","Buena","Buena","Buena","Regular","Buena","Buena","Buena"]
[2241789,"Encuesta General de Satisfacción HOSPITALES","HOSPITAL REGIONAL DR. ALEJANDRO CABRAL","sábado, 30 de diciembre de 2023 10:29:44 p. m.","Tercer Nivel","San Juan","San Juan","Si","Hospitalización","Buena","Muy Buena","Buena","Muy Buena","Buena","Muy Buena","Buena","Buena"]
[2241790,"Encuesta General de Satisfacción HOSPITALES","HOSPITAL REGIONAL DR. ALEJANDRO CABRAL","sábado, 30 de diciembre de 2023 10:30:11 p. m.","Tercer Nivel","San Juan","San Juan","Si","Hospitalización","Buena","Buena","Buena","Regular","Buena","Regular","Regular","Buena"]
[2241898,"Encuesta General de Satisfacción HOSPITALES","HOSPITAL REGIONAL DR. ALEJANDRO CABRAL","domingo, 31 de diciembre de 2023 10:32:30 p. m.","Tercer Nivel","San Juan","San Juan","Si","Emergencia","Muy Buena","Muy Buena","Muy Buena","Buena","Buena","Buena","Buena","Buena"]
[2241899,"Encuesta General de Satisfacción HOSPITALES","HOSPITAL REGIONAL DR. ALEJANDRO CABRAL","domingo, 31 de diciembre de 2023 10:32:52 p. m.","Tercer Nivel","San Juan","San Juan","Si","Emergencia","Regular","Regular","Regular","Regular","Regular","Regular","Regular","Regular"]
[2241900,"Encuesta General de Satisfacción HOSPITALES","HOSPITAL REGIONAL DR. ALEJANDRO CABRAL","domingo, 31 de diciembre de 2023 10:33:27 p. m.","Tercer Nivel","San Juan","San Juan","Si","Emergencia","Buena","Buena","Buena","Regular","Regular","Regular","Regular","Buena"]
[2241901,"Encuesta General de Satisfacción HOSPITALES","HOSPITAL REGIONAL DR. ALEJANDRO CABRAL","domingo, 31 de diciembre de 2023 10:34:08 p. m.","Tercer Nivel","San Juan","San Juan","Si","Hospitalización","Buena","Buena","Regular","Buena","Regular","Buena","Regular","Regular"]
[2241902,"Encuesta General de Satisfacción HOSPITALES","HOSPITAL REGIONAL DR. ALEJANDRO CABRAL","domingo, 31 de diciembre de 2023 10:34:48 p. m.","Tercer Nivel","San Juan","San Juan","Si","Hospitalización","Regular","Regular","Regular","Regular","Regular","Regular","Regular","Regular"]

{"sheet":"Enero","index":2,"n_rows":13,"n_cols":17,"rows_kept":13,"merged":[[2,0,3,0],[2,1,3,2],[2,4,2,5],[3,4,3,5],[4,0,5,0],[4,1,5,2],[4,4,4,5],[5,4,5,5],[6,0,7,0],[6,1,7,2],[6,4,6,5],[7,4,7,5],[8,0,9,0],[8,1,9,2],[8,4,8,5],[9,4,9,5]]}
[]
["Hospital:","HOSPITAL REGIONAL DR. ALEJANDRO CABRAL",{"$nulls":4},"Muy Mala","Mala","Regular","Buena","Muy Buena","Total","B + MB","%"]
["Servicio:","Consulta Externa",null,"Atributo:","Amabilidad",null,{"$f":"COUNTIFS($C$14:$C$20006,$B$2,$I$14:$I$20006,$B$3,$J$14:$J$20006,G2)","v":0},{"$f":"COUNTIFS($C$14:$C$20006,$B$2,$I$14:$I$20006,$B$3,$J$14:$J$20006,H2)","v":0},{"$f":"COUNTIFS($C$14:$C$20006,$B$2,$I$14:$I$20006,$B$3,$J$14:$J$20006,I2)","v":0},{"$f":"COUNTIFS($C$14:$C$20006,$B$2,$I$14:$I$20006,$B$3,$J$14:$J$20006,J2)","v":0},{"$f":"COUNTIFS($C$14:$C$20006,$B$2,$I$14:$I$20006,$B$3,$J$14:$J$20006,K2)","v":0},{"$f":"+SUM(G3:K3)","v":0},{"$f":"+J3+K3","v":0},{"$f":"+IF(L3=0,0,M3/L3)","v":0}]
[{"$nulls":3},"Atributo:","Profesionalidad",null,{"$f":"COUNTIFS($C$14:$C$20006,$B$2,$I$14:$I$20006,$B$3,$K$14:$K$20006,G2)","v":0},{"$f":"COUNTIFS($C$14:$C$20006,$B$2,$I$14:$I$20006,$B$3,$K$14:$K$20006,H2)","v":0},{"$f":"COUNTIFS($C$14:$C$20006,$B$2,$I$14:$I$20006,$B$3,$K$14:$K$20006,I2)","v":0},{"$f":"COUNTIFS($C$14:$C$20006,$B$2,$I$14:$I$20006,$B$3,$K$14:$K$20006,J2)","v":0},{"$f":"COUNTIFS($C$14:$C$20006,$B$2,$I$14:$I$20006,$B$3,$K$14:$K$20006,K2)","v":0},{"$f":"+SUM(G4:K4)","v":0},0,0]
["Servicio:","Hospitalización",null,"Atributo:","Amabilidad",null,{"$f":"COUNTIFS($C$14:$C$20006,$B$2,$I$14:$I$20006,$B$5,$J$14:$J$20006,G2)","v":0},{"$f":"COUNTIFS($C$14:$C$20006,$B$2,$I$14:$I$20006,$B$5,$J$14:$J$20006,H2)","v":0},{"$f":"COUNTIFS($C$14:$C$20006,$B$2,$I$14:$I$20006,$B$5,$J$14:$J$20006,I2)","v":0},{"$f":"COUNTIFS($C$14:$C$20006,$B$2,$I$14:$I$20006,$B$5,$J$14:$J$20006,J2)","v":0},{"$f":"COUNTIFS($C$14:$C$20006,$B$2,$I$14:$I$20006,$B$5,$J$14:$J$20006,K2)","v":0},0,0,0]
[{"$nulls":3},"Atributo:","Profesionalidad",null,{"$f":"COUNTIFS($C$14:$C$20006,$B$2,$I$14:$I$20006,$B$5,$K$14:$K$20006,G2)","v":0},{"$f":"COUNTIFS($C$14:$C$20006,$B$2,$I$14:$I$20006,$B$5,$K$14:$K$20006,H2)","v":0},{"$f":"COUNTIFS($C$14:$C$20006,$B$2,$I$14:$I$20006,$B$5,$K$14:$K$20006,I2)","v":0},{"$f":"COUNTIFS($C$14:$C$20006,$B$2,$I$14:$I$20006,$B$5,$K$14:$K$20006,J2)","v":0},{"$f":"COUNTIFS($C$14:$C$20006,$B$2,$I$14:$I$20006,$B$5,$K$14:$K$20006,K2)","v":0},0,0,0]
["Servicio:","Laboratorio",null,"Atributo:","Amabilidad",null,{"$f":"COUNTIFS($C$14:$C$20006,$B$2,$I$14:$I$20006,$B$7,$J$14:$J$20006,G2)","v":0},{"$f":"COUNTIFS($C$14:$C$20006,$B$2,$I$14:$I$20006,$B$7,$J$14:$J$20006,H2)","v":0},{"$f":"COUNTIFS($C$14:$C$20006,$B$2,$I$14:$I$20006,$B$7,$J$14:$J$20006,I2)","v":0},{"$f":"COUNTIFS($C$14:$C$20006,$B$2,$I$14:$I$20006,$B$7,$J$14:$J$20006,J2)","v":0},{"$f":"COUNTIFS($C$14:$C$20006,$B$2,$I$14:$I$20006,$B$7,$J$14:$J$20006,K2)","v":0},0,0,0]
[{"$nulls":3},"Atributo:","Profesionalidad",null,{"$f":"COUNTIFS($C$14:$C$20006,$B$2,$I$14:$I$20006,$B$7,$K$14:$K$20006,G2)","v":0},{"$f":"COUNTIFS($C$14:$C$20006,$B$2,$I$14:$I$20006,$B$7,$K$14:$K$20006,H2)","v":0},{"$f":"COUNTIFS($C$14:$C$20006,$B$2,$I$14:$I$20006,$B$7,$K$14:$K$20006,I2)","v":0},{"$f":"COUNTIFS($C$14:$C$20006,$B$2,$I$14:$I$20006,$B$7,$K$14:$K$20006,J2)","v":0},{"$f":"COUNTIFS($C$14:$C$20006,$B$2,$I$14:$I$20006,$B$7,$K$14:$K$20006,K2)","v":0},0,0,0]
["Servicio:","Imágenes",null,"Atributo:","Amabilidad",null,{"$f":"COUNTIFS($C$14:$C$20006,$B$2,$I$14:$I$20006,$B$9,$J$14:$J$20006,G2)","v":0},{"$f":"COUNTIFS($C$14:$C$20006,$B$2,$I$14:$I$20006,$B$9,$J$14:$J$20006,H2)","v":0},{"$f":"COUNTIFS($C$14:$C$20006,$B$2,$I$14:$I$20006,$B$9,$J$14:$J$20006,I2)","v":0},{"$f":"COUNTIFS($C$14:$C$20006,$B$2,$I$14:$I$20006,$B$9,$J$14:$J$20006,J2)","v":0},{"$f":"COUNTIFS($C$14:$C$20006,$B$2,$I$14:$I$20006,$B$9,$J$14:$J$20006,K2)","v":0},0,0,0]
[{"$nulls":3},"Atributo:","Profesionalidad",null,{"$f":"COUNTIFS($C$14:$C$20006,$B$2,$I$14:$I$20006,$B$9,$K$14:$K$20006,G2)","v":0},{"$f":"COUNTIFS($C$14:$C$20006,$B$2,$I$14:$I$20006,$B$9,$K$14:$K$20006,H2)","v":0},{"$f":"COUNTIFS($C$14:$C$20006,$B$2,$I$14:$I$20006,$B$9,$K$14:$K$20006,I2)","v":0},{"$f":"COUNTIFS($C$14:$C$20006,$B$2,$I$14:$I$20006,$B$9,$K$14:$K$20006,J2)","v":0},{"$f":"COUNTIFS($C$14:$C$20006,$B$2,$I$14:$I$20006,$B$9,$K$14:$K$20006,K2)","v":0},0,0,0]
[]
[{"$nulls":9},"Amabilidad","Profesionalidad"]
["Código","Formulario","Establecimiento","Fecha","Nivel de Atención","Municipio","Provincia","¿Recomendaría a otra persona atenderse en este establecimiento de salud?","Seleccione el servicio recibido","¿Cómo califica la amabilidad del personal que le atendió?","¿Cómo considera la profesionalidad del personal que le atendió?","¿Cómo considera la facilidad y rapidez del servicio brindado?","¿Cómo percibe el manejo de las informaciones del personal que le atendió?","¿Cómo considera el acceso a los servicios solicitados?","¿Cómo considera el tiempo para recibir los resultados de los estudios realizados?","¿Cómo considera la higiene y comodidad del espacio físico?","En general, ¿Cómo considera la calidad del servicio recibido?"]

{"sheet":"Febrero","index":3,"n_rows":13,"n_cols":17,"rows_kept":13,"merged":[[2,0,3,0],[2,1,3,2],[2,4,2,5],[3,4,3,5],[4,0,5,0],[4,1,5,2],[4,4,4,5],[5,4,5,5],[6,0,7,0],[6,1,7,2],[6,4,6,5],[7,4,7,5],[8,0,9,0],[8,1,9,2],[8,4,8,5],[9,4,9,5]]}
[]
["Hospital:","HOSPITAL REGIONAL DR. ALEJANDRO CABRAL",{"$nulls":4},"Muy Mala","Mala","Regular","Buena","Muy Buena","Total","B + MB","%"]
["Servicio:","Consulta Externa",null,"Atributo:","Amabilidad",null,{"$f":"COUNTIFS($C$14:$C$20006,$B$2,$I$14:$I$20006,$B$3,$J$14:$J$20006,G2)","v":0},{"$f":"COUNTIFS($C$14:$C$20006,$B$2,$I$14:$I$20006,$B$3,$J$14:$J$20006,H2)","v":0},{"$f":"COUNTIFS($C$14:$C$20006,$B$2,$I$14:$I$20006,$B$3,$J$14:$J$20006,I2)","v":0},{"$f":"COUNTIFS($C$14:$C$20006,$B$2,$I$14:$I$20006,$B$3,$J$14:$J$20006,J2)","v":0},{"$f":"COUNTIFS($C$14:$C$20006,$B$2,$I$14:$I$20006,$B$3,$J$14:$J$20006,K2)","v":0},{"$f":"+SUM(G3:K3)","v":0},{"$f":"+J3+K3","v":0},{"$f":"+IF(L3=0,0,M3/L3)","v":0}]
[{"$nulls":3},"Atributo:","Profesionalidad",null,{"$f":"COUNTIFS($C$14:$C$20006,$B$2,$I$14:$I$20006,$B$3,$K$14:$K$20006,G2)","v":0},{"$f":"COUNTIFS($C$14:$C$20006,$B$2,$I$14:$I$20006,$B$3,$K$14:$K$20006,H2)","v":0},{"$f":"COUNTIFS($C$14:$C$20006,$B$2,$I$14:$I$20006,$B$3,$K$14:$K$20006,I2)","v":0},{"$f":"COUNTIFS($C$14:$C$20006,$B$2,$I$14:$I$20006,$B$3,$K$14:$K$20006,J2)","v":0},{"$f":"COUNTIFS($C$14:$C$20006,$B$2,$I$14:$I$20006,$B$3,$K$14:$K$20006,K2)","v":0},{"$f":"+SUM(G4:K4)","v":0},0,0]
["Servicio:","Hospitalización",null,"Atributo:","Amabilidad",null,{"$f":"COUNTIFS($C$14:$C$20006,$B$2,$I$14:$I$20006,$B$5,$J$14:$J$20006,G2)","v":0},{"$f":"COUNTIFS($C$14:$C$20006,$B$2,$I$14:$I$20006,$B$5,$J$14:$J$20006,H2)","v":0},{"$f":"COUNTIFS($C$14:$C$20006,$B$2,$I$14:$I$20006,$B$5,$J$14:$J$20006,I2)","v":0},{"$f":"COUNTIFS($C$14:$C$20006,$B$2,$I$14:$I$20006,$B$5,$J$14:$J$20006,J2)","v":0},{"$f":"COUNTIFS($C$14:$C$20006,$B$2,$I$14:$I$20006,$B$5,$J$14:$J$20006,K2)","v":0},0,0,0]
[{"$nulls":3},"Atributo:","Profesionalidad",null,{"$f":"COUNTIFS($C$14:$C$20006,$B$2,$I$14:$I$20006,$B$5,$K$14:$K$20006,G2)","v":0},{"$f":"COUNTIFS($C$14:$C$20006,$B$2,$I$14:$I$20006,$B$5,$K$14:$K$20006,H2)","v":0},{"$f":"COUNTIFS($C$14:$C$20006,$B$2,$I$14:$I$20006,$B$5,$K$14:$K$20006,I2)","v":0},{"$f":"COUNTIFS($C$14:$C$20006,$B$2,$I$14:$I$20006,$B$5,$K$14:$K$20006,J2)","v":0},{"$f":"COUNTIFS($C$14:$C$20006,$B$2,$I$14:$I$20006,$B$5,$K$14:$K$20006,K2)","v":0},0,0,0]
["Servicio:","Laboratorio",null,"Atributo:","Amabilidad",null,{"$f":"COUNTIFS($C$14:$C$20006,$B$2,$I$14:$I$20006,$B$7,$J$14:$J$20006,G2)","v":0},{"$f":"COUNTIFS($C$14:$C$20006,$B$2,$I$14:$I$20006,$B$7,$J$14:$J$20006,H2)","v":0},{"$f":"COUNTIFS($C$14:$C$20006,$B$2,$I$14:$I$20006,$B$7,$J$14:$J$20006,I2)","v":0},{"$f":"COUNTIFS($C$14:$C$20006,$B$2,$I$14:$I$20006,$B$7,$J$14:$J$20006,J2)","v":0},{"$f":"COUNTIFS($C$14:$C$20006,$B$2,$I$14:$I$20006,$B$7,$J$14:$J$20006,K2)","v":0},0,0,0]
[{"$nulls":3},"Atributo:","Profesionalidad",null,{"$f":"COUNTIFS($C$14:$C$20006,$B$2,$I$14:$I$20006,$B$7,$K$14:$K$20006,G2)","v":0},{"$f":"COUNTIFS($C$14:$C$20006,$B$2,$I$14:$I$20006,$B$7,$K$14:$K$20006,H2)","v":0},{"$f":"COUNTIFS($C$14:$C$20006,$B$2,$I$14:$I$20006,$B$7,$K$14:$K$20006,I2)","v":0},{"$f":"COUNTIFS($C$14:$C$20006,$B$2,$I$14:$I$20006,$B$7,$K$14:$K$20006,J2)","v":0},{"$f":"COUNTIFS($C$14:$C$20006,$B$2,$I$14:$I$20006,$B$7,$K$14:$K$20006,K2)","v":0},0,0,0]
["Servicio:","Imágenes",null,"Atributo:","Amabilidad",null,{"$f":"COUNTIFS($C$14:$C$20006,$B$2,$I$14:$I$20006,$B$9,$J$14:$J$20006,G2)","v":0},{"$f":"COUNTIFS($C$14:$C$20006,$B$2,$I$14:$I$20006,$B$9,$J$14:$J$20006,H2)","v":0},{"$f":"COUNTIFS($C$14:$C$20006,$B$2,$I$14:$I$20006,$B$9,$J$14:$J$20006,I2)","v":0},{"$f":"COUNTIFS($C$14:$C$20006,$B$2,$I$14:$I$20006,$B$9,$J$14:$J$20006,J2)","v":0},{"$f":"COUNTIFS($C$14:$C$20006,$B$2,$I$14:$I$20006,$B$9,$J$14:$J$20006,K2)","v":0},0,0,0]
[{"$nulls":3},"Atributo:","Profesionalidad",null,{"$f":"COUNTIFS($C$14:$C$20006,$B$2,$I$14:$I$20006,$B$9,$K$14:$K$20006,G2)","v":0},{"$f":"COUNTIFS($C$14:$C$20006,$B$2,$I$14:$I$20006,$B$9,$K$14:$K$20006,H2)","v":0},{"$f":"COUNTIFS($C$14:$C$20006,$B$2,$I$14:$I$20006,$B$9,$K$14:$K$20006,I2)","v":0},{"$f":"COUNTIFS($C$14:$C$20006,$B$2,$I$14:$I$20006,$B$9,$K$14:$K$20006,J2)","v":0},{"$f":"COUNTIFS($C$14:$C$20006,$B$2,$I$14:$I$20006,$B$9,$K$14:$K$20006,K2)","v":0},0,0,0]
[]
[{"$nulls":9},"Amabilidad","Profesionalidad"]
["Código","Formulario","Establecimiento","Fecha","Nivel de Atención","Municipio","Provincia","¿Recomendaría a otra persona atenderse en este establecimiento de salud?","Seleccione el servicio recibido","¿Cómo califica la amabilidad del personal que le atendió?","¿Cómo considera la profesionalidad del personal que le atendió?","¿Cómo considera la facilidad y rapidez del servicio brindado?","¿Cómo percibe el manejo de las informaciones del personal que le atendió?","¿Cómo considera el acceso a los servicios solicitados?","¿Cómo considera el tiempo para recibir los resultados de los estudios realizados?","¿Cómo considera la higiene y comodidad del espacio físico?","En general, ¿Cómo considera la calidad del servicio recibido?"]

{"sheet":"Marzo","index":4,"n_rows":13,"n_cols":17,"rows_kept":13,"merged":[[2,0,3,0],[2,1,3,2],[2,4,2,5],[3,4,3,5],[4,0,5,0],[4,1,5,2],[4,4,4,5],[5,4,5,5],[6,0,7,0],[6,1,7,2],[6,4,6,5],[7,4,7,5],[8,0,9,0],[8,1,9,2],[8,4,8,5],[9,4,9,5]]}
[]
["Hospital:","HOSPITAL REGIONAL DR. ALEJANDRO CABRAL",{"$nulls":4},"Muy Mala","Mala","Regular","Buena","Muy Buena","Total","B + MB","%"]
["Servicio:","Consulta Externa",null,"Atributo:","Amabilidad",null,{"$f":"COUNTIFS($C$14:$C$20006,$B$2,$I$14:$I$20006,$B$3,$J$14:$J$20006,G2)","v":0},{"$f":"COUNTIFS($C$14:$C$20006,$B$2,$I$14:$I$20006,$B$3,$J$14:$J$20006,H2)","v":0},{"$f":"COUNTIFS($C$14:$C$20006,$B$2,$I$14:$I$20006,$B$3,$J$14:$J$20006,I2)","v":0},{"$f":"COUNTIFS($C$14:$C$20006,$B$2,$I$14:$I$20006,$B$3,$J$14:$J$20006,J2)","v":0},{"$f":"COUNTIFS($C$14:$C$20006,$B$2,$I$14:$I$20006,$B$3,$J$14:$J$20006,K2)","v":0},{"$f":"+SUM(G3:K3)","v":0},{"$f":"+J3+K3","v":0},{"$f":"+IF(L3=0,0,M3/L3)","v":0}]
[{"$nulls":3},"Atributo:","Profesionalidad",null,{"$f":"COUNTIFS($C$14:$C$20006,$B$2,$I$14:$I$20006,$B$3,$K$14:$K$20006,G2)","v":0},{"$f":"COUNTIFS($C$14:$C$20006,$B$2,$I$14:$I$20006,$B$3,$K$14:$K$20006,H2)","v":0},{"$f":"COUNTIFS($C$14:$C$20006,$B$2,$I$14:$I$20006,$B$3,$K$14:$K$20006,I2)","v":0},{"$f":"COUNTIFS($C$14:$C$20006,$B$2,$I$14:$I$20006,$B$3,$K$14:$K$20006,J2)","v":0},{"$f":"COUNTIFS($C$14:$C$20006,$B$2,$I$14:$I$20006,$B$3,$K$14:$K$20006,K2)","v":0},{"$f":"+SUM(G4:K4)","v":0},0,0]
["Servicio:","Hospitalización",null,"Atributo:","Amabilidad",null,{"$f":"COUNTIFS($C$14:$C$20006,$B$2,$I$14:$I$20006,$B$5,$J$14:$J$20006,G2)","v":0},{"$f":"COUNTIFS($C$14:$C$20006,$B$2,$I$14:$I$20006,$B$5,$J$14:$J$20006,H2)","v":0},{"$f":"COUNTIFS($C$14:$C$20006,$B$2,$I$14:$I$20006,$B$5,$J$14:$J$20006,I2)","v":0},{"$f":"COUNTIFS($C$14:$C$20006,$B$2,$I$14:$I$20006,$B$5,$J$14:$J$20006,J2)","v":0},{"$f":"COUNTIFS($C$14:$C$20006,$B$2,$I$14:$I$20006,$B$5,$J$14:$J$20006,K2)","v":0},0,0,0]
[{"$nulls":3},"Atributo:","Profesionalidad",null,{"$f":"COUNTIFS($C$14:$C$20006,$B$2,$I$14:$I$20006,$B$5,$K$14:$K$20006,G2)","v":0},{"$f":"COUNTIFS($C$14:$C$20006,$B$2,$I$14:$I$20006,$B$5,$K$14:$K$20006,H2)","v":0},{"$f":"COUNTIFS($C$14:$C$20006,$B$2,$I$14:$I$20006,$B$5,$K$14:$K$20006,I2)","v":0},{"$f":"COUNTIFS($C$14:$C$20006,$B$2,$I$14:$I$20006,$B$5,$K$14:$K$20006,J2)","v":0},{"$f":"COUNTIFS($C$14:$C$20006,$B$2,$I$14:$I$20006,$B$5,$K$14:$K$20006,K2)","v":0},0,0,0]
["Servicio:","Laboratorio",null,"Atributo:","Amabilidad",null,{"$f":"COUNTIFS($C$14:$C$20006,$B$2,$I$14:$I$20006,$B$7,$J$14:$J$20006,G2)","v":0},{"$f":"COUNTIFS($C$14:$C$20006,$B$2,$I$14:$I$20006,$B$7,$J$14:$J$20006,H2)","v":0},{"$f":"COUNTIFS($C$14:$C$20006,$B$2,$I$14:$I$20006,$B$7,$J$14:$J$20006,I2)","v":0},{"$f":"COUNTIFS($C$14:$C$20006,$B$2,$I$14:$I$20006,$B$7,$J$14:$J$20006,J2)","v":0},{"$f":"COUNTIFS($C$14:$C$20006,$B$2,$I$14:$I$20006,$B$7,$J$14:$J$20006,K2)","v":0},0,0,0]
[{"$nulls":3},"Atributo:","Profesionalidad",null,{"$f":"COUNTIFS($C$14:$C$20006,$B$2,$I$14:$I$20006,$B$7,$K$14:$K$20006,G2)","v":0},{"$f":"COUNTIFS($C$14:$C$20006,$B$2,$I$14:$I$20006,$B$7,$K$14:$K$20006,H2)","v":0},{"$f":"COUNTIFS($C$14:$C$20006,$B$2,$I$14:$I$20006,$B$7,$K$14:$K$20006,I2)","v":0},{"$f":"COUNTIFS($C$14:$C$20006,$B$2,$I$14:$I$20006,$B$7,$K$14:$K$20006,J2)","v":0},{"$f":"COUNTIFS($C$14:$C$20006,$B$2,$I$14:$I$20006,$B$7,$K$14:$K$20006,K2)","v":0},0,0,0]
["Servicio:","Imágenes",null,"Atributo:","Amabilidad",null,{"$f":"COUNTIFS($C$14:$C$20006,$B$2,$I$14:$I$20006,$B$9,$J$14:$J$20006,G2)","v":0},{"$f":"COUNTIFS($C$14:$C$20006,$B$2,$I$14:$I$20006,$B$9,$J$14:$J$20006,H2)","v":0},{"$f":"COUNTIFS($C$14:$C$20006,$B$2,$I$14:$I$20006,$B$9,$J$14:$J$20006,I2)","v":0},{"$f":"COUNTIFS($C$14:$C$20006,$B$2,$I$14:$I$20006,$B$9,$J$14:$J$20006,J2)","v":0},{"$f":"COUNTIFS($C$14:$C$20006,$B$2,$I$14:$I$20006,$B$9,$J$14:$J$20006,K2)","v":0},0,0,0]
[{"$nulls":3},"Atributo:","Profesionalidad",null,{"$f":"COUNTIFS($C$14:$C$20006,$B$2,$I$14:$I$20006,$B$9,$K$14:$K$20006,G2)","v":0},{"$f":"COUNTIFS($C$14:$C$20006,$B$2,$I$14:$I$20006,$B$9,$K$14:$K$20006,H2)","v":0},{"$f":"COUNTIFS($C$14:$C$20006,$B$2,$I$14:$I$20006,$B$9,$K$14:$K$20006,I2)","v":0},{"$f":"COUNTIFS($C$14:$C$20006,$B$2,$I$14:$I$20006,$B$9,$K$14:$K$20006,J2)","v":0},{"$f":"COUNTIFS($C$14:$C$20006,$B$2,$I$14:$I$20006,$B$9,$K$14:$K$20006,K2)","v":0},0,0,0]
[]
[{"$nulls":9},"Amabilidad","Profesionalidad"]
["Código","Formulario","Establecimiento","Fecha","Nivel de Atención","Municipio","Provincia","¿Recomendaría a otra persona atenderse en este establecimiento de salud?","Seleccione el servicio recibido","¿Cómo califica la amabilidad del personal que le atendió?","¿Cómo considera la profesionalidad del personal que le atendió?","¿Cómo considera la facilidad y rapidez del servicio brindado?","¿Cómo percibe el manejo de las informaciones del personal que le atendió?","¿Cómo considera el acceso a los servicios solicitados?","¿Cómo considera el tiempo para recibir los resultados de los estudios realizados?","¿Cómo considera la higiene y comodidad del espacio físico?","En general, ¿Cómo considera la calidad del servicio recibido?"]

{"sheet":"Abril","index":5,"n_rows":13,"n_cols":17,"rows_kept":13,"merged":[[2,0,3,0],[2,1,3,2],[2,4,2,5],[3,4,3,5],[4,0,5,0],[4,1,5,2],[4,4,4,5],[5,4,5,5],[6,0,7,0],[6,1,7,2],[6,4,6,5],[7,4,7,5],[8,0,9,0],[8,1,9,2],[8,4,8,5],[9,4,9,5]]}
[]
["Hospital:","HOSPITAL REGIONAL DR. ALEJANDRO CABRAL",{"$nulls":4},"Muy Mala","Mala","Regular","Buena","Muy Buena","Total","B + MB","%"]
["Servicio:","Consulta Externa",null,"Atributo:","Amabilidad",null,{"$f":"COUNTIFS($C$14:$C$20006,$B$2,$I$14:$I$20006,$B$3,$J$14:$J$20006,G2)","v":0},{"$f":"COUNTIFS($C$14:$C$20006,$B$2,$I$14:$I$20006,$B$3,$J$14:$J$20006,H2)","v":0},{"$f":"COUNTIFS($C$14:$C$20006,$B$2,$I$14:$I$20006,$B$3,$J$14:$J$20006,I2)","v":0},{"$f":"COUNTIFS($C$14:$C$20006,$B$2,$I$14:$I$20006,$B$3,$J$14:$J$20006,J2)","v":0},{"$f":"COUNTIFS($C$14:$C$20006,$B$2,$I$14:$I$20006,$B$3,$J$14:$J$20006,K2)","v":0},{"$f":"+SUM(G3:K3)","v":0},{"$f":"+J3+K3","v":0},{"$f":"+IF(L3=0,0,M3/L3)","v":0}]
[{"$nulls":3},"Atributo:","Profesionalidad",null,{"$f":"COUNTIFS($C$14:$C$20006,$B$2,$I$14:$I$20006,$B$3,$K$14:$K$20006,G2)","v":0},{"$f":"COUNTIFS($C$14:$C$20006,$B$2,$I$14:$I$20006,$B$3,$K$14:$K$20006,H2)","v":0},{"$f":"COUNTIFS($C$14:$C$20006,$B$2,$I$14:$I$20006,$B$3,$K$14:$K$20006,I2)","v":0},{"$f":"COUNTIFS($C$14:$C$20006,$B$2,$I$14:$I$20006,$B$3,$K$14:$K$20006,J2)","v":0},{"$f":"COUNTIFS($C$14:$C$20006,$B$2,$I$14:$I$20006,$B$3,$K$14:$K$20006,K2)","v":0},{"$f":"+SUM(G4:K4)","v":0},0,0]
["Servicio:","Hospitalización",null,"Atributo:","Amabilidad",null,{"$f":"COUNTIFS($C$14:$C$20006,$B$2,$I$14:$I$20006,$B$5,$J$14:$J$20006,G2)","v":0},{"$f":"COUNTIFS($C$14:$C$20006,$B$2,$I$14:$I$20006,$B$5,$J$14:$J$20006,H2)","v":0},{"$f":"COUNTIFS($C$14:$C$20006,$B$2,$I$14:$I$20006,$B$5,$J$14:$J$20006,I2)","v":0},{"$f":"COUNTIFS($C$14:$C$20006,$B$2,$I$14:$I$20006,$B$5,$J$14:$J$20006,J2)","v":0},{"$f":"COUNTIFS($C$14:$C$20006,$B$2,$I$14:$I$20006,$B$5,$J$14:$J$20006,K2)","v":0},0,0,0]
[{"$nulls":3},"Atributo:","Profesionalidad",null,{"$f":"COUNTIFS($C$14:$C$20006,$B$2,$I$14:$I$20006,$B$5,$K$14:$K$20006,G2)","v":0},{"$f":"COUNTIFS($C$14:$C$20006,$B$2,$I$14:$I$20006,$B$5,$K$14:$K$20006,H2)","v":0},{"$f":"COUNTIFS($C$14:$C$20006,$B$2,$I$14:$I$20006,$B$5,$K$14:$K$20006,I2)","v":0},{"$f":"COUNTIFS($C$14:$C$20006,$B$2,$I$14:$I$20006,$B$5,$K$14:$K$20006,J2)","v":0},{"$f":"COUNTIFS($C$14:$C$20006,$B$2,$I$14:$I$20006,$B$5,$K$14:$K$20006,K2)","v":0},0,0,0]
["Servicio:","Laboratorio",null,"Atributo:","Amabilidad",null,{"$f":"COUNTIFS($C$14:$C$20006,$B$2,$I$14:$I$20006,$B$7,$J$14:$J$20006,G2)","v":0},{"$f":"COUNTIFS($C$14:$C$20006,$B$2,$I$14:$I$20006,$B$7,$J$14:$J$20006,H2)","v":0},{"$f":"COUNTIFS($C$14:$C$20006,$B$2,$I$14:$I$20006,$B$7,$J$14:$J$20006,I2)","v":0},{"$f":"COUNTIFS($C$14:$C$20006,$B$2,$I$14:$I$20006,$B$7,$J$14:$J$20006,J2)","v":0},{"$f":"COUNTIFS($C$14:$C$20006,$B$2,$I$14:$I$20006,$B$7,$J$14:$J$20006,K2)","v":0},0,0,0]
[{"$nulls":3},"Atributo:","Profesionalidad",null,{"$f":"COUNTIFS($C$14:$C$20006,$B$2,$I$14:$I$20006,$B$7,$K$14:$K$20006,G2)","v":0},{"$f":"COUNTIFS($C$14:$C$20006,$B$2,$I$14:$I$20006,$B$7,$K$14:$K$20006,H2)","v":0},{"$f":"COUNTIFS($C$14:$C$20006,$B$2,$I$14:$I$20006,$B$7,$K$14:$K$20006,I2)","v":0},{"$f":"COUNTIFS($C$14:$C$20006,$B$2,$I$14:$I$20006,$B$7,$K$14:$K$20006,J2)","v":0},{"$f":"COUNTIFS($C$14:$C$20006,$B$2,$I$14:$I$20006,$B$7,$K$14:$K$20006,K2)","v":0},0,0,0]
["Servicio:","Imágenes",null,"Atributo:","Amabilidad",null,{"$f":"COUNTIFS($C$14:$C$20006,$B$2,$I$14:$I$20006,$B$9,$J$14:$J$20006,G2)","v":0},{"$f":"COUNTIFS($C$14:$C$20006,$B$2,$I$14:$I$20006,$B$9,$J$14:$J$20006,H2)","v":0},{"$f":"COUNTIFS($C$14:$C$20006,$B$2,$I$14:$I$20006,$B$9,$J$14:$J$20006,I2)","v":0},{"$f":"COUNTIFS($C$14:$C$20006,$B$2,$I$14:$I$20006,$B$9,$J$14:$J$20006,J2)","v":0},{"$f":"COUNTIFS($C$14:$C$20006,$B$2,$I$14:$I$20006,$B$9,$J$14:$J$20006,K2)","v":0},0,0,0]
[{"$nulls":3},"Atributo:","Profesionalidad",null,{"$f":"COUNTIFS($C$14:$C$20006,$B$2,$I$14:$I$20006,$B$9,$K$14:$K$20006,G2)","v":0},{"$f":"COUNTIFS($C$14:$C$20006,$B$2,$I$14:$I$20006,$B$9,$K$14:$K$20006,H2)","v":0},{"$f":"COUNTIFS($C$14:$C$20006,$B$2,$I$14:$I$20006,$B$9,$K$14:$K$20006,I2)","v":0},{"$f":"COUNTIFS($C$14:$C$20006,$B$2,$I$14:$I$20006,$B$9,$K$14:$K$20006,J2)","v":0},{"$f":"COUNTIFS($C$14:$C$20006,$B$2,$I$14:$I$20006,$B$9,$K$14:$K$20006,K2)","v":0},0,0,0]
[]
[{"$nulls":9},"Amabilidad","Profesionalidad"]
["Código","Formulario","Establecimiento","Fecha","Nivel de Atención","Municipio","Provincia","¿Recomendaría a otra persona atenderse en este establecimiento de salud?","Seleccione el servicio recibido","¿Cómo califica la amabilidad del personal que le atendió?","¿Cómo considera la profesionalidad del personal que le atendió?","¿Cómo considera la facilidad y rapidez del servicio brindado?","¿Cómo percibe el manejo de las informaciones del personal que le atendió?","¿Cómo considera el acceso a los servicios solicitados?","¿Cómo considera el tiempo para recibir los resultados de los estudios realizados?","¿Cómo considera la higiene y comodidad del espacio físico?","En general, ¿Cómo considera la calidad del servicio recibido?"]

{"sheet":"Mayo","index":6,"n_rows":13,"n_cols":17,"rows_kept":13,"merged":[[2,0,3,0],[2,1,3,2],[2,4,2,5],[3,4,3,5],[4,0,5,0],[4,1,5,2],[4,4,4,5],[5,4,5,5],[6,0,7,0],[6,1,7,2],[6,4,6,5],[7,4,7,5],[8,0,9,0],[8,1,9,2],[8,4,8,5],[9,4,9,5]]}
[]
["Hospital:","HOSPITAL REGIONAL DR. ALEJANDRO CABRAL",{"$nulls":4},"Muy Mala","Mala","Regular","Buena","Muy Buena","Total","B + MB","%"]
["Servicio:","Consulta Externa",null,"Atributo:","Amabilidad",null,{"$f":"COUNTIFS($C$14:$C$20006,$B$2,$I$14:$I$20006,$B$3,$J$14:$J$20006,G2)","v":0},{"$f":"COUNTIFS($C$14:$C$20006,$B$2,$I$14:$I$20006,$B$3,$J$14:$J$20006,H2)","v":0},{"$f":"COUNTIFS($C$14:$C$20006,$B$2,$I$14:$I$20006,$B$3,$J$14:$J$20006,I2)","v":0},{"$f":"COUNTIFS($C$14:$C$20006,$B$2,$I$14:$I$20006,$B$3,$J$14:$J$20006,J2)","v":0},{"$f":"COUNTIFS($C$14:$C$20006,$B$2,$I$14:$I$20006,$B$3,$J$14:$J$20006,K2)","v":0},{"$f":"+SUM(G3:K3)","v":0},{"$f":"+J3+K3","v":0},{"$f":"+IF(L3=0,0,M3/L3)","v":0}]
[{"$nulls":3},"Atributo:","Profesionalidad",null,{"$f":"COUNTIFS($C$14:$C$20006,$B$2,$I$14:$I$20006,$B$3,$K$14:$K$20006,G2)","v":0},{"$f":"COUNTIFS($C$14:$C$20006,$B$2,$I$14:$I$20006,$B$3,$K$14:$K$20006,H2)","v":0},{"$f":"COUNTIFS($C$14:$C$20006,$B$2,$I$14:$I$20006,$B$3,$K$14:$K$20006,I2)","v":0},{"$f":"COUNTIFS($C$14:$C$20006,$B$2,$I$14:$I$20006,$B$3,$K$14:$K$20006,J2)","v":0},{"$f":"COUNTIFS($C$14:$C$20006,$B$2,$I$14:$I$20006,$B$3,$K$14:$K$20006,K2)","v":0},{"$f":"+SUM(G4:K4)","v":0},0,0]
["Servicio:","Hospitalización",null,"Atributo:","Amabilidad",null,{"$f":"COUNTIFS($C$14:$C$20006,$B$2,$I$14:$I$20006,$B$5,$J$14:$J$20006,G2)","v":0},{"$f":"COUNTIFS($C$14:$C$20006,$B$2,$I$14:$I$20006,$B$5,$J$14:$J$20006,H2)","v":0},{"$f":"COUNTIFS($C$14:$C$20006,$B$2,$I$14:$I$20006,$B$5,$J$14:$J$20006,I2)","v":0},{"$f":"COUNTIFS($C$14:$C$20006,$B$2,$I$14:$I$20006,$B$5,$J$14:$J$20006,J2)","v":0},{"$f":"COUNTIFS($C$14:$C$20006,$B$2,$I$14:$I$20006,$B$5,$J$14:$J$20006,K2)","v":0},0,0,0]
[{"$nulls":3},"Atributo:","Profesionalidad",null,{"$f":"COUNTIFS($C$14:$C$20006,$B$2,$I$14:$I$20006,$B$5,$K$14:$K$20006,G2)","v":0},{"$f":"COUNTIFS($C$14:$C$20006,$B$2,$I$14:$I$20006,$B$5,$K$14:$K$20006,H2)","v":0},{"$f":"COUNTIFS($C$14:$C$20006,$B$2,$I$14:$I$20006,$B$5,$K$14:$K$20006,I2)","v":0},{"$f":"COUNTIFS($C$14:$C$20006,$B$2,$I$14:$I$20006,$B$5,$K$14:$K$20006,J2)","v":0},{"$f":"COUNTIFS($C$14:$C$20006,$B$2,$I$14:$I$20006,$B$5,$K$14:$K$20006,K2)","v":0},0,0,0]
["Servicio:","Laboratorio",null,"Atributo:","Amabilidad",null,{"$f":"COUNTIFS($C$14:$C$20006,$B$2,$I$14:$I$20006,$B$7,$J$14:$J$20006,G2)","v":0},{"$f":"COUNTIFS($C$14:$C$20006,$B$2,$I$14:$I$20006,$B$7,$J$14:$J$20006,H2)","v":0},{"$f":"COUNTIFS($C$14:$C$20006,$B$2,$I$14:$I$20006,$B$7,$J$14:$J$20006,I2)","v":0},{"$f":"COUNTIFS($C$14:$C$20006,$B$2,$I$14:$I$20006,$B$7,$J$14:$J$20006,J2)","v":0},{"$f":"COUNTIFS($C$14:$C$20006,$B$2,$I$14:$I$20006,$B$7,$J$14:$J$20006,K2)","v":0},0,0,0]
[{"$nulls":3},"Atributo:","Profesionalidad",null,{"$f":"COUNTIFS($C$14:$C$20006,$B$2,$I$14:$I$20006,$B$7,$K$14:$K$20006,G2)","v":0},{"$f":"COUNTIFS($C$14:$C$20006,$B$2,$I$14:$I$20006,$B$7,$K$14:$K$20006,H2)","v":0},{"$f":"COUNTIFS($C$14:$C$20006,$B$2,$I$14:$I$20006,$B$7,$K$14:$K$20006,I2)","v":0},{"$f":"COUNTIFS($C$14:$C$20006,$B$2,$I$14:$I$20006,$B$7,$K$14:$K$20006,J2)","v":0},{"$f":"COUNTIFS($C$14:$C$20006,$B$2,$I$14:$I$20006,$B$7,$K$14:$K$20006,K2)","v":0},0,0,0]
["Servicio:","Imágenes",null,"Atributo:","Amabilidad",null,{"$f":"COUNTIFS($C$14:$C$20006,$B$2,$I$14:$I$20006,$B$9,$J$14:$J$20006,G2)","v":0},{"$f":"COUNTIFS($C$14:$C$20006,$B$2,$I$14:$I$20006,$B$9,$J$14:$J$20006,H2)","v":0},{"$f":"COUNTIFS($C$14:$C$20006,$B$2,$I$14:$I$20006,$B$9,$J$14:$J$20006,I2)","v":0},{"$f":"COUNTIFS($C$14:$C$20006,$B$2,$I$14:$I$20006,$B$9,$J$14:$J$20006,J2)","v":0},{"$f":"COUNTIFS($C$14:$C$20006,$B$2,$I$14:$I$20006,$B$9,$J$14:$J$20006,K2)","v":0},0,0,0]
[{"$nulls":3},"Atributo:","Profesionalidad",null,{"$f":"COUNTIFS($C$14:$C$20006,$B$2,$I$14:$I$20006,$B$9,$K$14:$K$20006,G2)","v":0},{"$f":"COUNTIFS($C$14:$C$20006,$B$2,$I$14:$I$20006,$B$9,$K$14:$K$20006,H2)","v":0},{"$f":"COUNTIFS($C$14:$C$20006,$B$2,$I$14:$I$20006,$B$9,$K$14:$K$20006,I2)","v":0},{"$f":"COUNTIFS($C$14:$C$20006,$B$2,$I$14:$I$20006,$B$9,$K$14:$K$20006,J2)","v":0},{"$f":"COUNTIFS($C$14:$C$20006,$B$2,$I$14:$I$20006,$B$9,$K$14:$K$20006,K2)","v":0},0,0,0]
[]
[{"$nulls":9},"Amabilidad","Profesionalidad"]
["Código","Formulario","Establecimiento","Fecha","Nivel de Atención","Municipio","Provincia","¿Recomendaría a otra persona atenderse en este establecimiento de salud?","Seleccione el servicio recibido","¿Cómo califica la amabilidad del personal que le atendió?","¿Cómo considera la profesionalidad del personal que le atendió?","¿Cómo considera la facilidad y rapidez del servicio brindado?","¿Cómo percibe el manejo de las informaciones del personal que le atendió?","¿Cómo considera el acceso a los servicios solicitados?","¿Cómo considera el tiempo para recibir los resultados de los estudios realizados?","¿Cómo considera la higiene y comodidad del espacio físico?","En general, ¿Cómo considera la calidad del servicio recibido?"]

{"sheet":"Junio","index":7,"n_rows":13,"n_cols":17,"rows_kept":13,"merged":[[2,0,3,0],[2,1,3,2],[2,4,2,5],[3,4,3,5],[4,0,5,0],[4,1,5,2],[4,4,4,5],[5,4,5,5],[6,0,7,0],[6,1,7,2],[6,4,6,5],[7,4,7,5],[8,0,9,0],[8,1,9,2],[8,4,8,5],[9,4,9,5]]}
[]
["Hospital:","HOSPITAL REGIONAL DR. ALEJANDRO CABRAL",{"$nulls":4},"Muy Mala","Mala","Regular","Buena","Muy Buena","Total","B + MB","%"]
["Servicio:","Consulta Externa",null,"Atributo:","Amabilidad",null,{"$f":"COUNTIFS($C$14:$C$20006,$B$2,$I$14:$I$20006,$B$3,$J$14:$J$20006,G2)","v":0},{"$f":"COUNTIFS($C$14:$C$20006,$B$2,$I$14:$I$20006,$B$3,$J$14:$J$20006,H2)","v":0},{"$f":"COUNTIFS($C$14:$C$20006,$B$2,$I$14:$I$20006,$B$3,$J$14:$J$20006,I2)","v":0},{"$f":"COUNTIFS($C$14:$C$20006,$B$2,$I$14:$I$20006,$B$3,$J$14:$J$20006,J2)","v":0},{"$f":"COUNTIFS($C$14:$C$20006,$B$2,$I$14:$I$20006,$B$3,$J$14:$J$20006,K2)","v":0},{"$f":"+SUM(G3:K3)","v":0},{"$f":"+J3+K3","v":0},{"$f":"+IF(L3=0,0,M3/L3)","v":0}]
[{"$nulls":3},"Atributo:","Profesionalidad",null,{"$f":"COUNTIFS($C$14:$C$20006,$B$2,$I$14:$I$20006,$B$3,$K$14:$K$20006,G2)","v":0},{"$f":"COUNTIFS($C$14:$C$20006,$B$2,$I$14:$I$20006,$B$3,$K$14:$K$20006,H2)","v":0},{"$f":"COUNTIFS($C$14:$C$20006,$B$2,$I$14:$I$20006,$B$3,$K$14:$K$20006,I2)","v":0},{"$f":"COUNTIFS($C$14:$C$20006,$B$2,$I$14:$I$20006,$B$3,$K$14:$K$20006,J2)","v":0},{"$f":"COUNTIFS($C$14:$C$20006,$B$2,$I$14:$I$20006,$B$3,$K$14:$K$20006,K2)","v":0},{"$f":"+SUM(G4:K4)","v":0},0,0]
["Servicio:","Hospitalización",null,"Atributo:","Amabilidad",null,{"$f":"COUNTIFS($C$14:$C$20006,$B$2,$I$14:$I$20006,$B$5,$J$14:$J$20006,G2)","v":0},{"$f":"COUNTIFS($C$14:$C$20006,$B$2,$I$14:$I$20006,$B$5,$J$14:$J$20006,H2)","v":0},{"$f":"COUNTIFS($C$14:$C$20006,$B$2,$I$14:$I$20006,$B$5,$J$14:$J$20006,I2)","v":0},{"$f":"COUNTIFS($C$14:$C$20006,$B$2,$I$14:$I$20006,$B$5,$J$14:$J$20006,J2)","v":0},{"$f":"COUNTIFS($C$14:$C$20006,$B$2,$I$14:$I$20006,$B$5,$J$14:$J$20006,K2)","v":0},0,0,0]
[{"$nulls":3},"Atributo:","Profesionalidad",null,{"$f":"COUNTIFS($C$14:$C$20006,$B$2,$I$14:$I$20006,$B$5,$K$14:$K$20006,G2)","v":0},{"$f":"COUNTIFS($C$14:$C$20006,$B$2,$I$14:$I$20006,$B$5,$K$14:$K$20006,H2)","v":0},{"$f":"COUNTIFS($C$14:$C$20006,$B$2,$I$14:$I$20006,$B$5,$K$14:$K$20006,I2)","v":0},{"$f":"COUNTIFS($C$14:$C$20006,$B$2,$I$14:$I$20006,$B$5,$K$14:$K$20006,J2)","v":0},{"$f":"COUNTIFS($C$14:$C$20006,$B$2,$I$14:$I$20006,$B$5,$K$14:$K$20006,K2)","v":0},0,0,0]
["Servicio:","Laboratorio",null,"Atributo:","Amabilidad",null,{"$f":"COUNTIFS($C$14:$C$20006,$B$2,$I$14:$I$20006,$B$7,$J$14:$J$20006,G2)","v":0},{"$f":"COUNTIFS($C$14:$C$20006,$B$2,$I$14:$I$20006,$B$7,$J$14:$J$20006,H2)","v":0},{"$f":"COUNTIFS($C$14:$C$20006,$B$2,$I$14:$I$20006,$B$7,$J$14:$J$20006,I2)","v":0},{"$f":"COUNTIFS($C$14:$C$20006,$B$2,$I$14:$I$20006,$B$7,$J$14:$J$20006,J2)","v":0},{"$f":"COUNTIFS($C$14:$C$20006,$B$2,$I$14:$I$20006,$B$7,$J$14:$J$20006,K2)","v":0},0,0,0]
[{"$nulls":3},"Atributo:","Profesionalidad",null,{"$f":"COUNTIFS($C$14:$C$20006,$B$2,$I$14:$I$20006,$B$7,$K$14:$K$20006,G2)","v":0},{"$f":"COUNTIFS($C$14:$C$20006,$B$2,$I$14:$I$20006,$B$7,$K$14:$K$20006,H2)","v":0},{"$f":"COUNTIFS($C$14:$C$20006,$B$2,$I$14:$I$20006,$B$7,$K$14:$K$20006,I2)","v":0},{"$f":"COUNTIFS($C$14:$C$20006,$B$2,$I$14:$I$20006,$B$7,$K$14:$K$20006,J2)","v":0},{"$f":"COUNTIFS($C$14:$C$20006,$B$2,$I$14:$I$20006,$B$7,$K$14:$K$20006,K2)","v":0},0,0,0]
["Servicio:","Imágenes",null,"Atributo:","Amabilidad",null,{"$f":"COUNTIFS($C$14:$C$20006,$B$2,$I$14:$I$20006,$B$9,$J$14:$J$20006,G2)","v":0},{"$f":"COUNTIFS($C$14:$C$20006,$B$2,$I$14:$I$20006,$B$9,$J$14:$J$20006,H2)","v":0},{"$f":"COUNTIFS($C$14:$C$20006,$B$2,$I$14:$I$20006,$B$9,$J$14:$J$20006,I2)","v":0},{"$f":"COUNTIFS($C$14:$C$20006,$B$2,$I$14:$I$20006,$B$9,$J$14:$J$20006,J2)","v":0},{"$f":"COUNTIFS($C$14:$C$20006,$B$2,$I$14:$I$20006,$B$9,$J$14:$J$20006,K2)","v":0},0,0,0]
[{"$nulls":3},"Atributo:","Profesionalidad",null,{"$f":"COUNTIFS($C$14:$C$20006,$B$2,$I$14:$I$20006,$B$9,$K$14:$K$20006,G2)","v":0},{"$f":"COUNTIFS($C$14:$C$20006,$B$2,$I$14:$I$20006,$B$9,$K$14:$K$20006,H2)","v":0},{"$f":"COUNTIFS($C$14:$C$20006,$B$2,$I$14:$I$20006,$B$9,$K$14:$K$20006,I2)","v":0},{"$f":"COUNTIFS($C$14:$C$20006,$B$2,$I$14:$I$20006,$B$9,$K$14:$K$20006,J2)","v":0},{"$f":"COUNTIFS($C$14:$C$20006,$B$2,$I$14:$I$20006,$B$9,$K$14:$K$20006,K2)","v":0},0,0,0]
[]
[{"$nulls":9},"Amabilidad","Profesionalidad"]
["Código","Formulario","Establecimiento","Fecha","Nivel de Atención","Municipio","Provincia","¿Recomendaría a otra persona atenderse en este establecimiento de salud?","Seleccione el servicio recibido","¿Cómo califica la amabilidad del personal que le atendió?","¿Cómo considera la profesionalidad del personal que le atendió?","¿Cómo considera la facilidad y rapidez del servicio brindado?","¿Cómo percibe el manejo de las informaciones del personal que le atendió?","¿Cómo considera el acceso a los servicios solicitados?","¿Cómo considera el tiempo para recibir los resultados de los estudios realizados?","¿Cómo considera la higiene y comodidad del espacio físico?","En general, ¿Cómo considera la calidad del servicio recibido?"]

{"sheet":"Julio","index":8,"n_rows":13,"n_cols":17,"rows_kept":13,"merged":[[2,0,3,0],[2,1,3,2],[2,4,2,5],[3,4,3,5],[4,0,5,0],[4,1,5,2],[4,4,4,5],[5,4,5,5],[6,0,7,0],[6,1,7,2],[6,4,6,5],[7,4,7,5],[8,0,9,0],[8,1,9,2],[8,4,8,5],[9,4,9,5]]}
[]
["Hospital:","HOSPITAL REGIONAL DR. ALEJANDRO CABRAL",{"$nulls":4},"Muy Mala","Mala","Regular","Buena","Muy Buena","Total","B + MB","%"]
["Servicio:","Consulta Externa",null,"Atributo:","Amabilidad",null,{"$f":"COUNTIFS($C$14:$C$20006,$B$2,$I$14:$I$20006,$B$3,$J$14:$J$20006,G2)","v":0},{"$f":"COUNTIFS($C$14:$C$20006,$B$2,$I$14:$I$20006,$B$3,$J$14:$J$20006,H2)","v":0},{"$f":"COUNTIFS($C$14:$C$20006,$B$2,$I$14:$I$20006,$B$3,$J$14:$J$20006,I2)","v":0},{"$f":"COUNTIFS($C$14:$C$20006,$B$2,$I$14:$I$20006,$B$3,$J$14:$J$20006,J2)","v":0},{"$f":"COUNTIFS($C$14:$C$20006,$B$2,$I$14:$I$20006,$B$3,$J$14:$J$20006,K2)","v":0},{"$f":"+SUM(G3:K3)","v":0},{"$f":"+J3+K3","v":0},{"$f":"+IF(L3=0,0,M3/L3)","v":0}]
[{"$nulls":3},"Atributo:","Profesionalidad",null,{"$f":"COUNTIFS($C$14:$C$20006,$B$2,$I$14:$I$20006,$B$3,$K$14:$K$20006,G2)","v":0},{"$f":"COUNTIFS($C$14:$C$20006,$B$2,$I$14:$I$20006,$B$3,$K$14:$K$20006,H2)","v":0},{"$f":"COUNTIFS($C$14:$C$20006,$B$2,$I$14:$I$20006,$B$3,$K$14:$K$20006,I2)","v":0},{"$f":"COUNTIFS($C$14:$C$20006,$B$2,$I$14:$I$20006,$B$3,$K$14:$K$20006,J2)","v":0},{"$f":"COUNTIFS($C$14:$C$20006,$B$2,$I$14:$I$20006,$B$3,$K$14:$K$20006,K2)","v":0},{"$f":"+SUM(G4:K4)","v":0},0,{"$f":"+IF(L4=0,0,M4/L4)","v":0}]
["Servicio:","Hospitalización",null,"Atributo:","Amabilidad",null,{"$f":"COUNTIFS($C$14:$C$20006,$B$2,$I$14:$I$20006,$B$5,$J$14:$J$20006,G2)","v":0},{"$f":"COUNTIFS($C$14:$C$20006,$B$2,$I$14:$I$20006,$B$5,$J$14:$J$20006,H2)","v":0},{"$f":"COUNTIFS($C$14:$C$20006,$B$2,$I$14:$I$20006,$B$5,$J$14:$J$20006,I2)","v":0},{"$f":"COUNTIFS($C$14:$C$20006,$B$2,$I$14:$I$20006,$B$5,$J$14:$J$20006,J2)","v":0},{"$f":"COUNTIFS($C$14:$C$20006,$B$2,$I$14:$I$20006,$B$5,$J$14:$J$20006,K2)","v":0},0,0,0]
[{"$nulls":3},"Atributo:","Profesionalidad",null,{"$f":"COUNTIFS($C$14:$C$20006,$B$2,$I$14:$I$20006,$B$5,$K$14:$K$20006,G2)","v":0},{"$f":"COUNTIFS($C$14:$C$20006,$B$2,$I$14:$I$20006,$B$5,$K$14:$K$20006,H2)","v":0},{"$f":"COUNTIFS($C$14:$C$20006,$B$2,$I$14:$I$20006,$B$5,$K$14:$K$20006,I2)","v":0},{"$f":"COUNTIFS($C$14:$C$20006,$B$2,$I$14:$I$20006,$B$5,$K$14:$K$20006,J2)","v":0},{"$f":"COUNTIFS($C$14:$C$20006,$B$2,$I$14:$I$20006,$B$5,$K$14:$K$20006,K2)","v":0},0,0,0]
["Servicio:","Laboratorio",null,"Atributo:","Amabilidad",null,{"$f":"COUNTIFS($C$14:$C$20006,$B$2,$I$14:$I$20006,$B$7,$J$14:$J$20006,G2)","v":0},{"$f":"COUNTIFS($C$14:$C$20006,$B$2,$I$14:$I$20006,$B$7,$J$14:$J$20006,H2)","v":0},{"$f":"COUNTIFS($C$14:$C$20006,$B$2,$I$14:$I$20006,$B$7,$J$14:$J$20006,I2)","v":0},{"$f":"COUNTIFS($C$14:$C$20006,$B$2,$I$14:$I$20006,$B$7,$J$14:$J$20006,J2)","v":0},{"$f":"COUNTIFS($C$14:$C$20006,$B$2,$I$14:$I$20006,$B$7,$J$14:$J$20006,K2)","v":0},0,0,0]
[{"$nulls":3},"Atributo:","Profesionalidad",null,{"$f":"COUNTIFS($C$14:$C$20006,$B$2,$I$14:$I$20006,$B$7,$K$14:$K$20006,G2)","v":0},{"$f":"COUNTIFS($C$14:$C$20006,$B$2,$I$14:$I$20006,$B$7,$K$14:$K$20006,H2)","v":0},{"$f":"COUNTIFS($C$14:$C$20006,$B$2,$I$14:$I$20006,$B$7,$K$14:$K$20006,I2)","v":0},{"$f":"COUNTIFS($C$14:$C$20006,$B$2,$I$14:$I$20006,$B$7,$K$14:$K$20006,J2)","v":0},{"$f":"COUNTIFS($C$14:$C$20006,$B$2,$I$14:$I$20006,$B$7,$K$14:$K$20006,K2)","v":0},0,0,0]
["Servicio:","Imágenes",null,"Atributo:","Amabilidad",null,{"$f":"COUNTIFS($C$14:$C$20006,$B$2,$I$14:$I$20006,$B$9,$J$14:$J$20006,G2)","v":0},{"$f":"COUNTIFS($C$14:$C$20006,$B$2,$I$14:$I$20006,$B$9,$J$14:$J$20006,H2)","v":0},{"$f":"COUNTIFS($C$14:$C$20006,$B$2,$I$14:$I$20006,$B$9,$J$14:$J$20006,I2)","v":0},{"$f":"COUNTIFS($C$14:$C$20006,$B$2,$I$14:$I$20006,$B$9,$J$14:$J$20006,J2)","v":0},{"$f":"COUNTIFS($C$14:$C$20006,$B$2,$I$14:$I$20006,$B$9,$J$14:$J$20006,K2)","v":0},0,0,0]
[{"$nulls":3},"Atributo:","Profesionalidad",null,{"$f":"COUNTIFS($C$14:$C$20006,$B$2,$I$14:$I$20006,$B$9,$K$14:$K$20006,G2)","v":0},{"$f":"COUNTIFS($C$14:$C$20006,$B$2,$I$14:$I$20006,$B$9,$K$14:$K$20006,H2)","v":0},{"$f":"COUNTIFS($C$14:$C$20006,$B$2,$I$14:$I$20006,$B$9,$K$14:$K$20006,I2)","v":0},{"$f":"COUNTIFS($C$14:$C$20006,$B$2,$I$14:$I$20006,$B$9,$K$14:$K$20006,J2)","v":0},{"$f":"COUNTIFS($C$14:$C$20006,$B$2,$I$14:$I$20006,$B$9,$K$14:$K$20006,K2)","v":0},0,0,0]
[]
[{"$nulls":9},"Amabilidad","Profesionalidad"]
["Código","Formulario","Establecimiento","Fecha","Nivel de Atención","Municipio","Provincia","¿Recomendaría a otra persona atenderse en este establecimiento de salud?","Seleccione el servicio recibido","¿Cómo califica la amabilidad del personal que le atendió?","¿Cómo considera la profesionalidad del personal que le atendió?","¿Cómo considera la facilidad y rapidez del servicio brindado?","¿Cómo percibe el manejo de las informaciones del personal que le atendió?","¿Cómo considera el acceso a los servicios solicitados?","¿Cómo considera el tiempo para recibir los resultados de los estudios realizados?","¿Cómo considera la higiene y comodidad del espacio físico?","En general, ¿Cómo considera la calidad del servicio recibido?"]

{"sheet":"Agosto","index":9,"n_rows":13,"n_cols":17,"rows_kept":13,"merged":[[2,0,3,0],[2,1,3,2],[2,4,2,5],[3,4,3,5],[4,0,5,0],[4,1,5,2],[4,4,4,5],[5,4,5,5],[6,0,7,0],[6,1,7,2],[6,4,6,5],[7,4,7,5],[8,0,9,0],[8,1,9,2],[8,4,8,5],[9,4,9,5]]}
[]
["Hospital:","HOSPITAL REGIONAL DR. ALEJANDRO CABRAL",{"$nulls":4},"Muy Mala","Mala","Regular","Buena","Muy Buena","Total","B + MB","%"]
["Servicio:","Consulta Externa",null,"Atributo:","Amabilidad",null,{"$f":"COUNTIFS($C$14:$C$20006,$B$2,$I$14:$I$20006,$B$3,$J$14:$J$20006,G2)","v":0},{"$f":"COUNTIFS($C$14:$C$20006,$B$2,$I$14:$I$20006,$B$3,$J$14:$J$20006,H2)","v":0},{"$f":"COUNTIFS($C$14:$C$20006,$B$2,$I$14:$I$20006,$B$3,$J$14:$J$20006,I2)","v":0},{"$f":"COUNTIFS($C$14:$C$20006,$B$2,$I$14:$I$20006,$B$3,$J$14:$J$20006,J2)","v":0},{"$f":"COUNTIFS($C$14:$C$20006,$B$2,$I$14:$I$20006,$B$3,$J$14:$J$20006,K2)","v":0},{"$f":"+SUM(G3:K3)","v":0},{"$f":"+J3+K3","v":0},{"$f":"+IF(L3=0,0,M3/L3)","v":0}]
[{"$nulls":3},"Atributo:","Profesionalidad",null,{"$f":"COUNTIFS($C$14:$C$20006,$B$2,$I$14:$I$20006,$B$3,$K$14:$K$20006,G2)","v":0},{"$f":"COUNTIFS($C$14:$C$20006,$B$2,$I$14:$I$20006,$B$3,$K$14:$K$20006,H2)","v":0},{"$f":"COUNTIFS($C$14:$C$20006,$B$2,$I$14:$I$20006,$B$3,$K$14:$K$20006,I2)","v":0},{"$f":"COUNTIFS($C$14:$C$20006,$B$2,$I$14:$I$20006,$B$3,$K$14:$K$20006,J2)","v":0},{"$f":"COUNTIFS($C$14:$C$20006,$B$2,$I$14:$I$20006,$B$3,$K$14:$K$20006,K2)","v":0},{"$f":"+SUM(G4:K4)","v":0},0,0]
["Servicio:","Hospitalización",null,"Atributo:","Amabilidad",null,{"$f":"COUNTIFS($C$14:$C$20006,$B$2,$I$14:$I$20006,$B$5,$J$14:$J$20006,G2)","v":0},{"$f":"COUNTIFS($C$14:$C$20006,$B$2,$I$14:$I$20006,$B$5,$J$14:$J$20006,H2)","v":0},{"$f":"COUNTIFS($C$14:$C$20006,$B$2,$I$14:$I$20006,$B$5,$J$14:$J$20006,I2)","v":0},{"$f":"COUNTIFS($C$14:$C$20006,$B$2,$I$14:$I$20006,$B$5,$J$14:$J$20006,J2)","v":0},{"$f":"COUNTIFS($C$14:$C$20006,$B$2,$I$14:$I$20006,$B$5,$J$14:$J$20006,K2)","v":0},0,0,0]
[{"$nulls":3},"Atributo:","Profesionalidad",null,{"$f":"COUNTIFS($C$14:$C$20006,$B$2,$I$14:$I$20006,$B$5,$K$14:$K$20006,G2)","v":0},{"$f":"COUNTIFS($C$14:$C$20006,$B$2,$I$14:$I$20006,$B$5,$K$14:$K$20006,H2)","v":0},{"$f":"COUNTIFS($C$14:$C$20006,$B$2,$I$14:$I$20006,$B$5,$K$14:$K$20006,I2)","v":0},{"$f":"COUNTIFS($C$14:$C$20006,$B$2,$I$14:$I$20006,$B$5,$K$14:$K$20006,J2)","v":0},{"$f":"COUNTIFS($C$14:$C$20006,$B$2,$I$14:$I$20006,$B$5,$K$14:$K$20006,K2)","v":0},0,0,0]
["Servicio:","Laboratorio",null,"Atributo:","Amabilidad",null,{"$f":"COUNTIFS($C$14:$C$20006,$B$2,$I$14:$I$20006,$B$7,$J$14:$J$20006,G2)","v":0},{"$f":"COUNTIFS($C$14:$C$20006,$B$2,$I$14:$I$20006,$B$7,$J$14:$J$20006,H2)","v":0},{"$f":"COUNTIFS($C$14:$C$20006,$B$2,$I$14:$I$20006,$B$7,$J$14:$J$20006,I2)","v":0},{"$f":"COUNTIFS($C$14:$C$20006,$B$2,$I$14:$I$20006,$B$7,$J$14:$J$20006,J2)","v":0},{"$f":"COUNTIFS($C$14:$C$20006,$B$2,$I$14:$I$20006,$B$7,$J$14:$J$20006,K2)","v":0},0,0,0]
[{"$nulls":3},"Atributo:","Profesionalidad",null,{"$f":"COUNTIFS($C$14:$C$20006,$B$2,$I$14:$I$20006,$B$7,$K$14:$K$20006,G2)","v":0},{"$f":"COUNTIFS($C$14:$C$20006,$B$2,$I$14:$I$20006,$B$7,$K$14:$K$20006,H2)","v":0},{"$f":"COUNTIFS($C$14:$C$20006,$B$2,$I$14:$I$20006,$B$7,$K$14:$K$20006,I2)","v":0},{"$f":"COUNTIFS($C$14:$C$20006,$B$2,$I$14:$I$20006,$B$7,$K$14:$K$20006,J2)","v":0},{"$f":"COUNTIFS($C$14:$C$20006,$B$2,$I$14:$I$20006,$B$7,$K$14:$K$20006,K2)","v":0},0,0,0]
["Servicio:","Imágenes",null,"Atributo:","Amabilidad",null,{"$f":"COUNTIFS($C$14:$C$20006,$B$2,$I$14:$I$20006,$B$9,$J$14:$J$20006,G2)","v":0},{"$f":"COUNTIFS($C$14:$C$20006,$B$2,$I$14:$I$20006,$B$9,$J$14:$J$20006,H2)","v":0},{"$f":"COUNTIFS($C$14:$C$20006,$B$2,$I$14:$I$20006,$B$9,$J$14:$J$20006,I2)","v":0},{"$f":"COUNTIFS($C$14:$C$20006,$B$2,$I$14:$I$20006,$B$9,$J$14:$J$20006,J2)","v":0},{"$f":"COUNTIFS($C$14:$C$20006,$B$2,$I$14:$I$20006,$B$9,$J$14:$J$20006,K2)","v":0},0,0,0]
[{"$nulls":3},"Atributo:","Profesionalidad",null,{"$f":"COUNTIFS($C$14:$C$20006,$B$2,$I$14:$I$20006,$B$9,$K$14:$K$20006,G2)","v":0},{"$f":"COUNTIFS($C$14:$C$20006,$B$2,$I$14:$I$20006,$B$9,$K$14:$K$20006,H2)","v":0},{"$f":"COUNTIFS($C$14:$C$20006,$B$2,$I$14:$I$20006,$B$9,$K$14:$K$20006,I2)","v":0},{"$f":"COUNTIFS($C$14:$C$20006,$B$2,$I$14:$I$20006,$B$9,$K$14:$K$20006,J2)","v":0},{"$f":"COUNTIFS($C$14:$C$20006,$B$2,$I$14:$I$20006,$B$9,$K$14:$K$20006,K2)","v":0},0,0,0]
[]
[{"$nulls":9},"Amabilidad","Profesionalidad"]
["Código","Formulario","Establecimiento","Fecha","Nivel de Atención","Municipio","Provincia","¿Recomendaría a otra persona atenderse en este establecimiento de salud?","Seleccione el servicio recibido","¿Cómo califica la amabilidad del personal que le atendió?","¿Cómo considera la profesionalidad del personal que le atendió?","¿Cómo considera la facilidad y rapidez del servicio brindado?","¿Cómo percibe el manejo de las informaciones del personal que le atendió?","¿Cómo considera el acceso a los servicios solicitados?","¿Cómo considera el tiempo para recibir los resultados de los estudios realizados?","¿Cómo considera la higiene y comodidad del espacio físico?","En general, ¿Cómo considera la calidad del servicio recibido?"]

{"sheet":"Septiembre","index":10,"n_rows":13,"n_cols":17,"rows_kept":13,"merged":[[2,0,3,0],[2,1,3,2],[2,4,2,5],[3,4,3,5],[4,0,5,0],[4,1,5,2],[4,4,4,5],[5,4,5,5],[6,0,7,0],[6,1,7,2],[6,4,6,5],[7,4,7,5],[8,0,9,0],[8,1,9,2],[8,4,8,5],[9,4,9,5]]}
[]
["Hospital:","HOSPITAL REGIONAL DR. ALEJANDRO CABRAL",{"$nulls":4},"Muy Mala","Mala","Regular","Buena","Muy Buena","Total","B + MB","%"]
["Servicio:","Consulta Externa",null,"Atributo:","Amabilidad",null,{"$f":"COUNTIFS($C$14:$C$20006,$B$2,$I$14:$I$20006,$B$3,$J$14:$J$20006,G2)","v":0},{"$f":"COUNTIFS($C$14:$C$20006,$B$2,$I$14:$I$20006,$B$3,$J$14:$J$20006,H2)","v":0},{"$f":"COUNTIFS($C$14:$C$20006,$B$2,$I$14:$I$20006,$B$3,$J$14:$J$20006,I2)","v":0},{"$f":"COUNTIFS($C$14:$C$20006,$B$2,$I$14:$I$20006,$B$3,$J$14:$J$20006,J2)","v":0},{"$f":"COUNTIFS($C$14:$C$20006,$B$2,$I$14:$I$20006,$B$3,$J$14:$J$20006,K2)","v":0},{"$f":"+SUM(G3:K3)","v":0},{"$f":"+J3+K3","v":0},{"$f":"+IF(L3=0,0,M3/L3)","v":0}]
[{"$nulls":3},"Atributo:","Profesionalidad",null,{"$f":"COUNTIFS($C$14:$C$20006,$B$2,$I$14:$I$20006,$B$3,$K$14:$K$20006,G2)","v":0},{"$f":"COUNTIFS($C$14:$C$20006,$B$2,$I$14:$I$20006,$B$3,$K$14:$K$20006,H2)","v":0},{"$f":"COUNTIFS($C$14:$C$20006,$B$2,$I$14:$I$20006,$B$3,$K$14:$K$20006,I2)","v":0},{"$f":"COUNTIFS($C$14:$C$20006,$B$2,$I$14:$I$20006,$B$3,$K$14:$K$20006,J2)","v":0},{"$f":"COUNTIFS($C$14:$C$20006,$B$2,$I$14:$I$20006,$B$3,$K$14:$K$20006,K2)","v":0},{"$f":"+SUM(G4:K4)","v":0},0,0]
["Servicio:","Hospitalización",null,"Atributo:","Amabilidad",null,{"$f":"COUNTIFS($C$14:$C$20006,$B$2,$I$14:$I$20006,$B$5,$J$14:$J$20006,G2)","v":0},{"$f":"COUNTIFS($C$14:$C$20006,$B$2,$I$14:$I$20006,$B$5,$J$14:$J$20006,H2)","v":0},{"$f":"COUNTIFS($C$14:$C$20006,$B$2,$I$14:$I$20006,$B$5,$J$14:$J$20006,I2)","v":0},{"$f":"COUNTIFS($C$14:$C$20006,$B$2,$I$14:$I$20006,$B$5,$J$14:$J$20006,J2)","v":0},{"$f":"COUNTIFS($C$14:$C$20006,$B$2,$I$14:$I$20006,$B$5,$J$14:$J$20006,K2)","v":0},0,0,0]
[{"$nulls":3},"Atributo:","Profesionalidad",null,{"$f":"COUNTIFS($C$14:$C$20006,$B$2,$I$14:$I$20006,$B$5,$K$14:$K$20006,G2)","v":0},{"$f":"COUNTIFS($C$14:$C$20006,$B$2,$I$14:$I$20006,$B$5,$K$14:$K$20006,H2)","v":0},{"$f":"COUNTIFS($C$14:$C$20006,$B$2,$I$14:$I$20006,$B$5,$K$14:$K$20006,I2)","v":0},{"$f":"COUNTIFS($C$14:$C$20006,$B$2,$I$14:$I$20006,$B$5,$K$14:$K$20006,J2)","v":0},{"$f":"COUNTIFS($C$14:$C$20006,$B$2,$I$14:$I$20006,$B$5,$K$14:$K$20006,K2)","v":0},0,0,0]
["Servicio:","Laboratorio",null,"Atributo:","Amabilidad",null,{"$f":"COUNTIFS($C$14:$C$20006,$B$2,$I$14:$I$20006,$B$7,$J$14:$J$20006,G2)","v":0},{"$f":"COUNTIFS($C$14:$C$20006,$B$2,$I$14:$I$20006,$B$7,$J$14:$J$20006,H2)","v":0},{"$f":"COUNTIFS($C$14:$C$20006,$B$2,$I$14:$I$20006,$B$7,$J$14:$J$20006,I2)","v":0},{"$f":"COUNTIFS($C$14:$C$20006,$B$2,$I$14:$I$20006,$B$7,$J$14:$J$20006,J2)","v":0},{"$f":"COUNTIFS($C$14:$C$20006,$B$2,$I$14:$I$20006,$B$7,$J$14:$J$20006,K2)","v":0},0,0,0]
[{"$nulls":3},"Atributo:","Profesionalidad",null,{"$f":"COUNTIFS($C$14:$C$20006,$B$2,$I$14:$I$20006,$B$7,$K$14:$K$20006,G2)","v":0},{"$f":"COUNTIFS($C$14:$C$20006,$B$2,$I$14:$I$20006,$B$7,$K$14:$K$20006,H2)","v":0},{"$f":"COUNTIFS($C$14:$C$20006,$B$2,$I$14:$I$20006,$B$7,$K$14:$K$20006,I2)","v":0},{"$f":"COUNTIFS($C$14:$C$20006,$B$2,$I$14:$I$20006,$B$7,$K$14:$K$20006,J2)","v":0},{"$f":"COUNTIFS($C$14:$C$20006,$B$2,$I$14:$I$20006,$B$7,$K$14:$K$20006,K2)","v":0},0,0,0]
["Servicio:","Imágenes",null,"Atributo:","Amabilidad",null,{"$f":"COUNTIFS($C$14:$C$20006,$B$2,$I$14:$I$20006,$B$9,$J$14:$J$20006,G2)","v":0},{"$f":"COUNTIFS($C$14:$C$20006,$B$2,$I$14:$I$20006,$B$9,$J$14:$J$20006,H2)","v":0},{"$f":"COUNTIFS($C$14:$C$20006,$B$2,$I$14:$I$20006,$B$9,$J$14:$J$20006,I2)","v":0},{"$f":"COUNTIFS($C$14:$C$20006,$B$2,$I$14:$I$20006,$B$9,$J$14:$J$20006,J2)","v":0},{"$f":"COUNTIFS($C$14:$C$20006,$B$2,$I$14:$I$20006,$B$9,$J$14:$J$20006,K2)","v":0},0,0,0]
[{"$nulls":3},"Atributo:","Profesionalidad",null,{"$f":"COUNTIFS($C$14:$C$20006,$B$2,$I$14:$I$20006,$B$9,$K$14:$K$20006,G2)","v":0},{"$f":"COUNTIFS($C$14:$C$20006,$B$2,$I$14:$I$20006,$B$9,$K$14:$K$20006,H2)","v":0},{"$f":"COUNTIFS($C$14:$C$20006,$B$2,$I$14:$I$20006,$B$9,$K$14:$K$20006,I2)","v":0},{"$f":"COUNTIFS($C$14:$C$20006,$B$2,$I$14:$I$20006,$B$9,$K$14:$K$20006,J2)","v":0},{"$f":"COUNTIFS($C$14:$C$20006,$B$2,$I$14:$I$20006,$B$9,$K$14:$K$20006,K2)","v":0},0,0,0]
[]
[{"$nulls":9},"Amabilidad","Profesionalidad"]
["Código","Formulario","Establecimiento","Fecha","Nivel de Atención","Municipio","Provincia","¿Recomendaría a otra persona atenderse en este establecimiento de salud?","Seleccione el servicio recibido","¿Cómo califica la amabilidad del personal que le atendió?","¿Cómo considera la profesionalidad del personal que le atendió?","¿Cómo considera la facilidad y rapidez del servicio brindado?","¿Cómo percibe el manejo de las informaciones del personal que le atendió?","¿Cómo considera el acceso a los servicios solicitados?","¿Cómo considera el tiempo para recibir los resultados de los estudios realizados?","¿Cómo considera la higiene y comodidad del espacio físico?","En general, ¿Cómo considera la calidad del servicio recibido?"]

{"sheet":"Octubre","index":11,"n_rows":13,"n_cols":17,"rows_kept":13,"merged":[[2,0,3,0],[2,1,3,2],[2,4,2,5],[3,4,3,5],[4,0,5,0],[4,1,5,2],[4,4,4,5],[5,4,5,5],[6,0,7,0],[6,1,7,2],[6,4,6,5],[7,4,7,5],[8,0,9,0],[8,1,9,2],[8,4,8,5],[9,4,9,5]]}
[]
["Hospital:","HOSPITAL REGIONAL DR. ALEJANDRO CABRAL",{"$nulls":4},"Muy Mala","Mala","Regular","Buena","Muy Buena","Total","B + MB","%"]
["Servicio:","Consulta Externa",null,"Atributo:","Amabilidad",null,{"$f":"COUNTIFS($C$14:$C$20006,$B$2,$I$14:$I$20006,$B$3,$J$14:$J$20006,G2)","v":0},{"$f":"COUNTIFS($C$14:$C$20006,$B$2,$I$14:$I$20006,$B$3,$J$14:$J$20006,H2)","v":0},{"$f":"COUNTIFS($C$14:$C$20006,$B$2,$I$14:$I$20006,$B$3,$J$14:$J$20006,I2)","v":0},{"$f":"COUNTIFS($C$14:$C$20006,$B$2,$I$14:$I$20006,$B$3,$J$14:$J$20006,J2)","v":0},{"$f":"COUNTIFS($C$14:$C$20006,$B$2,$I$14:$I$20006,$B$3,$J$14:$J$20006,K2)","v":0},{"$f":"+SUM(G3:K3)","v":0},{"$f":"+J3+K3","v":0},{"$f":"+IF(L3=0,0,M3/L3)","v":0}]
[{"$nulls":3},"Atributo:","Profesionalidad",null,{"$f":"COUNTIFS($C$14:$C$20006,$B$2,$I$14:$I$20006,$B$3,$K$14:$K$20006,G2)","v":0},{"$f":"COUNTIFS($C$14:$C$20006,$B$2,$I$14:$I$20006,$B$3,$K$14:$K$20006,H2)","v":0},{"$f":"COUNTIFS($C$14:$C$20006,$B$2,$I$14:$I$20006,$B$3,$K$14:$K$20006,I2)","v":0},{"$f":"COUNTIFS($C$14:$C$20006,$B$2,$I$14:$I$20006,$B$3,$K$14:$K$20006,J2)","v":0},{"$f":"COUNTIFS($C$14:$C$20006,$B$2,$I$14:$I$20006,$B$3,$K$14:$K$20006,K2)","v":0},{"$f":"+SUM(G4:K4)","v":0},0,0]
["Servicio:","Hospitalización",null,"Atributo:","Amabilidad",null,{"$f":"COUNTIFS($C$14:$C$20006,$B$2,$I$14:$I$20006,$B$5,$J$14:$J$20006,G2)","v":0},{"$f":"COUNTIFS($C$14:$C$20006,$B$2,$I$14:$I$20006,$B$5,$J$14:$J$20006,H2)","v":0},{"$f":"COUNTIFS($C$14:$C$20006,$B$2,$I$14:$I$20006,$B$5,$J$14:$J$20006,I2)","v":0},{"$f":"COUNTIFS($C$14:$C$20006,$B$2,$I$14:$I$20006,$B$5,$J$14:$J$20006,J2)","v":0},{"$f":"COUNTIFS($C$14:$C$20006,$B$2,$I$14:$I$20006,$B$5,$J$14:$J$20006,K2)","v":0},0,0,0]
[{"$nulls":3},"Atributo:","Profesionalidad",null,{"$f":"COUNTIFS($C$14:$C$20006,$B$2,$I$14:$I$20006,$B$5,$K$14:$K$20006,G2)","v":0},{"$f":"COUNTIFS($C$14:$C$20006,$B$2,$I$14:$I$20006,$B$5,$K$14:$K$20006,H2)","v":0},{"$f":"COUNTIFS($C$14:$C$20006,$B$2,$I$14:$I$20006,$B$5,$K$14:$K$20006,I2)","v":0},{"$f":"COUNTIFS($C$14:$C$20006,$B$2,$I$14:$I$20006,$B$5,$K$14:$K$20006,J2)","v":0},{"$f":"COUNTIFS($C$14:$C$20006,$B$2,$I$14:$I$20006,$B$5,$K$14:$K$20006,K2)","v":0},0,0,0]
["Servicio:","Laboratorio",null,"Atributo:","Amabilidad",null,{"$f":"COUNTIFS($C$14:$C$20006,$B$2,$I$14:$I$20006,$B$7,$J$14:$J$20006,G2)","v":0},{"$f":"COUNTIFS($C$14:$C$20006,$B$2,$I$14:$I$20006,$B$7,$J$14:$J$20006,H2)","v":0},{"$f":"COUNTIFS($C$14:$C$20006,$B$2,$I$14:$I$20006,$B$7,$J$14:$J$20006,I2)","v":0},{"$f":"COUNTIFS($C$14:$C$20006,$B$2,$I$14:$I$20006,$B$7,$J$14:$J$20006,J2)","v":0},{"$f":"COUNTIFS($C$14:$C$20006,$B$2,$I$14:$I$20006,$B$7,$J$14:$J$20006,K2)","v":0},0,0,0]
[{"$nulls":3},"Atributo:","Profesionalidad",null,{"$f":"COUNTIFS($C$14:$C$20006,$B$2,$I$14:$I$20006,$B$7,$K$14:$K$20006,G2)","v":0},{"$f":"COUNTIFS($C$14:$C$20006,$B$2,$I$14:$I$20006,$B$7,$K$14:$K$20006,H2)","v":0},{"$f":"COUNTIFS($C$14:$C$20006,$B$2,$I$14:$I$20006,$B$7,$K$14:$K$20006,I2)","v":0},{"$f":"COUNTIFS($C$14:$C$20006,$B$2,$I$14:$I$20006,$B$7,$K$14:$K$20006,J2)","v":0},{"$f":"COUNTIFS($C$14:$C$20006,$B$2,$I$14:$I$20006,$B$7,$K$14:$K$20006,K2)","v":0},0,0,0]
["Servicio:","Imágenes",null,"Atributo:","Amabilidad",null,{"$f":"COUNTIFS($C$14:$C$20006,$B$2,$I$14:$I$20006,$B$9,$J$14:$J$20006,G2)","v":0},{"$f":"COUNTIFS($C$14:$C$20006,$B$2,$I$14:$I$20006,$B$9,$J$14:$J$20006,H2)","v":0},{"$f":"COUNTIFS($C$14:$C$20006,$B$2,$I$14:$I$20006,$B$9,$J$14:$J$20006,I2)","v":0},{"$f":"COUNTIFS($C$14:$C$20006,$B$2,$I$14:$I$20006,$B$9,$J$14:$J$20006,J2)","v":0},{"$f":"COUNTIFS($C$14:$C$20006,$B$2,$I$14:$I$20006,$B$9,$J$14:$J$20006,K2)","v":0},0,0,0]
[{"$nulls":3},"Atributo:","Profesionalidad",null,{"$f":"COUNTIFS($C$14:$C$20006,$B$2,$I$14:$I$20006,$B$9,$K$14:$K$20006,G2)","v":0},{"$f":"COUNTIFS($C$14:$C$20006,$B$2,$I$14:$I$20006,$B$9,$K$14:$K$20006,H2)","v":0},{"$f":"COUNTIFS($C$14:$C$20006,$B$2,$I$14:$I$20006,$B$9,$K$14:$K$20006,I2)","v":0},{"$f":"COUNTIFS($C$14:$C$20006,$B$2,$I$14:$I$20006,$B$9,$K$14:$K$20006,J2)","v":0},{"$f":"COUNTIFS($C$14:$C$20006,$B$2,$I$14:$I$20006,$B$9,$K$14:$K$20006,K2)","v":0},0,0,0]
[]
[{"$nulls":9},"Amabilidad","Profesionalidad"]
["Código","Formulario","Establecimiento","Fecha","Nivel de Atención","Municipio","Provincia","¿Recomendaría a otra persona atenderse en este establecimiento de salud?","Seleccione el servicio recibido","¿Cómo califica la amabilidad del personal que le atendió?","¿Cómo considera la profesionalidad del personal que le atendió?","¿Cómo considera la facilidad y rapidez del servicio brindado?","¿Cómo percibe el manejo de las informaciones del personal que le atendió?","¿Cómo considera el acceso a los servicios solicitados?","¿Cómo considera el tiempo para recibir los resultados de los estudios realizados?","¿Cómo considera la higiene y comodidad del espacio físico?","En general, ¿Cómo considera la calidad del servicio recibido?"]

{"sheet":"Noviembre","index":12,"n_rows":13,"n_cols":17,"rows_kept":13,"merged":[[2,0,3,0],[2,1,3,2],[2,4,2,5],[3,4,3,5],[4,0,5,0],[4,1,5,2],[4,4,4,5],[5,4,5,5],[6,0,7,0],[6,1,7,2],[6,4,6,5],[7,4,7,5],[8,0,9,0],[8,1,9,2],[8,4,8,5],[9,4,9,5]]}
[]
["Hospital:","HOSPITAL REGIONAL DR. ALEJANDRO CABRAL",{"$nulls":4},"Muy Mala","Mala","Regular","Buena","Muy Buena","Total","B + MB","%"]
["Servicio:","Consulta Externa",null,"Atributo:","Amabilidad",null,{"$f":"COUNTIFS($C$14:$C$20006,$B$2,$I$14:$I$20006,$B$3,$J$14:$J$20006,G2)","v":0},{"$f":"COUNTIFS($C$14:$C$20006,$B$2,$I$14:$I$20006,$B$3,$J$14:$J$20006,H2)","v":0},{"$f":"COUNTIFS($C$14:$C$20006,$B$2,$I$14:$I$20006,$B$3,$J$14:$J$20006,I2)","v":0},{"$f":"COUNTIFS($C$14:$C$20006,$B$2,$I$14:$I$20006,$B$3,$J$14:$J$20006,J2)","v":0},{"$f":"COUNTIFS($C$14:$C$20006,$B$2,$I$14:$I$20006,$B$3,$J$14:$J$20006,K2)","v":0},{"$f":"+SUM(G3:K3)","v":0},{"$f":"+J3+K3","v":0},{"$f":"+IF(L3=0,0,M3/L3)","v":0}]
[{"$nulls":3},"Atributo:","Profesionalidad",null,{"$f":"COUNTIFS($C$14:$C$20006,$B$2,$I$14:$I$20006,$B$3,$K$14:$K$20006,G2)","v":0},{"$f":"COUNTIFS($C$14:$C$20006,$B$2,$I$14:$I$20006,$B$3,$K$14:$K$20006,H2)","v":0},{"$f":"COUNTIFS($C$14:$C$20006,$B$2,$I$14:$I$20006,$B$3,$K$14:$K$20006,I2)","v":0},{"$f":"COUNTIFS($C$14:$C$20006,$B$2,$I$14:$I$20006,$B$3,$K$14:$K$20006,J2)","v":0},{"$f":"COUNTIFS($C$14:$C$20006,$B$2,$I$14:$I$20006,$B$3,$K$14:$K$20006,K2)","v":0},{"$f":"+SUM(G4:K4)","v":0},0,0]
["Servicio:","Hospitalización",null,"Atributo:","Amabilidad",null,{"$f":"COUNTIFS($C$14:$C$20006,$B$2,$I$14:$I$20006,$B$5,$J$14:$J$20006,G2)","v":0},{"$f":"COUNTIFS($C$14:$C$20006,$B$2,$I$14:$I$20006,$B$5,$J$14:$J$20006,H2)","v":0},{"$f":"COUNTIFS($C$14:$C$20006,$B$2,$I$14:$I$20006,$B$5,$J$14:$J$20006,I2)","v":0},{"$f":"COUNTIFS($C$14:$C$20006,$B$2,$I$14:$I$20006,$B$5,$J$14:$J$20006,J2)","v":0},{"$f":"COUNTIFS($C$14:$C$20006,$B$2,$I$14:$I$20006,$B$5,$J$14:$J$20006,K2)","v":0},0,0,0]
[{"$nulls":3},"Atributo:","Profesionalidad",null,{"$f":"COUNTIFS($C$14:$C$20006,$B$2,$I$14:$I$20006,$B$5,$K$14:$K$20006,G2)","v":0},{"$f":"COUNTIFS($C$14:$C$20006,$B$2,$I$14:$I$20006,$B$5,$K$14:$K$20006,H2)","v":0},{"$f":"COUNTIFS($C$14:$C$20006,$B$2,$I$14:$I$20006,$B$5,$K$14:$K$20006,I2)","v":0},{"$f":"COUNTIFS($C$14:$C$20006,$B$2,$I$14:$I$20006,$B$5,$K$14:$K$20006,J2)","v":0},{"$f":"COUNTIFS($C$14:$C$20006,$B$2,$I$14:$I$20006,$B$5,$K$14:$K$20006,K2)","v":0},0,0,0]
["Servicio:","Laboratorio",null,"Atributo:","Amabilidad",null,{"$f":"COUNTIFS($C$14:$C$20006,$B$2,$I$14:$I$20006,$B$7,$J$14:$J$20006,G2)","v":0},{"$f":"COUNTIFS($C$14:$C$20006,$B$2,$I$14:$I$20006,$B$7,$J$14:$J$20006,H2)","v":0},{"$f":"COUNTIFS($C$14:$C$20006,$B$2,$I$14:$I$20006,$B$7,$J$14:$J$20006,I2)","v":0},{"$f":"COUNTIFS($C$14:$C$20006,$B$2,$I$14:$I$20006,$B$7,$J$14:$J$20006,J2)","v":0},{"$f":"COUNTIFS($C$14:$C$20006,$B$2,$I$14:$I$20006,$B$7,$J$14:$J$20006,K2)","v":0},0,0,0]
[{"$nulls":3},"Atributo:","Profesionalidad",null,{"$f":"COUNTIFS($C$14:$C$20006,$B$2,$I$14:$I$20006,$B$7,$K$14:$K$20006,G2)","v":0},{"$f":"COUNTIFS($C$14:$C$20006,$B$2,$I$14:$I$20006,$B$7,$K$14:$K$20006,H2)","v":0},{"$f":"COUNTIFS($C$14:$C$20006,$B$2,$I$14:$I$20006,$B$7,$K$14:$K$20006,I2)","v":0},{"$f":"COUNTIFS($C$14:$C$20006,$B$2,$I$14:$I$20006,$B$7,$K$14:$K$20006,J2)","v":0},{"$f":"COUNTIFS($C$14:$C$20006,$B$2,$I$14:$I$20006,$B$7,$K$14:$K$20006,K2)","v":0},0,0,0]
["Servicio:","Imágenes",null,"Atributo:","Amabilidad",null,{"$f":"COUNTIFS($C$14:$C$20006,$B$2,$I$14:$I$20006,$B$9,$J$14:$J$20006,G2)","v":0},{"$f":"COUNTIFS($C$14:$C$20006,$B$2,$I$14:$I$20006,$B$9,$J$14:$J$20006,H2)","v":0},{"$f":"COUNTIFS($C$14:$C$20006,$B$2,$I$14:$I$20006,$B$9,$J$14:$J$20006,I2)","v":0},{"$f":"COUNTIFS($C$14:$C$20006,$B$2,$I$14:$I$20006,$B$9,$J$14:$J$20006,J2)","v":0},{"$f":"COUNTIFS($C$14:$C$20006,$B$2,$I$14:$I$20006,$B$9,$J$14:$J$20006,K2)","v":0},0,0,0]
[{"$nulls":3},"Atributo:","Profesionalidad",null,{"$f":"COUNTIFS($C$14:$C$20006,$B$2,$I$14:$I$20006,$B$9,$K$14:$K$20006,G2)","v":0},{"$f":"COUNTIFS($C$14:$C$20006,$B$2,$I$14:$I$20006,$B$9,$K$14:$K$20006,H2)","v":0},{"$f":"COUNTIFS($C$14:$C$20006,$B$2,$I$14:$I$20006,$B$9,$K$14:$K$20006,I2)","v":0},{"$f":"COUNTIFS($C$14:$C$20006,$B$2,$I$14:$I$20006,$B$9,$K$14:$K$20006,J2)","v":0},{"$f":"COUNTIFS($C$14:$C$20006,$B$2,$I$14:$I$20006,$B$9,$K$14:$K$20006,K2)","v":0},0,0,0]
[]
[{"$nulls":9},"Amabilidad","Profesionalidad"]
["Código","Formulario","Establecimiento","Fecha","Nivel de Atención","Municipio","Provincia","¿Recomendaría a otra persona atenderse en este establecimiento de salud?","Seleccione el servicio recibido","¿Cómo califica la amabilidad del personal que le atendió?","¿Cómo considera la profesionalidad del personal que le atendió?","¿Cómo considera la facilidad y rapidez del servicio brindado?","¿Cómo percibe el manejo de las informaciones del personal que le atendió?","¿Cómo considera el acceso a los servicios solicitados?","¿Cómo considera el tiempo para recibir los resultados de los estudios realizados?","¿Cómo considera la higiene y comodidad del espacio físico?","En general, ¿Cómo considera la calidad del servicio recibido?"]

{"sheet":"Diciembre","index":13,"n_rows":314,"n_cols":17,"rows_kept":314,"merged":[[2,0,3,0],[2,1,3,2],[2,4,2,5],[3,4,3,5],[4,0,5,0],[4,1,5,2],[4,4,4,5],[5,4,5,5],[6,0,7,0],[6,1,7,2],[6,4,6,5],[7,4,7,5],[8,0,9,0],[8,1,9,2],[8,4,8,5],[9,4,9,5]]}
[]
["Hospital:","HOSPITAL REGIONAL DR. ALEJANDRO CABRAL",{"$nulls":4},"Muy Mala","Mala","Regular","Buena","Muy Buena","Total","B + MB","%"]
["Servicio:","Consulta Externa",null,"Atributo:","Amabilidad",null,{"$f":"COUNTIFS($C$14:$C$20006,$B$2,$I$14:$I$20006,$B$3,$J$14:$J$20006,G2)","v":0},{"$f":"COUNTIFS($C$14:$C$20006,$B$2,$I$14:$I$20006,$B$3,$J$14:$J$20006,H2)","v":0},{"$f":"COUNTIFS($C$14:$C$20006,$B$2,$I$14:$I$20006,$B$3,$J$14:$J$20006,I2)","v":0},{"$f":"COUNTIFS($C$14:$C$20006,$B$2,$I$14:$I$20006,$B$3,$J$14:$J$20006,J2)","v":85},{"$f":"COUNTIFS($C$14:$C$20006,$B$2,$I$14:$I$20006,$B$3,$J$14:$J$20006,K2)","v":5},{"$f":"+SUM(G3:K3)","v":90},{"$f":"+J3+K3","v":90},{"$f":"+IF(L3=0,0,M3/L3)","v":1}]
[{"$nulls":3},"Atributo:","Profesionalidad",null,{"$f":"COUNTIFS($C$14:$C$20006,$B$2,$I$14:$I$20006,$B$3,$K$14:$K$20006,G2)","v":0},{"$f":"COUNTIFS($C$14:$C$20006,$B$2,$I$14:$I$20006,$B$3,$K$14:$K$20006,H2)","v":0},{"$f":"COUNTIFS($C$14:$C$20006,$B$2,$I$14:$I$20006,$B$3,$K$14:$K$20006,I2)","v":4},{"$f":"COUNTIFS($C$14:$C$20006,$B$2,$I$14:$I$20006,$B$3,$K$14:$K$20006,J2)","v":85},{"$f":"COUNTIFS($C$14:$C$20006,$B$2,$I$14:$I$20006,$B$3,$K$14:$K$20006,K2)","v":1},{"$f":"+SUM(G4:K4)","v":90},86,0.9555555555555556]
["Servicio:","Hospitalización",null,"Atributo:","Amabilidad",null,{"$f":"COUNTIFS($C$14:$C$20006,$B$2,$I$14:$I$20006,$B$5,$J$14:$J$20006,G2)","v":0},{"$f":"COUNTIFS($C$14:$C$20006,$B$2,$I$14:$I$20006,$B$5,$J$14:$J$20006,H2)","v":0},{"$f":"COUNTIFS($C$14:$C$20006,$B$2,$I$14:$I$20006,$B$5,$J$14:$J$20006,I2)","v":1},{"$f":"COUNTIFS($C$14:$C$20006,$B$2,$I$14:$I$20006,$B$5,$J$14:$J$20006,J2)","v":38},{"$f":"COUNTIFS($C$14:$C$20006,$B$2,$I$14:$I$20006,$B$5,$J$14:$J$20006,K2)","v":3},42,41,0.9761904761904762]
[{"$nulls":3},"Atributo:","Profesionalidad",null,{"$f":"COUNTIFS($C$14:$C$20006,$B$2,$I$14:$I$20006,$B$5,$K$14:$K$20006,G2)","v":0},{"$f":"COUNTIFS($C$14:$C$20006,$B$2,$I$14:$I$20006,$B$5,$K$14:$K$20006,H2)","v":0},{"$f":"COUNTIFS($C$14:$C$20006,$B$2,$I$14:$I$20006,$B$5,$K$14:$K$20006,I2)","v":3},{"$f":"COUNTIFS($C$14:$C$20006,$B$2,$I$14:$I$20006,$B$5,$K$14:$K$20006,J2)","v":34},{"$f":"COUNTIFS($C$14:$C$20006,$B$2,$I$14:$I$20006,$B$5,$K$14:$K$20006,K2)","v":5},42,39,0.9285714285714286]
["Servicio:","Laboratorio",null,"Atributo:","Amabilidad",null,{"$f":"COUNTIFS($C$14:$C$20006,$B$2,$I$14:$I$20006,$B$7,$J$14:$J$20006,G2)","v":0},{"$f":"COUNTIFS($C$14:$C$20006,$B$2,$I$14:$I$20006,$B$7,$J$14:$J$20006,H2)","v":0},{"$f":"COUNTIFS($C$14:$C$20006,$B$2,$I$14:$I$20006,$B$7,$J$14:$J$20006,I2)","v":0},{"$f":"COUNTIFS($C$14:$C$20006,$B$2,$I$14:$I$20006,$B$7,$J$14:$J$20006,J2)","v":68},{"$f":"COUNTIFS($C$14:$C$20006,$B$2,$I$14:$I$20006,$B$7,$J$14:$J$20006,K2)","v":8},76,76,1]
[{"$nulls":3},"Atributo:","Profesionalidad",null,{"$f":"COUNTIFS($C$14:$C$20006,$B$2,$I$14:$I$20006,$B$7,$K$14:$K$20006,G2)","v":0},{"$f":"COUNTIFS($C$14:$C$20006,$B$2,$I$14:$I$20006,$B$7,$K$14:$K$20006,H2)","v":0},{"$f":"COUNTIFS($C$14:$C$20006,$B$2,$I$14:$I$20006,$B$7,$K$14:$K$20006,I2)","v":0},{"$f":"COUNTIFS($C$14:$C$20006,$B$2,$I$14:$I$20006,$B$7,$K$14:$K$20006,J2)","v":68},{"$f":"COUNTIFS($C$14:$C$20006,$B$2,$I$14:$I$20006,$B$7,$K$14:$K$20006,K2)","v":8},76,76,1]
["Servicio:","Imágenes",null,"Atributo:","Amabilidad",null,{"$f":"COUNTIFS($C$14:$C$20006,$B$2,$I$14:$I$20006,$B$9,$J$14:$J$20006,G2)","v":0},{"$f":"COUNTIFS($C$14:$C$20006,$B$2,$I$14:$I$20006,$B$9,$J$14:$J$20006,H2)","v":0},{"$f":"COUNTIFS($C$14:$C$20006,$B$2,$I$14:$I$20006,$B$9,$J$14:$J$20006,I2)","v":1},{"$f":"COUNTIFS($C$14:$C$20006,$B$2,$I$14:$I$20006,$B$9,$J$14:$J$20006,J2)","v":25},{"$f":"COUNTIFS($C$14:$C$20006,$B$2,$I$14:$I$20006,$B$9,$J$14:$J$20006,K2)","v":0},26,25,0.9615384615384616]
[{"$nulls":3},"Atributo:","Profesionalidad",null,{"$f":"COUNTIFS($C$14:$C$20006,$B$2,$I$14:$I$20006,$B$9,$K$14:$K$20006,G2)","v":0},{"$f":"COUNTIFS($C$14:$C$20006,$B$2,$I$14:$I$20006,$B$9,$K$14:$K$20006,H2)","v":0},{"$f":"COUNTIFS($C$14:$C$20006,$B$2,$I$14:$I$20006,$B$9,$K$14:$K$20006,I2)","v":2},{"$f":"COUNTIFS($C$14:$C$20006,$B$2,$I$14:$I$20006,$B$9,$K$14:$K$20006,J2)","v":23},{"$f":"COUNTIFS($C$14:$C$20006,$B$2,$I$14:$I$20006,$B$9,$K$14:$K$20006,K2)","v":1},26,24,0.9230769230769231]
[]
[{"$nulls":9},"Amabilidad","Profesionalidad"]
["Código","Formulario","Establecimiento","Fecha","Nivel de Atención","Municipio","Provincia","¿Recomendaría a otra persona atenderse en este establecimiento de salud?","Seleccione el servicio recibido","¿Cómo califica la amabilidad del personal que le atendió?","¿Cómo considera la profesionalidad del personal que le atendió?","¿Cómo considera la facilidad y rapidez del servicio brindado?","¿Cómo percibe el manejo de las informaciones del personal que le atendió?","¿Cómo considera el acceso a los servicios solicitados?","¿Cómo considera el tiempo para recibir los resultados de los estudios realizados?","¿Cómo considera la higiene y comodidad del espacio físico?","En general, ¿Cómo considera la calidad del servicio recibido?"]
[2197949,"Encuesta General de Satisfacción HOSPITALES","HOSPITAL REGIONAL DR. ALEJANDRO CABRAL","viernes, 1 de diciembre de 2023 4:15:39 p. m.","Tercer Nivel","San Juan","San Juan","Si","Consulta Externa","Buena","Buena","Buena","Buena","Buena","Buena","Buena","Muy Buena"]
[2197950,"Encuesta General de Satisfacción HOSPITALES","HOSPITAL REGIONAL DR. ALEJANDRO CABRAL","viernes, 1 de diciembre de 2023 4:15:59 p. m.","Tercer Nivel","San Juan","San Juan","Si","Consulta Externa","Buena","Buena","Buena","Buena","Buena","Buena","Buena","Buena"]
[2197951,"Encuesta General de Satisfacción HOSPITALES","HOSPITAL REGIONAL DR. ALEJANDRO CABRAL","viernes, 1 de diciembre de 2023 4:16:19 p. m.","Tercer Nivel","San Juan","San Juan","Si","Consulta Externa","Buena","Buena","Buena","Buena","Buena","Buena","Buena","Buena"]
[2197952,"Encuesta General de Satisfacción HOSPITALES","HOSPITAL REGIONAL DR. ALEJANDRO CABRAL","viernes, 1 de diciembre de 2023 4:16:38 p. m.","Tercer Nivel","San Juan","San Juan","Si","Consulta Externa","Buena","Buena","Buena","Buena","Buena","Buena","Buena","Buena"]
[2197953,"Encuesta General de Satisfacción HOSPITALES","HOSPITAL REGIONAL DR. ALEJANDRO CABRAL","viernes, 1 de diciembre de 2023 4:16:55 p. m.","Tercer Nivel","San Juan","San Juan","Si","Consulta Externa","Buena","Buena","Buena","Buena","Buena","Buena","Buena","Buena"]
[2197955,"Encuesta General de Satisfacción HOSPITALES","HOSPITAL REGIONAL DR. ALEJANDRO CABRAL","viernes, 1 de diciembre de 2023 4:17:12 p. m.","Tercer Nivel","San Juan","San Juan","Si","Consulta Externa","Buena","Buena","Buena","Buena","Buena","Buena","Buena","Buena"]
[2197956,"Encuesta General de Satisfacción HOSPITALES","HOSPITAL REGIONAL DR. ALEJANDRO CABRAL","viernes, 1 de diciembre de 2023 4:17:29 p. m.","Tercer Nivel","San Juan","San Juan","Si","Consulta Externa","Buena","Buena","Buena","Buena","Buena","Buena","Buena","Buena"]
[2197958,"Encuesta General de Satisfacción HOSPITALES","HOSPITAL REGIONAL DR. ALEJANDRO CABRAL","viernes, 1 de diciembre de 2023 4:17:46 p. m.","Tercer Nivel","San Juan","San Juan","Si","Consulta Externa","Buena","Buena","Buena","Buena","Buena","Buena","Buena","Buena"]
[2197959,"Encuesta General de Satisfacción HOSPITALES","HOSPITAL REGIONAL DR. ALEJANDRO CABRAL","viernes, 1 de diciembre de 2023 4:18:02 p. m.","Tercer Nivel","San Juan","San Juan","Si","Laboratorio","Buena","Buena","Buena","Buena","Buena","Buena","Buena","Buena"]
[2197961,"Encuesta General de Satisfacción HOSPITALES","HOSPITAL REGIONAL DR. ALEJANDRO CABRAL","viernes, 1 de diciembre de 2023 4:18:19 p. m.","Tercer Nivel","San Juan","San Juan","Si","Laboratorio","Buena","Buena","Buena","Buena","Buena","Buena","Muy Buena","Buena"]
[2197962,"Encuesta General de Satisfacción HOSPITALES","HOSPITAL REGIONAL DR. ALEJANDRO CABRAL","viernes, 1 de diciembre de 2023 4:18:47 p. m.","Tercer Nivel","San Juan","San Juan","Si","Laboratorio","Buena","Buena","Buena","Buena","Buena","Buena","Buena","Buena"]
[2197965,"Encuesta General de Satisfacción HOSPITALES","HOSPITAL REGIONAL DR. ALEJANDRO CABRAL","viernes, 1 de diciembre de 2023 4:19:07 p. m.","Tercer Nivel","San Juan","San Juan","Si","Laboratorio","Buena","Buena","Muy Buena","Muy Buena","Buena","Buena","Buena","Buena"]
[2197966,"Encuesta General de Satisfacción HOSPITALES","HOSPITAL REGIONAL DR. ALEJANDRO CABRAL","viernes, 1 de diciembre de 2023 4:21:14 p. m.","Tercer Nivel","San Juan","San Juan","Si","Consulta Externa","Buena","Buena","Buena","Buena","Buena","Buena","Buena","Buena"]
[2197968,"Encuesta General de Satisfacción HOSPITALES","HOSPITAL REGIONAL DR. ALEJANDRO CABRAL","viernes, 1 de diciembre de 2023 4:21:36 p. m.","Tercer Nivel","San Juan","San Juan","Si","Laboratorio","Muy Buena","Muy Buena","Muy Buena","Muy Buena","Muy Buena","Muy Buena","Muy Buena","Muy Buena"]
[2197969,"Encuesta General de Satisfacción HOSPITALES","HOSPITAL REGIONAL DR. ALEJANDRO CABRAL","viernes, 1 de diciembre de 2023 4:21:55 p. m.","Tercer Nivel","San Juan","San Juan","Si","Laboratorio","Buena","Buena","Buena","Buena","Buena","Buena","Buena","Buena"]
[2197970,"Encuesta General de Satisfacción HOSPITALES","HOSPITAL REGIONAL DR. ALEJANDRO CABRAL","viernes, 1 de diciembre de 2023 4:22:20 p. m.","Tercer Nivel","San Juan","San Juan","Si","Laboratorio","Buena","Buena","Buena","Buena","Buena","Buena","Buena","Buena"]
[2197971,"Encuesta General de Satisfacción HOSPITALES","HOSPITAL REGIONAL DR. ALEJANDRO CABRAL","viernes, 1 de diciembre de 2023 4:22:47 p. m.","Tercer Nivel","San Juan","San Juan","Si","Laboratorio","Buena","Buena","Buena","Buena","Regular","Muy Buena","Muy Buena","Muy Buena"]
[2197972,"Encuesta General de Satisfacción HOSPITALES","HOSPITAL REGIONAL DR. ALEJANDRO CABRAL","viernes, 1 de diciembre de 2023 4:23:05 p. m.","Tercer Nivel","San Juan","San Juan","Si","Imágenes","Buena","Buena","Buena","Buena","Buena","Buena","Buena","Buena"]
[2197974,"Encuesta General de Satisfacción HOSPITALES","HOSPITAL REGIONAL DR. ALEJANDRO CABRAL","viernes, 1 de diciembre de 2023 4:23:23 p. m.","Tercer Nivel","San Juan","San Juan","Si","Imágenes","Buena","Regular","Buena","Buena","Buena","Buena","Buena","Buena"]
[2197975,"Encuesta General de Satisfacción HOSPITALES","HOSPITAL REGIONAL DR. ALEJANDRO CABRAL","viernes, 1 de diciembre de 2023 4:23:38 p. m.","Tercer Nivel","San Juan","San Juan","Si","Hospitalización","Buena","Buena","Buena","Buena","Buena","Buena","Buena","Buena"]
[2197977,"Encuesta General de Satisfacción HOSPITALES","HOSPITAL REGIONAL DR. ALEJANDRO CABRAL","viernes, 1 de diciembre de 2023 4:24:09 p. m.","Tercer Nivel","San Juan","San Juan","Si","Hospitalización","Buena","Buena","Buena","Buena","Buena","Buena","Buena","Buena"]
[2197978,"Encuesta General de Satisfacción HOSPITALES","HOSPITAL REGIONAL DR. ALEJANDRO CABRAL","viernes, 1 de diciembre de 2023 4:24:36 p. m.","Tercer Nivel","San Juan","San Juan","Si","Emergencia","Buena","Buena","Buena","Buena","Buena","Buena","Buena","Buena"]
[2197979,"Encuesta General de Satisfacción HOSPITALES","HOSPITAL REGIONAL DR. ALEJANDRO CABRAL","viernes, 1 de diciembre de 2023 4:25:09 p. m.","Tercer Nivel","San Juan","San Juan","Si","Emergencia","Buena","Buena","Buena","Buena","Buena","Buena","Buena","Buena"]
[2197981,"Encuesta General de Satisfacción HOSPITALES","HOSPITAL REGIONAL DR. ALEJANDRO CABRAL","viernes, 1 de diciembre de 2023 4:25:32 p. m.","Tercer Nivel","San Juan","San Juan","Si","Emergencia","Buena","Buena","Buena","Buena","Buena","Buena","Buena","Buena"]
[2198615,"Encuesta General de Satisfacción HOSPITALES","HOSPITAL REGIONAL DR. ALEJANDRO CABRAL","sábado, 2 de diciembre de 2023 10:20:48 p. m.","Tercer Nivel","San Juan","San Juan","Si","Emergencia","Buena","Buena","Regular","Buena","Regular","Buena","Buena","Buena"]
[2198616,"Encuesta General de Satisfacción HOSPITALES","HOSPITAL REGIONAL DR. ALEJANDRO CABRAL","sábado, 2 de diciembre de 2023 10:21:21 p. m.","Tercer Nivel","San Juan","San Juan","Si","Emergencia","Buena","Buena","Buena","Buena","Regular","Buena","Buena","Buena"]
[2198617,"Encuesta General de Satisfacción HOSPITALES","HOSPITAL REGIONAL DR. ALEJANDRO CABRAL","sábado, 2 de diciembre de 2023 10:22:07 p. m.","Tercer Nivel","San Juan","San Juan","Si","Emergencia","Buena","Muy Buena","Muy Buena","Buena","Buena","Buena","Regular","Buena"]
[2198618,"Encuesta General de Satisfacción HOSPITALES","HOSPITAL REGIONAL DR. ALEJANDRO CABRAL","sábado, 2 de diciembre de 2023 10:22:47 p. m.","Tercer Nivel","San Juan","San Juan","Si","Hospitalización","Muy Buena","Buena","Buena","Buena","Regular","Buena","Buena","Buena"]
[2198619,"Encuesta General de Satisfacción HOSPITALES","HOSPITAL REGIONAL DR. ALEJANDRO CABRAL","sábado, 2 de diciembre de 2023 10:23:45 p. m.","Tercer Nivel","San Juan","San Juan","Si","Hospitalización","Buena","Buena","Buena","Muy Buena","Regular","Buena","Regular","Buena"]
[2198703,"Encuesta General de Satisfacción HOSPITALES","HOSPITAL REGIONAL DR. ALEJANDRO CABRAL","domingo, 3 de diciembre de 2023 10:36:50 p. m.","Tercer Nivel","San Juan","San Juan","Si","Emergencia","Buena","Buena","Muy Buena","Buena","Buena","Muy Buena","Buena","Buena"]
[2198705,"Encuesta General de Satisfacción HOSPITALES","HOSPITAL REGIONAL DR. ALEJANDRO CABRAL","domingo, 3 de diciembre de 2023 10:38:07 p. m.","Tercer Nivel","San Juan","San Juan","Si","Emergencia","Buena","Buena","Buena","Muy Buena","Buena","Muy Buena","Buena","Buena"]
[2198709,"Encuesta General de Satisfacción HOSPITALES","HOSPITAL REGIONAL DR. ALEJANDRO CABRAL","domingo, 3 de diciembre de 2023 11:05:18 p. m.","Tercer Nivel","San Juan","San Juan","Si","Emergencia","Buena","Regular","Buena","Muy Buena","Buena","Muy Buena","Buena","Buena"]
[2198710,"Encuesta General de Satisfacción HOSPITALES","HOSPITAL REGIONAL DR. ALEJANDRO CABRAL","domingo, 3 de diciembre de 2023 11:05:42 p. m.","Tercer Nivel","San Juan","San Juan","Si","Hospitalización","Buena","Buena","Muy Buena","Buena","Buena","Buena","Regular","Buena"]
[2200442,"Encuesta General de Satisfacción HOSPITALES","HOSPITAL REGIONAL DR. ALEJANDRO CABRAL","lunes, 4 de diciembre de 2023 4:49:21 p. m.","Tercer Nivel","San Juan","San Juan","Si","Consulta Externa","Buena","Buena","Buena","Buena","Buena","Buena","Buena","Buena"]
[2200444,"Encuesta General de Satisfacción HOSPITALES","HOSPITAL REGIONAL DR. ALEJANDRO CABRAL","lunes, 4 de diciembre de 2023 4:49:40 p. m.","Tercer Nivel","San Juan","San Juan","Si","Consulta Externa","Buena","Buena","Buena","Buena","Buena","Buena","Buena","Buena"]
[2200446,"Encuesta General de Satisfacción HOSPITALES","HOSPITAL REGIONAL DR. ALEJANDRO CABRAL","lunes, 4 de diciembre de 2023 4:50:00 p. m.","Tercer Nivel","San Juan","San Juan","Si","Consulta Externa","Buena","Buena","Buena","Buena","Buena","Buena","Buena","Buena"]
[2200449,"Encuesta General de Satisfacción HOSPITALES","HOSPITAL REGIONAL DR. ALEJANDRO CABRAL","lunes, 4 de diciembre de 2023 4:50:21 p. m.","Tercer Nivel","San Juan","San Juan","Si","Consulta Externa","Buena","Buena","Buena","Buena","Buena","Buena","Buena","Buena"]
[2200450,"Encuesta General de Satisfacción HOSPITALES","HOSPITAL REGIONAL DR. ALEJANDRO CABRAL","lunes, 4 de diciembre de 2023 4:50:40 p. m.","Tercer Nivel","San Juan","San Juan","Si","Consulta Externa","Buena","Buena","Buena","Buena","Buena","Buena","Buena","Buena"]
[2200451,"Encuesta General de Satisfacción HOSPITALES","HOSPITAL REGIONAL DR. ALEJANDRO CABRAL","lunes, 4 de diciembre de 2023 4:50:56 p. m.","Tercer Nivel","San Juan","San Juan","Si","Consulta Externa","Buena","Buena","Buena","Buena","Buena","Buena","Buena","Buena"]
[2200453,"Encuesta General de Satisfacción HOSPITALES","HOSPITAL REGIONAL DR. ALEJANDRO CABRAL","lunes, 4 de diciembre de 2023 4:51:15 p. m.","Tercer Nivel","San Juan","San Juan","Si","Consulta Externa","Buena","Buena","Muy Buena","Buena","Buena","Buena","Buena","Buena"]
[2200455,"Encuesta General de Satisfacción HOSPITALES","HOSPITAL REGIONAL DR. ALEJANDRO CABRAL","lunes, 4 de diciembre de 2023 4:51:32 p. m.","Tercer Nivel","San Juan","San Juan","Si","Consulta Externa","Buena","Buena","Buena","Muy Buena","Buena","Buena","Buena","Buena"]
[2200456,"Encuesta General de Satisfacción HOSPITALES","HOSPITAL REGIONAL DR. ALEJANDRO CABRAL","lunes, 4 de diciembre de 2023 4:51:45 p. m.","Tercer Nivel","San Juan","San Juan","Si","Laboratorio","Buena","Buena","Buena","Buena","Buena","Buena","Buena","Buena"]
[2200457,"Encuesta General de Satisfacción HOSPITALES","HOSPITAL REGIONAL DR. ALEJANDRO CABRAL","lunes, 4 de diciembre de 2023 4:52:02 p. m.","Tercer Nivel","San Juan","San Juan","Si","Laboratorio","Buena","Buena","Buena","Buena","Buena","Buena","Buena","Buena"]
[2200459,"Encuesta General de Satisfacción HOSPITALES","HOSPITAL REGIONAL DR. ALEJANDRO CABRAL","lunes, 4 de diciembre de 2023 4:52:18 p. m.","Tercer Nivel","San Juan","San Juan","Si","Laboratorio","Buena","Buena","Buena","Buena","Buena","Buena","Buena","Buena"]
[2200462,"Encuesta General de Satisfacción HOSPITALES","HOSPITAL REGIONAL DR. ALEJANDRO CABRAL","lunes, 4 de diciembre de 2023 4:52:57 p. m.","Tercer Nivel","San Juan","San Juan","Si","Laboratorio","Muy Buena","Buena","Buena","Buena","Buena","Buena","Buena","Buena"]
[2200464,"Encuesta General de Satisfacción HOSPITALES","HOSPITAL REGIONAL DR. ALEJANDRO CABRAL","lunes, 4 de diciembre de 2023 4:53:13 p. m.","Tercer Nivel","San Juan","San Juan","Si","Laboratorio","Buena","Buena","Buena","Buena","Buena","Buena","Buena","Buena"]
[2200466,"Encuesta General de Satisfacción HOSPITALES","HOSPITAL REGIONAL DR. ALEJANDRO CABRAL","lunes, 4 de diciembre de 2023 4:53:33 p. m.","Tercer Nivel","San Juan","San Juan","Si","Laboratorio","Buena","Buena","Buena","Buena","Buena","Muy Buena","Buena","Buena"]
[2200468,"Encuesta General de Satisfacción HOSPITALES","HOSPITAL REGIONAL DR. ALEJANDRO CABRAL","lunes, 4 de diciembre de 2023 4:53:47 p. m.","Tercer Nivel","San Juan","San Juan","Si","Laboratorio","Buena","Buena","Buena","Buena","Buena","Buena","Buena","Buena"]
[2200470,"Encuesta General de Satisfacción HOSPITALES","HOSPITAL REGIONAL DR. ALEJANDRO CABRAL","lunes, 4 de diciembre de 2023 4:54:12 p. m.","Tercer Nivel","San Juan","San Juan","Si","Laboratorio","Buena","Buena","Buena","Buena","Buena","Buena","Buena","Buena"]
[2200474,"Encuesta General de Satisfacción HOSPITALES","HOSPITAL REGIONAL DR. ALEJANDRO CABRAL","lunes, 4 de diciembre de 2023 4:54:55 p. m.","Tercer Nivel","San Juan","San Juan","Si","Imágenes","Buena","Buena","Buena","Buena","Buena","Buena","Buena","Buena"]
[2200477,"Encuesta General de Satisfacción HOSPITALES","HOSPITAL REGIONAL DR. ALEJANDRO CABRAL","lunes, 4 de diciembre de 2023 4:55:09 p. m.","Tercer Nivel","San Juan","San Juan","Si","Imágenes","Buena","Buena","Buena","Buena","Buena","Buena","Buena","Buena"]
[2200481,"Encuesta General de Satisfacción HOSPITALES","HOSPITAL REGIONAL DR. ALEJANDRO CABRAL","lunes, 4 de diciembre de 2023 4:55:37 p. m.","Tercer Nivel","San Juan","San Juan","Si","Imágenes","Buena","Buena","Buena","Buena","Buena","Buena","Buena","Buena"]
[2200490,"Encuesta General de Satisfacción HOSPITALES","HOSPITAL REGIONAL DR. ALEJANDRO CABRAL","lunes, 4 de diciembre de 2023 4:57:02 p. m.","Tercer Nivel","San Juan","San Juan","Si","Hospitalización","Buena","Buena","Buena","Buena","Buena","Buena","Buena","Buena"]
[2200493,"Encuesta General de Satisfacción HOSPITALES","HOSPITAL REGIONAL DR. ALEJANDRO CABRAL","lunes, 4 de diciembre de 2023 4:57:19 p. m.","Tercer Nivel","San Juan","San Juan","Si","Hospitalización","Buena","Buena","Buena","Buena","Buena","Buena","Buena","Buena"]
[2200495,"Encuesta General de Satisfacción HOSPITALES","HOSPITAL REGIONAL DR. ALEJANDRO CABRAL","lunes, 4 de diciembre de 2023 4:57:35 p. m.","Tercer Nivel","San Juan","San Juan","Si","Emergencia","Buena","Buena","Buena","Buena","Buena","Buena","Buena","Buena"]
[2200496,"Encuesta General de Satisfacción HOSPITALES","HOSPITAL REGIONAL DR. ALEJANDRO CABRAL","lunes, 4 de diciembre de 2023 4:57:53 p. m.","Tercer Nivel","San Juan","San Juan","Si","Emergencia","Buena","Buena","Buena","Buena","Buena","Buena","Buena","Buena"]
[2200499,"Encuesta General de Satisfacción HOSPITALES","HOSPITAL REGIONAL DR. ALEJANDRO CABRAL","lunes, 4 de diciembre de 2023 4:58:08 p. m.","Tercer Nivel","San Juan","San Juan","Si","Emergencia","Buena","Buena","Buena","Buena","Buena","Buena","Buena","Buena"]
[2200502,"Encuesta General de Satisfacción HOSPITALES","HOSPITAL REGIONAL DR. ALEJANDRO CABRAL","lunes, 4 de diciembre de 2023 4:58:27 p. m.","Tercer Nivel","San Juan","San Juan","Si","Emergencia","Buena","Buena","Buena","Buena","Buena","Buena","Buena","Buena"]
[2203076,"Encuesta General de Satisfacción HOSPITALES","HOSPITAL REGIONAL DR. ALEJANDRO CABRAL","martes, 5 de diciembre de 2023 5:31:01 p. m.","Tercer Nivel","San Juan","San Juan","Si","Consulta Externa","Buena","Buena","Buena","Buena","Buena","Buena","Buena","Buena"]
[2203077,"Encuesta General de Satisfacción HOSPITALES","HOSPITAL REGIONAL DR. ALEJANDRO CABRAL","martes, 5 de diciembre de 2023 5:31:26 p. m.","Tercer Nivel","San Juan","San Juan","Si","Consulta Externa","Buena","Buena","Buena","Buena","Buena","Buena","Buena","Buena"]
[2203080,"Encuesta General de Satisfacción HOSPITALES","HOSPITAL REGIONAL DR. ALEJANDRO CABRAL","martes, 5 de diciembre de 2023 5:31:43 p. m.","Tercer Nivel","San Juan","San Juan","Si","Consulta Externa","Buena","Buena","Buena","Buena","Buena","Buena","Buena","Buena"]
[2203082,"Encuesta General de Satisfacción HOSPITALES","HOSPITAL REGIONAL DR. ALEJANDRO CABRAL","martes, 5 de diciembre de 2023 5:31:59 p. m.","Tercer Nivel","San Juan","San Juan","Si","Consulta Externa","Buena","Buena","Buena","Muy Buena","Muy Buena","Muy Buena","Buena","Buena"]
[2203084,"Encuesta General de Satisfacción HOSPITALES","HOSPITAL REGIONAL DR. ALEJANDRO CABRAL","martes, 5 de diciembre de 2023 5:32:13 p. m.","Tercer Nivel","San Juan","San Juan","Si","Consulta Externa","Buena","Buena","Buena","Buena","Buena","Buena","Buena","Buena"]
[2203087,"Encuesta General de Satisfacción HOSPITALES","HOSPITAL REGIONAL DR. ALEJANDRO CABRAL","martes, 5 de diciembre de 2023 5:32:29 p. m.","Tercer Nivel","San Juan","San Juan","Si","Consulta Externa","Buena","Buena","Buena","Buena","Muy Buena","Muy Buena","Muy Buena","Muy Buena"]
[2203090,"Encuesta General de Satisfacción HOSPITALES","HOSPITAL REGIONAL DR. ALEJANDRO CABRAL","martes, 5 de diciembre de 2023 5:32:45 p. m.","Tercer Nivel","San Juan","San Juan","Si","Consulta Externa","Muy Buena","Buena","Buena","Buena","Buena","Buena","Regular","Buena"]
[2203094,"Encuesta General de Satisfacción HOSPITALES","HOSPITAL REGIONAL DR. ALEJANDRO CABRAL","martes, 5 de diciembre de 2023 5:33:05 p. m.","Tercer Nivel","San Juan","San Juan","Si","Consulta Externa","Buena","Buena","Buena","Buena","Buena","Buena","Buena","Buena"]
[2203099,"Encuesta General de Satisfacción HOSPITALES","HOSPITAL REGIONAL DR. ALEJANDRO CABRAL","martes, 5 de diciembre de 2023 5:33:35 p. m.","Tercer Nivel","San Juan","San Juan","Si","Consulta Externa","Buena","Buena","Buena","Buena","Buena","Buena","Buena","Buena"]
[2203108,"Encuesta General de Satisfacción HOSPITALES","HOSPITAL REGIONAL DR. ALEJANDRO CABRAL","martes, 5 de diciembre de 2023 5:35:14 p. m.","Tercer Nivel","San Juan","San Juan","Si","Laboratorio","Buena","Buena","Buena","Buena","Buena","Buena","Buena","Buena"]
[2203112,"Encuesta General de Satisfacción HOSPITALES","HOSPITAL REGIONAL DR. ALEJANDRO CABRAL","martes, 5 de diciembre de 2023 5:35:49 p. m.","Tercer Nivel","San Juan","San Juan","Si","Laboratorio","Buena","Buena","Buena","Buena","Buena","Buena","Buena","Buena"]
[2203114,"Encuesta General de Satisfacción HOSPITALES","HOSPITAL REGIONAL DR. ALEJANDRO CABRAL","martes, 5 de diciembre de 2023 5:36:04 p. m.","Tercer Nivel","San Juan","San Juan","Si","Laboratorio","Muy Buena","Muy Buena","Buena","Buena","Buena","Buena","Buena","Buena"]
[2203117,"Encuesta General de Satisfacción HOSPITALES","HOSPITAL REGIONAL DR. ALEJANDRO CABRAL","martes, 5 de diciembre de 2023 5:36:20 p. m.","Tercer Nivel","San Juan","San Juan","Si","Laboratorio","Buena","Buena","Buena","Buena","Buena","Buena","Buena","Buena"]
[2203118,"Encuesta General de Satisfacción HOSPITALES","HOSPITAL REGIONAL DR. ALEJANDRO CABRAL","martes, 5 de diciembre de 2023 5:36:35 p. m.","Tercer Nivel","San Juan","San Juan","Si","Laboratorio","Buena","Buena","Buena","Buena","Buena","Buena","Buena","Buena"]
[2203127,"Encuesta General de Satisfacción HOSPITALES","HOSPITAL REGIONAL DR. ALEJANDRO CABRAL","martes, 5 de diciembre de 2023 5:38:37 p. m.","Tercer Nivel","San Juan","San Juan","Si","Laboratorio","Buena","Buena","Buena","Buena","Buena","Buena","Buena","Buena"]
[2203134,"Encuesta General de Satisfacción HOSPITALES","HOSPITAL REGIONAL DR. ALEJANDRO CABRAL","martes, 5 de diciembre de 2023 5:39:30 p. m.","Tercer Nivel","San Juan","San Juan","Si","Imágenes","Buena","Buena","Buena","Buena","Buena","Buena","Buena","Buena"]
[2203138,"Encuesta General de Satisfacción HOSPITALES","HOSPITAL REGIONAL DR. ALEJANDRO CABRAL","martes, 5 de diciembre de 2023 5:39:49 p. m.","Tercer Nivel","San Juan","San Juan","Si","Imágenes","Buena","Buena","Buena","Buena","Buena","Buena","Buena","Buena"]
[2203141,"Encuesta General de Satisfacción HOSPITALES","HOSPITAL REGIONAL DR. ALEJANDRO CABRAL","martes, 5 de diciembre de 2023 5:40:06 p. m.","Tercer Nivel","San Juan","San Juan","Si","Hospitalización","Buena","Buena","Buena","Muy Buena","Buena","Buena","Buena","Buena"]
[2203145,"Encuesta General de Satisfacción HOSPITALES","HOSPITAL REGIONAL DR. ALEJANDRO CABRAL","martes, 5 de diciembre de 2023 5:40:19 p. m.","Tercer Nivel","San Juan","San Juan","Si","Hospitalización","Buena","Buena","Buena","Buena","Buena","Buena","Buena","Buena"]
[2203148,"Encuesta General de Satisfacción HOSPITALES","HOSPITAL REGIONAL DR. ALEJANDRO CABRAL","martes, 5 de diciembre de 2023 5:40:34 p. m.","Tercer Nivel","San Juan","San Juan","Si","Emergencia","Buena","Buena","Buena","Buena","Buena","Buena","Buena","Buena"]
[2203151,"Encuesta General de Satisfacción HOSPITALES","HOSPITAL REGIONAL DR. ALEJANDRO CABRAL","martes, 5 de diciembre de 2023 5:40:50 p. m.","Tercer Nivel","San Juan","San Juan","Si","Emergencia","Buena","Buena","Buena","Buena","Buena","Buena","Buena","Buena"]
[2203153,"Encuesta General de Satisfacción HOSPITALES","HOSPITAL REGIONAL DR. ALEJANDRO CABRAL","martes, 5 de diciembre de 2023 5:41:09 p. m.","Tercer Nivel","San Juan","San Juan","Si","Emergencia","Buena","Buena","Buena","Buena","Buena","Regular","Buena","Buena"]
[2208081,"Encuesta General de Satisfacción HOSPITALES","HOSPITAL REGIONAL DR. ALEJANDRO CABRAL","jueves, 7 de diciembre de 2023 4:36:50 p. m.","Tercer Nivel","San Juan","San Juan","Si","Consulta Externa","Buena","Buena","Buena","Buena","Buena","Buena","Buena","Buena"]
[2208134,"Encuesta General de Satisfacción HOSPITALES","HOSPITAL REGIONAL DR. ALEJANDRO CABRAL","jueves, 7 de diciembre de 2023 5:01:00 p. m.","Tercer Nivel","San Juan","San Juan","Si","Consulta Externa","Buena","Buena","Buena","Buena","Buena","Buena","Buena","Buena"]
[2208137,"Encuesta General de Satisfacción HOSPITALES","HOSPITAL REGIONAL DR. ALEJANDRO CABRAL","jueves, 7 de diciembre de 2023 5:01:14 p. m.","Tercer Nivel","San Juan","San Juan","Si","Consulta Externa","Buena","Buena","Buena","Buena","Muy Buena","Muy Buena","Buena","Buena"]
[2208140,"Encuesta General de Satisfacción HOSPITALES","HOSPITAL REGIONAL DR. ALEJANDRO CABRAL","jueves, 7 de diciembre de 2023 5:01:31 p. m.","Tercer Nivel","San Juan","San Juan","Si","Consulta Externa","Buena","Buena","Buena","Buena","Buena","Buena","Buena","Buena"]
[2208143,"Encuesta General de Satisfacción HOSPITALES","HOSPITAL REGIONAL DR. ALEJANDRO CABRAL","jueves, 7 de diciembre de 2023 5:01:55 p. m.","Tercer Nivel","San Juan","San Juan","Si","Consulta Externa","Buena","Buena","Buena","Buena","Buena","Buena","Buena","Muy Buena"]
[2208147,"Encuesta General de Satisfacción HOSPITALES","HOSPITAL REGIONAL DR. ALEJANDRO CABRAL","jueves, 7 de diciembre de 2023 5:02:13 p. m.","Tercer Nivel","San Juan","San Juan","Si","Consulta Externa","Buena","Buena","Buena","Buena","Buena","Buena","Buena","Buena"]
[2208150,"Encuesta General de Satisfacción HOSPITALES","HOSPITAL REGIONAL DR. ALEJANDRO CABRAL","jueves, 7 de diciembre de 2023 5:02:38 p. m.","Tercer Nivel","San Juan","San Juan","Si","Consulta Externa","Buena","Buena","Buena","Buena","Buena","Buena","Buena","Buena"]
[2208152,"Encuesta General de Satisfacción HOSPITALES","HOSPITAL REGIONAL DR. ALEJANDRO CABRAL","jueves, 7 de diciembre de 2023 5:02:54 p. m.","Tercer Nivel","San Juan","San Juan","Si","Laboratorio","Buena","Buena","Muy Buena","Muy Buena","Muy Buena","Muy Buena","Buena","Buena"]
[2208154,"Encuesta General de Satisfacción HOSPITALES","HOSPITAL REGIONAL DR. ALEJANDRO CABRAL","jueves, 7 de diciembre de 2023 5:03:13 p. m.","Tercer Nivel","San Juan","San Juan","Si","Laboratorio","Buena","Buena","Buena","Buena","Buena","Buena","Buena","Buena"]
[2208157,"Encuesta General de Satisfacción HOSPITALES","HOSPITAL REGIONAL DR. ALEJANDRO CABRAL","jueves, 7 de diciembre de 2023 5:03:33 p. m.","Tercer Nivel","San Juan","San Juan","Si","Laboratorio","Buena","Buena","Buena","Buena","Buena","Buena","Buena","Buena"]
[2208160,"Encuesta General de Satisfacción HOSPITALES","HOSPITAL REGIONAL DR. ALEJANDRO CABRAL","jueves, 7 de diciembre de 2023 5:03:56 p. m.","Tercer Nivel","San Juan","San Juan","Si","Laboratorio","Buena","Buena","Buena","Buena","Buena","Buena","Buena","Buena"]
[2208163,"Encuesta General de Satisfacción HOSPITALES","HOSPITAL REGIONAL DR. ALEJANDRO CABRAL","jueves, 7 de diciembre de 2023 5:04:20 p. m.","Tercer Nivel","San Juan","San Juan","Si","Laboratorio","Buena","Buena","Buena","Buena","Buena","Buena","Buena","Buena"]
[2208167,"Encuesta General de Satisfacción HOSPITALES","HOSPITAL REGIONAL DR. ALEJANDRO CABRAL","jueves, 7 de diciembre de 2023 5:04:39 p. m.","Tercer Nivel","San Juan","San Juan","Si","Laboratorio","Buena","Muy Buena","Buena","Buena","Buena","Buena","Buena","Buena"]
[2208168,"Encuesta General de Satisfacción HOSPITALES","HOSPITAL REGIONAL DR. ALEJANDRO CABRAL","jueves, 7 de diciembre de 2023 5:05:02 p. m.","Tercer Nivel","San Juan","San Juan","Si","Laboratorio","Buena","Buena","Buena","Buena","Buena","Buena","Buena","Buena"]
[2208169,"Encuesta General de Satisfacción HOSPITALES","HOSPITAL REGIONAL DR. ALEJANDRO CABRAL","jueves, 7 de diciembre de 2023 5:05:28 p. m.","Tercer Nivel","San Juan","San Juan","Si","Laboratorio","Buena","Buena","Buena","Buena","Buena","Buena","Buena","Buena"]
[2208171,"Encuesta General de Satisfacción HOSPITALES","HOSPITAL REGIONAL DR. ALEJANDRO CABRAL","jueves, 7 de diciembre de 2023 5:05:46 p. m.","Tercer Nivel","San Juan","San Juan","Si","Imágenes","Buena","Buena","Buena","Buena","Buena","Buena","Buena","Buena"]
[2208173,"Encuesta General de Satisfacción HOSPITALES","HOSPITAL REGIONAL DR. ALEJANDRO CABRAL","jueves, 7 de diciembre de 2023 5:06:09 p. m.","Tercer Nivel","San Juan","San Juan","Si","Imágenes","Buena","Buena","Buena","Buena","Buena","Buena","Buena","Buena"]
[2208175,"Encuesta General de Satisfacción HOSPITALES","HOSPITAL REGIONAL DR. ALEJANDRO CABRAL","jueves, 7 de diciembre de 2023 5:06:29 p. m.","Tercer Nivel","San Juan","San Juan","Si","Hospitalización","Buena","Buena","Buena","Buena","Buena","Buena","Buena","Buena"]
[2208176,"Encuesta General de Satisfacción HOSPITALES","HOSPITAL REGIONAL DR. ALEJANDRO CABRAL","jueves, 7 de diciembre de 2023 5:06:50 p. m.","Tercer Nivel","San Juan","San Juan","Si","Hospitalización","Buena","Buena","Buena","Buena","Buena","Buena","Buena","Buena"]
[2208178,"Encuesta General de Satisfacción HOSPITALES","HOSPITAL REGIONAL DR. ALEJANDRO CABRAL","jueves, 7 de diciembre de 2023 5:07:19 p. m.","Tercer Nivel","San Juan","San Juan","Si","Emergencia","Buena","Buena","Buena","Buena","Buena","Buena","Muy Buena","Buena"]
[2208180,"Encuesta General de Satisfacción HOSPITALES","HOSPITAL REGIONAL DR. ALEJANDRO CABRAL","jueves, 7 de diciembre de 2023 5:07:33 p. m.","Tercer Nivel","San Juan","San Juan","Si","Emergencia","Buena","Buena","Buena","Buena","Buena","Buena","Buena","Buena"]
[2208182,"Encuesta General de Satisfacción HOSPITALES","HOSPITAL REGIONAL DR. ALEJANDRO CABRAL","jueves, 7 de diciembre de 2023 5:07:48 p. m.","Tercer Nivel","San Juan","San Juan","Si","Emergencia","Buena","Buena","Buena","Buena","Buena","Buena","Buena","Buena"]
[2210116,"Encuesta General de Satisfacción HOSPITALES","HOSPITAL REGIONAL DR. ALEJANDRO CABRAL","viernes, 8 de diciembre de 2023 5:42:39 p. m.","Tercer Nivel","San Juan","San Juan","Si","Consulta Externa","Buena","Buena","Buena","Buena","Buena","Buena","Buena","Buena"]
[2210118,"Encuesta General de Satisfacción HOSPITALES","HOSPITAL REGIONAL DR. ALEJANDRO CABRAL","viernes, 8 de diciembre de 2023 5:42:53 p. m.","Tercer Nivel","San Juan","San Juan","Si","Consulta Externa","Buena","Buena","Buena","Buena","Buena","Buena","Buena","Buena"]
[2210119,"Encuesta General de Satisfacción HOSPITALES","HOSPITAL REGIONAL DR. ALEJANDRO CABRAL","viernes, 8 de diciembre de 2023 5:43:10 p. m.","Tercer Nivel","San Juan","San Juan","Si","Consulta Externa","Buena","Buena","Buena","Buena","Buena","Buena","Buena","Buena"]
[2210120,"Encuesta General de Satisfacción HOSPITALES","HOSPITAL REGIONAL DR. ALEJANDRO CABRAL","viernes, 8 de diciembre de 2023 5:43:36 p. m.","Tercer Nivel","San Juan","San Juan","Si","Consulta Externa","Muy Buena","Regular","Buena","Buena","Buena","Buena","Buena","Buena"]
[2210122,"Encuesta General de Satisfacción HOSPITALES","HOSPITAL REGIONAL DR. ALEJANDRO CABRAL","viernes, 8 de diciembre de 2023 5:43:50 p. m.","Tercer Nivel","San Juan","San Juan","Si","Consulta Externa","Buena","Buena","Buena","Buena","Buena","Buena","Buena","Buena"]
[2210124,"Encuesta General de Satisfacción HOSPITALES","HOSPITAL REGIONAL DR. ALEJANDRO CABRAL","viernes, 8 de diciembre de 2023 5:44:02 p. m.","Tercer Nivel","San Juan","San Juan","Si","Consulta Externa","Buena","Buena","Buena","Buena","Buena","Buena","Buena","Buena"]
[2210127,"Encuesta General de Satisfacción HOSPITALES","HOSPITAL REGIONAL DR. ALEJANDRO CABRAL","viernes, 8 de diciembre de 2023 5:44:14 p. m.","Tercer Nivel","San Juan","San Juan","Si","Consulta Externa","Buena","Buena","Muy Buena","Buena","Buena","Buena","Buena","Buena"]
[2210128,"Encuesta General de Satisfacción HOSPITALES","HOSPITAL REGIONAL DR. ALEJANDRO CABRAL","viernes, 8 de diciembre de 2023 5:44:29 p. m.","Tercer Nivel","San Juan","San Juan","Si","Laboratorio","Buena","Buena","Buena","Buena","Buena","Buena","Buena","Buena"]
[2210131,"Encuesta General de Satisfacción HOSPITALES","HOSPITAL REGIONAL DR. ALEJANDRO CABRAL","viernes, 8 de diciembre de 2023 5:44:42 p. m.","Tercer Nivel","San Juan","San Juan","Si","Hospitalización","Buena","Buena","Buena","Buena","Buena","Buena","Buena","Buena"]
[2210132,"Encuesta General de Satisfacción HOSPITALES","HOSPITAL REGIONAL DR. ALEJANDRO CABRAL","viernes, 8 de diciembre de 2023 5:45:01 p. m.","Tercer Nivel","San Juan","San Juan","Si","Hospitalización","Buena","Regular","Regular","Regular","Regular","Regular","Regular","Regular"]
[2210135,"Encuesta General de Satisfacción HOSPITALES","HOSPITAL REGIONAL DR. ALEJANDRO CABRAL","viernes, 8 de diciembre de 2023 5:45:20 p. m.","Tercer Nivel","San Juan","San Juan","Si","Laboratorio","Buena","Buena","Buena","Buena","Buena","Buena","Buena","Buena"]
[2210138,"Encuesta General de Satisfacción HOSPITALES","HOSPITAL REGIONAL DR. ALEJANDRO CABRAL","viernes, 8 de diciembre de 2023 5:45:35 p. m.","Tercer Nivel","San Juan","San Juan","Si","Laboratorio","Buena","Buena","Buena","Buena","Buena","Buena","Buena","Buena"]
[2210140,"Encuesta General de Satisfacción HOSPITALES","HOSPITAL REGIONAL DR. ALEJANDRO CABRAL","viernes, 8 de diciembre de 2023 5:45:50 p. m.","Tercer Nivel","San Juan","San Juan","Si","Laboratorio","Buena","Buena","Buena","Buena","Buena","Buena","Buena","Buena"]
[2210142,"Encuesta General de Satisfacción HOSPITALES","HOSPITAL REGIONAL DR. ALEJANDRO CABRAL","viernes, 8 de diciembre de 2023 5:46:05 p. m.","Tercer Nivel","San Juan","San Juan","Si","Laboratorio","Buena","Buena","Buena","Buena","Buena","Buena","Buena","Muy Buena"]
[2210145,"Encuesta General de Satisfacción HOSPITALES","HOSPITAL REGIONAL DR. ALEJANDRO CABRAL","viernes, 8 de diciembre de 2023 5:46:19 p. m.","Tercer Nivel","San Juan","San Juan","Si","Laboratorio","Buena","Buena","Buena","Buena","Buena","Buena","Buena","Buena"]
[2210147,"Encuesta General de Satisfacción HOSPITALES","HOSPITAL REGIONAL DR. ALEJANDRO CABRAL","viernes, 8 de diciembre de 2023 5:46:39 p. m.","Tercer Nivel","San Juan","San Juan","Si","Imágenes","Buena","Regular","Buena","Buena","Buena","Buena","Buena","Buena"]
[2210149,"Encuesta General de Satisfacción HOSPITALES","HOSPITAL REGIONAL DR. ALEJANDRO CABRAL","viernes, 8 de diciembre de 2023 5:46:56 p. m.","Tercer Nivel","San Juan","San Juan","Si","Imágenes","Buena","Buena","Buena","Buena","Buena","Buena","Buena","Buena"]
[2210152,"Encuesta General de Satisfacción HOSPITALES","HOSPITAL REGIONAL DR. ALEJANDRO CABRAL","viernes, 8 de diciembre de 2023 5:47:10 p. m.","Tercer Nivel","San Juan","San Juan","Si","Emergencia","Buena","Buena","Buena","Buena","Buena","Buena","Buena","Buena"]
[2210153,"Encuesta General de Satisfacción HOSPITALES","HOSPITAL REGIONAL DR. ALEJANDRO CABRAL","viernes, 8 de diciembre de 2023 5:47:24 p. m.","Tercer Nivel","San Juan","San Juan","Si","Emergencia","Buena","Regular","Regular","Regular","Regular","Regular","Regular","Regular"]
[2210156,"Encuesta General de Satisfacción HOSPITALES","HOSPITAL REGIONAL DR. ALEJANDRO CABRAL","viernes, 8 de diciembre de 2023 5:47:47 p. m.","Tercer Nivel","San Juan","San Juan","Si","Emergencia","Buena","Buena","Buena","Buena","Buena","Buena","Buena","Buena"]
[2210582,"Encuesta General de Satisfacción HOSPITALES","HOSPITAL REGIONAL DR. ALEJANDRO CABRAL","sábado, 9 de diciembre de 2023 10:27:06 p. m.","Tercer Nivel","San Juan","San Juan","Si","Emergencia","Buena","Buena","Buena","Buena","Buena","Buena","Buena","Buena"]
[2210583,"Encuesta General de Satisfacción HOSPITALES","HOSPITAL REGIONAL DR. ALEJANDRO CABRAL","sábado, 9 de diciembre de 2023 10:27:31 p. m.","Tercer Nivel","San Juan","San Juan","Si","Emergencia","Regular","Buena","Buena","Buena","Buena","Buena","Buena","Buena"]
[2210584,"Encuesta General de Satisfacción HOSPITALES","HOSPITAL REGIONAL DR. ALEJANDRO CABRAL","sábado, 9 de diciembre de 2023 10:28:04 p. m.","Tercer Nivel","San Juan","San Juan","Si","Emergencia","Muy Buena","Buena","Muy Buena","Muy Buena","Buena","Buena","Regular","Muy Buena"]
[2210585,"Encuesta General de Satisfacción HOSPITALES","HOSPITAL REGIONAL DR. ALEJANDRO CABRAL","sábado, 9 de diciembre de 2023 10:28:28 p. m.","Tercer Nivel","San Juan","San Juan","Si","Hospitalización","Buena","Buena","Muy Buena","Muy Buena","Muy Buena","Buena","Buena","Buena"]
[2210586,"Encuesta General de Satisfacción HOSPITALES","HOSPITAL REGIONAL DR. ALEJANDRO CABRAL","sábado, 9 de diciembre de 2023 10:28:56 p. m.","Tercer Nivel","San Juan","San Juan","Si","Hospitalización","Buena","Buena","Buena","Buena","Regular","Buena","Buena","Muy Buena"]
[2210620,"Encuesta General de Satisfacción HOSPITALES","HOSPITAL REGIONAL DR. ALEJANDRO CABRAL","domingo, 10 de diciembre de 2023 10:46:44 p. m.","Tercer Nivel","San Juan","San Juan","Si","Emergencia","Buena","Buena","Buena","Buena","Regular","Buena","Buena","Buena"]
[2210621,"Encuesta General de Satisfacción HOSPITALES","HOSPITAL REGIONAL DR. ALEJANDRO CABRAL","domingo, 10 de diciembre de 2023 10:47:15 p. m.","Tercer Nivel","San Juan","San Juan","Si","Emergencia","Buena","Muy Buena","Muy Buena","Buena","Regular","Regular","Buena","Buena"]
[2210622,"Encuesta General de Satisfacción HOSPITALES","HOSPITAL REGIONAL DR. ALEJANDRO CABRAL","domingo, 10 de diciembre de 2023 10:47:39 p. m.","Tercer Nivel","San Juan","San Juan","Si","Emergencia","Buena","Buena","Buena","Buena","Regular","Regular","Regular","Regular"]
[2210623,"Encuesta General de Satisfacción HOSPITALES","HOSPITAL REGIONAL DR. ALEJANDRO CABRAL","domingo, 10 de diciembre de 2023 10:47:59 p. m.","Tercer Nivel","San Juan","San Juan","Si","Hospitalización","Buena","Buena","Buena","Buena","Buena","Buena","Buena","Buena"]
[2210624,"Encuesta General de Satisfacción HOSPITALES","HOSPITAL REGIONAL DR. ALEJANDRO CABRAL","domingo, 10 de diciembre de 2023 10:48:24 p. m.","Tercer Nivel","San Juan","San Juan","Si","Hospitalización","Buena","Buena","Muy Buena","Buena","Buena","Buena","Buena","Buena"]
[2214967,"Encuesta General de Satisfacción HOSPITALES","HOSPITAL REGIONAL DR. ALEJANDRO CABRAL","martes, 12 de diciembre de 2023 5:06:32 p. m.","Tercer Nivel","San Juan","San Juan","Si","Consulta Externa","Buena","Buena","Buena","Buena","Buena","Buena","Buena","Buena"]
[2214968,"Encuesta General de Satisfacción HOSPITALES","HOSPITAL REGIONAL DR. ALEJANDRO CABRAL","martes, 12 de diciembre de 2023 5:06:46 p. m.","Tercer Nivel","San Juan","San Juan","Si","Consulta Externa","Buena","Buena","Buena","Buena","Buena","Buena","Buena","Buena"]
[2214969,"Encuesta General de Satisfacción HOSPITALES","HOSPITAL REGIONAL DR. ALEJANDRO CABRAL","martes, 12 de diciembre de 2023 5:07:02 p. m.","Tercer Nivel","San Juan","San Juan","Si","Consulta Externa","Buena","Buena","Buena","Buena","Buena","Buena","Buena","Buena"]
[2214970,"Encuesta General de Satisfacción HOSPITALES","HOSPITAL REGIONAL DR. ALEJANDRO CABRAL","martes, 12 de diciembre de 2023 5:07:27 p. m.","Tercer Nivel","San Juan","San Juan","Si","Consulta Externa","Buena","Buena","Buena","Buena","Buena","Buena","Buena","Buena"]
[2214971,"Encuesta General de Satisfacción HOSPITALES","HOSPITAL REGIONAL DR. ALEJANDRO CABRAL","martes, 12 de diciembre de 2023 5:07:45 p. m.","Tercer Nivel","San Juan","San Juan","Si","Consulta Externa","Buena","Buena","Buena","Buena","Buena","Buena","Buena","Buena"]
[2214972,"Encuesta General de Satisfacción HOSPITALES","HOSPITAL REGIONAL DR. ALEJANDRO CABRAL","martes, 12 de diciembre de 2023 5:08:02 p. m.","Tercer Nivel","San Juan","San Juan","Si","Consulta Externa","Buena","Buena","Buena","Buena","Buena","Buena","Buena","Buena"]
[2214973,"Encuesta General de Satisfacción HOSPITALES","HOSPITAL REGIONAL DR. ALEJANDRO CABRAL","martes, 12 de diciembre de 2023 5:08:20 p. m.","Tercer Nivel","San Juan","San Juan","Si","Consulta Externa","Muy Buena","Buena","Buena","Buena","Buena","Buena","Buena","Buena"]
[2214974,"Encuesta General de Satisfacción HOSPITALES","HOSPITAL REGIONAL DR. ALEJANDRO CABRAL","martes, 12 de diciembre de 2023 5:08:45 p. m.","Tercer Nivel","San Juan","San Juan","Si","Laboratorio","Buena","Buena","Buena","Buena","Buena","Buena","Buena","Buena"]
[2214975,"Encuesta General de Satisfacción HOSPITALES","HOSPITAL REGIONAL DR. ALEJANDRO CABRAL","martes, 12 de diciembre de 2023 5:08:59 p. m.","Tercer Nivel","San Juan","San Juan","Si","Laboratorio","Buena","Muy Buena","Buena","Buena","Buena","Buena","Buena","Buena"]
[2214976,"Encuesta General de Satisfacción HOSPITALES","HOSPITAL REGIONAL DR. ALEJANDRO CABRAL","martes, 12 de diciembre de 2023 5:09:12 p. m.","Tercer Nivel","San Juan","San Juan","Si","Laboratorio","Buena","Muy Buena","Buena","Buena","Buena","Buena","Buena","Buena"]
[2214977,"Encuesta General de Satisfacción HOSPITALES","HOSPITAL REGIONAL DR. ALEJANDRO CABRAL","martes, 12 de diciembre de 2023 5:09:27 p. m.","Tercer Nivel","San Juan","San Juan","Si","Laboratorio","Buena","Buena","Buena","Buena","Buena","Muy Buena","Buena","Buena"]
[2214978,"Encuesta General de Satisfacción HOSPITALES","HOSPITAL REGIONAL DR. ALEJANDRO CABRAL","martes, 12 de diciembre de 2023 5:09:42 p. m.","Tercer Nivel","San Juan","San Juan","Si","Laboratorio","Buena","Buena","Buena","Buena","Buena","Buena","Buena","Buena"]
[2214979,"Encuesta General de Satisfacción HOSPITALES","HOSPITAL REGIONAL DR. ALEJANDRO CABRAL","martes, 12 de diciembre de 2023 5:09:57 p. m.","Tercer Nivel","San Juan","San Juan","Si","Laboratorio","Buena","Buena","Buena","Buena","Buena","Buena","Buena","Buena"]
[2214980,"Encuesta General de Satisfacción HOSPITALES","HOSPITAL REGIONAL DR. ALEJANDRO CABRAL","martes, 12 de diciembre de 2023 5:10:11 p. m.","Tercer Nivel","San Juan","San Juan","Si","Imágenes","Buena","Buena","Buena","Buena","Buena","Buena","Buena","Buena"]
[2214981,"Encuesta General de Satisfacción HOSPITALES","HOSPITAL REGIONAL DR. ALEJANDRO CABRAL","martes, 12 de diciembre de 2023 5:10:27 p. m.","Tercer Nivel","San Juan","San Juan","Si","Imágenes","Buena","Buena","Buena","Buena","Buena","Buena","Buena","Buena"]
[2214982,"Encuesta General de Satisfacción HOSPITALES","HOSPITAL REGIONAL DR. ALEJANDRO CABRAL","martes, 12 de diciembre de 2023 5:10:46 p. m.","Tercer Nivel","San Juan","San Juan","Si","Imágenes","Buena","Buena","Buena","Buena","Buena","Buena","Buena","Buena"]
[2214983,"Encuesta General de Satisfacción HOSPITALES","HOSPITAL REGIONAL DR. ALEJANDRO CABRAL","martes, 12 de diciembre de 2023 5:11:00 p. m.","Tercer Nivel","San Juan","San Juan","Si","Hospitalización","Buena","Buena","Buena","Buena","Buena","Buena","Buena","Buena"]
[2214984,"Encuesta General de Satisfacción HOSPITALES","HOSPITAL REGIONAL DR. ALEJANDRO CABRAL","martes, 12 de diciembre de 2023 5:11:14 p. m.","Tercer Nivel","San Juan","San Juan","Si","Hospitalización","Buena","Buena","Buena","Buena","Regular","Regular","Regular","Regular"]
[2214986,"Encuesta General de Satisfacción HOSPITALES","HOSPITAL REGIONAL DR. ALEJANDRO CABRAL","martes, 12 de diciembre de 2023 5:11:39 p. m.","Tercer Nivel","San Juan","San Juan","Si","Emergencia","Buena","Buena","Buena","Buena","Buena","Buena","Buena","Buena"]
[2214987,"Encuesta General de Satisfacción HOSPITALES","HOSPITAL REGIONAL DR. ALEJANDRO CABRAL","martes, 12 de diciembre de 2023 5:11:57 p. m.","Tercer Nivel","San Juan","San Juan","Si","Emergencia","Buena","Buena","Buena","Regular","Regular","Regular","Regular","Regular"]
[2214988,"Encuesta General de Satisfacción HOSPITALES","HOSPITAL REGIONAL DR. ALEJANDRO CABRAL","martes, 12 de diciembre de 2023 5:12:14 p. m.","Tercer Nivel","San Juan","San Juan","Si","Emergencia","Buena","Buena","Buena","Buena","Buena","Buena","Buena","Buena"]
[2223399,"Encuesta General de Satisfacción HOSPITALES","HOSPITAL REGIONAL DR. ALEJANDRO CABRAL","sábado, 16 de diciembre de 2023 4:11:41 p. m.","Tercer Nivel","San Juan","San Juan","Si","Emergencia","Muy Buena","Muy Buena","Buena","Muy Buena","Buena","Buena","Buena","Buena"]
[2223400,"Encuesta General de Satisfacción HOSPITALES","HOSPITAL REGIONAL DR. ALEJANDRO CABRAL","sábado, 16 de diciembre de 2023 4:12:26 p. m.","Tercer Nivel","San Juan","San Juan","Si","Emergencia","Buena","Buena","Buena","Buena","Buena","Buena","Buena","Buena"]
[2223401,"Encuesta General de Satisfacción HOSPITALES","HOSPITAL REGIONAL DR. ALEJANDRO CABRAL","sábado, 16 de diciembre de 2023 4:15:07 p. m.","Tercer Nivel","San Juan","San Juan","Si","Emergencia","Buena","Buena","Muy Buena","Buena","Buena","Buena","Buena","Buena"]
[2223402,"Encuesta General de Satisfacción HOSPITALES","HOSPITAL REGIONAL DR. ALEJANDRO CABRAL","sábado, 16 de diciembre de 2023 4:19:36 p. m.","Tercer Nivel","San Juan","San Juan","Si","Hospitalización","Buena","Muy Buena","Muy Buena","Buena","Regular","Buena","Buena","Buena"]
[2223403,"Encuesta General de Satisfacción HOSPITALES","HOSPITAL REGIONAL DR. ALEJANDRO CABRAL","sábado, 16 de diciembre de 2023 4:20:10 p. m.","Tercer Nivel","San Juan","San Juan","Si","Hospitalización","Buena","Buena","Buena","Buena","Buena","Muy Buena","Buena","Buena"]
[2223494,"Encuesta General de Satisfacción HOSPITALES","HOSPITAL REGIONAL DR. ALEJANDRO CABRAL","domingo, 17 de diciembre de 2023 8:58:13 p. m.","Tercer Nivel","San Juan","San Juan","Si","Emergencia","Buena","Buena","Buena","Buena","Buena","Muy Buena","Regular","Buena"]
[2223495,"Encuesta General de Satisfacción HOSPITALES","HOSPITAL REGIONAL DR. ALEJANDRO CABRAL","domingo, 17 de diciembre de 2023 8:58:52 p. m.","Tercer Nivel","San Juan","San Juan","Si","Emergencia","Buena","Muy Buena","Muy Buena","Buena","Buena","Muy Buena","Buena","Muy Buena"]
[2223496,"Encuesta General de Satisfacción HOSPITALES","HOSPITAL REGIONAL DR. ALEJANDRO CABRAL","domingo, 17 de diciembre de 2023 8:59:30 p. m.","Tercer Nivel","San Juan","San Juan","Si","Emergencia","Buena","Buena","Buena","Buena","Buena","Buena","Buena","Buena"]
[2223497,"Encuesta General de Satisfacción HOSPITALES","HOSPITAL REGIONAL DR. ALEJANDRO CABRAL","domingo, 17 de diciembre de 2023 9:01:10 p. m.","Tercer Nivel","San Juan","San Juan","Si","Hospitalización","Buena","Buena","Buena","Buena","Regular","Buena","Buena","Buena"]
[2223498,"Encuesta General de Satisfacción HOSPITALES","HOSPITAL REGIONAL DR. ALEJANDRO CABRAL","domingo, 17 de diciembre de 2023 9:01:52 p. m.","Tercer Nivel","San Juan","San Juan","Si","Hospitalización","Buena","Buena","Muy Buena","Muy Buena","Buena","Buena","Buena","Buena"]
[2227311,"Encuesta General de Satisfacción HOSPITALES","HOSPITAL REGIONAL DR. ALEJANDRO CABRAL","martes, 19 de diciembre de 2023 4:40:28 p. m.","Tercer Nivel","San Juan","San Juan","Si","Consulta Externa","Buena","Buena","Buena","Buena","Buena","Buena","Buena","Buena"]
[2227313,"Encuesta General de Satisfacción HOSPITALES","HOSPITAL REGIONAL DR. ALEJANDRO CABRAL","martes, 19 de diciembre de 2023 4:40:42 p. m.","Tercer Nivel","San Juan","San Juan","Si","Consulta Externa","Buena","Regular","Buena","Buena","Buena","Buena","Buena","Buena"]
[2227314,"Encuesta General de Satisfacción HOSPITALES","HOSPITAL REGIONAL DR. ALEJANDRO CABRAL","martes, 19 de diciembre de 2023 4:40:59 p. m.","Tercer Nivel","San Juan","San Juan","Si","Consulta Externa","Buena","Buena","Buena","Buena","Buena","Buena","Buena","Buena"]
[2227317,"Encuesta General de Satisfacción HOSPITALES","HOSPITAL REGIONAL DR. ALEJANDRO CABRAL","martes, 19 de diciembre de 2023 4:41:15 p. m.","Tercer Nivel","San Juan","San Juan","Si","Consulta Externa","Buena","Buena","Buena","Buena","Buena","Buena","Buena","Buena"]
[2227322,"Encuesta General de Satisfacción HOSPITALES","HOSPITAL REGIONAL DR. ALEJANDRO CABRAL","martes, 19 de diciembre de 2023 4:42:00 p. m.","Tercer Nivel","San Juan","San Juan","Si","Consulta Externa","Buena","Buena","Buena","Buena","Buena","Buena","Buena","Buena"]
[2227324,"Encuesta General de Satisfacción HOSPITALES","HOSPITAL REGIONAL DR. ALEJANDRO CABRAL","martes, 19 de diciembre de 2023 4:42:25 p. m.","Tercer Nivel","San Juan","San Juan","Si","Consulta Externa","Buena","Buena","Buena","Buena","Buena","Buena","Muy Buena","Buena"]
[2227326,"Encuesta General de Satisfacción HOSPITALES","HOSPITAL REGIONAL DR. ALEJANDRO CABRAL","martes, 19 de diciembre de 2023 4:42:51 p. m.","Tercer Nivel","San Juan","San Juan","Si","Consulta Externa","Buena","Buena","Buena","Buena","Buena","Buena","Muy Buena","Buena"]
[2227328,"Encuesta General de Satisfacción HOSPITALES","HOSPITAL REGIONAL DR. ALEJANDRO CABRAL","martes, 19 de diciembre de 2023 4:43:06 p. m.","Tercer Nivel","San Juan","San Juan","Si","Consulta Externa","Buena","Buena","Buena","Buena","Buena","Buena","Buena","Buena"]
[2227329,"Encuesta General de Satisfacción HOSPITALES","HOSPITAL REGIONAL DR. ALEJANDRO CABRAL","martes, 19 de diciembre de 2023 4:43:26 p. m.","Tercer Nivel","San Juan","San Juan","Si","Consulta Externa","Muy Buena","Buena","Buena","Buena","Buena","Muy Buena","Buena","Buena"]
[2227330,"Encuesta General de Satisfacción HOSPITALES","HOSPITAL REGIONAL DR. ALEJANDRO CABRAL","martes, 19 de diciembre de 2023 4:43:43 p. m.","Tercer Nivel","San Juan","San Juan","Si","Consulta Externa","Buena","Buena","Buena","Buena","Buena","Buena","Buena","Buena"]
[2227332,"Encuesta General de Satisfacción HOSPITALES","HOSPITAL REGIONAL DR. ALEJANDRO CABRAL","martes, 19 de diciembre de 2023 4:44:05 p. m.","Tercer Nivel","San Juan","San Juan","Si","Consulta Externa","Buena","Regular","Buena","Buena","Buena","Buena","Buena","Buena"]
[2227333,"Encuesta General de Satisfacción HOSPITALES","HOSPITAL REGIONAL DR. ALEJANDRO CABRAL","martes, 19 de diciembre de 2023 4:44:24 p. m.","Tercer Nivel","San Juan","San Juan","Si","Consulta Externa","Buena","Buena","Buena","Buena","Buena","Buena","Buena","Buena"]
[2227337,"Encuesta General de Satisfacción HOSPITALES","HOSPITAL REGIONAL DR. ALEJANDRO CABRAL","martes, 19 de diciembre de 2023 4:44:52 p. m.","Tercer Nivel","San Juan","San Juan","Si","Consulta Externa","Buena","Buena","Buena","Buena","Buena","Buena","Buena","Muy Buena"]
[2227343,"Encuesta General de Satisfacción HOSPITALES","HOSPITAL REGIONAL DR. ALEJANDRO CABRAL","martes, 19 de diciembre de 2023 4:45:40 p. m.","Tercer Nivel","San Juan","San Juan","Si","Consulta Externa","Buena","Buena","Buena","Buena","Regular","Buena","Buena","Buena"]
[2227346,"Encuesta General de Satisfacción HOSPITALES","HOSPITAL REGIONAL DR. ALEJANDRO CABRAL","martes, 19 de diciembre de 2023 4:45:58 p. m.","Tercer Nivel","San Juan","San Juan","Si","Laboratorio","Buena","Buena","Buena","Buena","Buena","Buena","Buena","Buena"]
[2227351,"Encuesta General de Satisfacción HOSPITALES","HOSPITAL REGIONAL DR. ALEJANDRO CABRAL","martes, 19 de diciembre de 2023 4:46:17 p. m.","Tercer Nivel","San Juan","San Juan","Si","Laboratorio","Buena","Buena","Buena","Buena","Buena","Buena","Buena","Buena"]
[2227357,"Encuesta General de Satisfacción HOSPITALES","HOSPITAL REGIONAL DR. ALEJANDRO CABRAL","martes, 19 de diciembre de 2023 4:46:48 p. m.","Tercer Nivel","San Juan","San Juan","Si","Laboratorio","Buena","Buena","Muy Buena","Buena","Buena","Buena","Buena","Buena"]
[2227364,"Encuesta General de Satisfacción HOSPITALES","HOSPITAL REGIONAL DR. ALEJANDRO CABRAL","martes, 19 de diciembre de 2023 4:47:28 p. m.","Tercer Nivel","San Juan","San Juan","Si","Laboratorio","Buena","Buena","Buena","Buena","Buena","Buena","Buena","Buena"]
[2227365,"Encuesta General de Satisfacción HOSPITALES","HOSPITAL REGIONAL DR. ALEJANDRO CABRAL","martes, 19 de diciembre de 2023 4:47:52 p. m.","Tercer Nivel","San Juan","San Juan","Si","Laboratorio","Buena","Buena","Buena","Buena","Buena","Buena","Buena","Buena"]
[2227366,"Encuesta General de Satisfacción HOSPITALES","HOSPITAL REGIONAL DR. ALEJANDRO CABRAL","martes, 19 de diciembre de 2023 4:48:10 p. m.","Tercer Nivel","San Juan","San Juan","Si","Laboratorio","Buena","Buena","Muy Buena","Muy Buena","Muy Buena","Muy Buena","Muy Buena","Muy Buena"]
[2227367,"Encuesta General de Satisfacción HOSPITALES","HOSPITAL REGIONAL DR. ALEJANDRO CABRAL","martes, 19 de diciembre de 2023 4:48:29 p. m.","Tercer Nivel","San Juan","San Juan","Si","Laboratorio","Buena","Muy Buena","Muy Buena","Muy Buena","Muy Buena","Muy Buena","Muy Buena","Muy Buena"]
[2227368,"Encuesta General de Satisfacción HOSPITALES","HOSPITAL REGIONAL DR. ALEJANDRO CABRAL","martes, 19 de diciembre de 2023 4:48:52 p. m.","Tercer Nivel","San Juan","San Juan","Si","Laboratorio","Muy Buena","Muy Buena","Muy Buena","Muy Buena","Muy Buena","Muy Buena","Buena","Muy Buena"]
[2227369,"Encuesta General de Satisfacción HOSPITALES","HOSPITAL REGIONAL DR. ALEJANDRO CABRAL","martes, 19 de diciembre de 2023 4:49:17 p. m.","Tercer Nivel","San Juan","San Juan","Si","Laboratorio","Buena","Buena","Buena","Buena","Buena","Buena","Buena","Buena"]
[2227370,"Encuesta General de Satisfacción HOSPITALES","HOSPITAL REGIONAL DR. ALEJANDRO CABRAL","martes, 19 de diciembre de 2023 4:49:39 p. m.","Tercer Nivel","San Juan","San Juan","Si","Imágenes","Buena","Buena","Buena","Buena","Buena","Buena","Buena","Buena"]
[2227376,"Encuesta General de Satisfacción HOSPITALES","HOSPITAL REGIONAL DR. ALEJANDRO CABRAL","martes, 19 de diciembre de 2023 4:51:51 p. m.","Tercer Nivel","San Juan","San Juan","Si","Imágenes","Regular","Muy Buena","Buena","Buena","Buena","Buena","Buena","Buena"]
[2227430,"Encuesta General de Satisfacción HOSPITALES","HOSPITAL REGIONAL DR. ALEJANDRO CABRAL","martes, 19 de diciembre de 2023 5:07:40 p. m.","Tercer Nivel","San Juan","San Juan","Si","Imágenes","Buena","Buena","Buena","Buena","Buena","Buena","Buena","Buena"]
[2227432,"Encuesta General de Satisfacción HOSPITALES","HOSPITAL REGIONAL DR. ALEJANDRO CABRAL","martes, 19 de diciembre de 2023 5:07:56 p. m.","Tercer Nivel","San Juan","San Juan","Si","Imágenes","Buena","Buena","Buena","Buena","Buena","Buena","Buena","Buena"]
[2227433,"Encuesta General de Satisfacción HOSPITALES","HOSPITAL REGIONAL DR. ALEJANDRO CABRAL","martes, 19 de diciembre de 2023 5:08:10 p. m.","Tercer Nivel","San Juan","San Juan","Si","Hospitalización","Buena","Buena","Buena","Buena","Buena","Buena","Buena","Buena"]
[2227435,"Encuesta General de Satisfacción HOSPITALES","HOSPITAL REGIONAL DR. ALEJANDRO CABRAL","martes, 19 de diciembre de 2023 5:08:26 p. m.","Tercer Nivel","San Juan","San Juan","Si","Hospitalización","Buena","Regular","Regular","Regular","Regular","Buena","Buena","Regular"]
[2227437,"Encuesta General de Satisfacción HOSPITALES","HOSPITAL REGIONAL DR. ALEJANDRO CABRAL","martes, 19 de diciembre de 2023 5:08:55 p. m.","Tercer Nivel","San Juan","San Juan","Si","Hospitalización","Buena","Buena","Buena","Buena","Buena","Buena","Buena","Buena"]
[2227439,"Encuesta General de Satisfacción HOSPITALES","HOSPITAL REGIONAL DR. ALEJANDRO CABRAL","martes, 19 de diciembre de 2023 5:09:10 p. m.","Tercer Nivel","San Juan","San Juan","Si","Emergencia","Buena","Buena","Buena","Buena","Buena","Buena","Buena","Buena"]
[2227442,"Encuesta General de Satisfacción HOSPITALES","HOSPITAL REGIONAL DR. ALEJANDRO CABRAL","martes, 19 de diciembre de 2023 5:09:29 p. m.","Tercer Nivel","San Juan","San Juan","Si","Emergencia","Buena","Buena","Buena","Buena","Buena","Buena","Buena","Buena"]
[2227445,"Encuesta General de Satisfacción HOSPITALES","HOSPITAL REGIONAL DR. ALEJANDRO CABRAL","martes, 19 de diciembre de 2023 5:10:12 p. m.","Tercer Nivel","San Juan","San Juan","Si","Emergencia","Buena","Buena","Buena","Buena","Buena","Buena","Buena","Buena"]
[2227446,"Encuesta General de Satisfacción HOSPITALES","HOSPITAL REGIONAL DR. ALEJANDRO CABRAL","martes, 19 de diciembre de 2023 5:10:28 p. m.","Tercer Nivel","San Juan","San Juan","Si","Emergencia","Regular","Regular","Regular","Regular","Regular","Regular","Regular","Regular"]
[2227449,"Encuesta General de Satisfacción HOSPITALES","HOSPITAL REGIONAL DR. ALEJANDRO CABRAL","martes, 19 de diciembre de 2023 5:16:35 p. m.","Tercer Nivel","San Juan","San Juan","Si","Emergencia","Buena","Buena","Buena","Buena","Buena","Buena","Buena","Buena"]
[2229729,"Encuesta General de Satisfacción HOSPITALES","HOSPITAL REGIONAL DR. ALEJANDRO CABRAL","miércoles, 20 de diciembre de 2023 6:12:30 p. m.","Tercer Nivel","San Juan","San Juan","Si","Consulta Externa","Buena","Buena","Buena","Buena","Buena","Buena","Buena","Buena"]
[2229730,"Encuesta General de Satisfacción HOSPITALES","HOSPITAL REGIONAL DR. ALEJANDRO CABRAL","miércoles, 20 de diciembre de 2023 6:12:47 p. m.","Tercer Nivel","San Juan","San Juan","Si","Consulta Externa","Buena","Buena","Buena","Buena","Buena","Buena","Buena","Buena"]
[2229733,"Encuesta General de Satisfacción HOSPITALES","HOSPITAL REGIONAL DR. ALEJANDRO CABRAL","miércoles, 20 de diciembre de 2023 6:13:02 p. m.","Tercer Nivel","San Juan","San Juan","Si","Consulta Externa","Buena","Regular","Buena","Buena","Buena","Buena","Buena","Buena"]
[2229735,"Encuesta General de Satisfacción HOSPITALES","HOSPITAL REGIONAL DR. ALEJANDRO CABRAL","miércoles, 20 de diciembre de 2023 6:13:24 p. m.","Tercer Nivel","San Juan","San Juan","Si","Consulta Externa","Buena","Buena","Buena","Buena","Buena","Buena","Buena","Buena"]
[2229737,"Encuesta General de Satisfacción HOSPITALES","HOSPITAL REGIONAL DR. ALEJANDRO CABRAL","miércoles, 20 de diciembre de 2023 6:13:46 p. m.","Tercer Nivel","San Juan","San Juan","Si","Consulta Externa","Buena","Buena","Buena","Buena","Buena","Buena","Buena","Buena"]
[2229738,"Encuesta General de Satisfacción HOSPITALES","HOSPITAL REGIONAL DR. ALEJANDRO CABRAL","miércoles, 20 de diciembre de 2023 6:14:06 p. m.","Tercer Nivel","San Juan","San Juan","Si","Consulta Externa","Buena","Buena","Buena","Buena","Regular","Buena","Buena","Buena"]
[2229741,"Encuesta General de Satisfacción HOSPITALES","HOSPITAL REGIONAL DR. ALEJANDRO CABRAL","miércoles, 20 de diciembre de 2023 6:14:23 p. m.","Tercer Nivel","San Juan","San Juan","Si","Consulta Externa","Buena","Buena","Buena","Buena","Buena","Buena","Buena","Buena"]
[2229746,"Encuesta General de Satisfacción HOSPITALES","HOSPITAL REGIONAL DR. ALEJANDRO CABRAL","miércoles, 20 de diciembre de 2023 6:14:47 p. m.","Tercer Nivel","San Juan","San Juan","Si","Consulta Externa","Buena","Buena","Buena","Buena","Buena","Buena","Buena","Buena"]
[2229748,"Encuesta General de Satisfacción HOSPITALES","HOSPITAL REGIONAL DR. ALEJANDRO CABRAL","miércoles, 20 de diciembre de 2023 6:15:04 p. m.","Tercer Nivel","San Juan","San Juan","Si","Laboratorio","Buena","Buena","Buena","Buena","Buena","Buena","Buena","Buena"]
[2229750,"Encuesta General de Satisfacción HOSPITALES","HOSPITAL REGIONAL DR. ALEJANDRO CABRAL","miércoles, 20 de diciembre de 2023 6:15:24 p. m.","Tercer Nivel","San Juan","San Juan","Si","Laboratorio","Buena","Buena","Buena","Muy Buena","Buena","Muy Buena","Muy Buena","Muy Buena"]
[2229752,"Encuesta General de Satisfacción HOSPITALES","HOSPITAL REGIONAL DR. ALEJANDRO CABRAL","miércoles, 20 de diciembre de 2023 6:15:38 p. m.","Tercer Nivel","San Juan","San Juan","Si","Laboratorio","Muy Buena","Muy Buena","Muy Buena","Muy Buena","Muy Buena","Muy Buena","Muy Buena","Muy Buena"]
[2229754,"Encuesta General de Satisfacción HOSPITALES","HOSPITAL REGIONAL DR. ALEJANDRO CABRAL","miércoles, 20 de diciembre de 2023 6:15:55 p. m.","Tercer Nivel","San Juan","San Juan","Si","Laboratorio","Buena","Buena","Buena","Buena","Buena","Buena","Buena","Buena"]
[2229755,"Encuesta General de Satisfacción HOSPITALES","HOSPITAL REGIONAL DR. ALEJANDRO CABRAL","miércoles, 20 de diciembre de 2023 6:16:14 p. m.","Tercer Nivel","San Juan","San Juan","Si","Laboratorio","Muy Buena","Buena","Buena","Buena","Buena","Buena","Buena","Buena"]
[2229757,"Encuesta General de Satisfacción HOSPITALES","HOSPITAL REGIONAL DR. ALEJANDRO CABRAL","miércoles, 20 de diciembre de 2023 6:16:27 p. m.","Tercer Nivel","San Juan","San Juan","Si","Laboratorio","Buena","Buena","Buena","Buena","Buena","Buena","Buena","Buena"]
[2229759,"Encuesta General de Satisfacción HOSPITALES","HOSPITAL REGIONAL DR. ALEJANDRO CABRAL","miércoles, 20 de diciembre de 2023 6:16:41 p. m.","Tercer Nivel","San Juan","San Juan","Si","Imágenes","Buena","Buena","Buena","Buena","Buena","Buena","Buena","Muy Buena"]
[2229762,"Encuesta General de Satisfacción HOSPITALES","HOSPITAL REGIONAL DR. ALEJANDRO CABRAL","miércoles, 20 de diciembre de 2023 6:17:50 p. m.","Tercer Nivel","San Juan","San Juan","Si","Imágenes","Buena","Buena","Buena","Buena","Buena","Buena","Buena","Buena"]
[2229763,"Encuesta General de Satisfacción HOSPITALES","HOSPITAL REGIONAL DR. ALEJANDRO CABRAL","miércoles, 20 de diciembre de 2023 6:18:09 p. m.","Tercer Nivel","San Juan","San Juan","Si","Hospitalización","Buena","Buena","Buena","Buena","Buena","Buena","Buena","Buena"]
[2229766,"Encuesta General de Satisfacción HOSPITALES","HOSPITAL REGIONAL DR. ALEJANDRO CABRAL","miércoles, 20 de diciembre de 2023 6:18:32 p. m.","Tercer Nivel","San Juan","San Juan","Si","Emergencia","Buena","Buena","Buena","Buena","Buena","Buena","Buena","Buena"]
[2229769,"Encuesta General de Satisfacción HOSPITALES","HOSPITAL REGIONAL DR. ALEJANDRO CABRAL","miércoles, 20 de diciembre de 2023 6:18:50 p. m.","Tercer Nivel","San Juan","San Juan","Si","Emergencia","Buena","Buena","Buena","Buena","Buena","Buena","Buena","Buena"]
[2229773,"Encuesta General de Satisfacción HOSPITALES","HOSPITAL REGIONAL DR. ALEJANDRO CABRAL","miércoles, 20 de diciembre de 2023 6:19:08 p. m.","Tercer Nivel","San Juan","San Juan","Si","Emergencia","Buena","Buena","Buena","Buena","Buena","Buena","Buena","Buena"]
[2234338,"Encuesta General de Satisfacción HOSPITALES","HOSPITAL REGIONAL DR. ALEJANDRO CABRAL","domingo, 24 de diciembre de 2023 10:31:44 p. m.","Tercer Nivel","San Juan","San Juan","Si","Emergencia","Buena","Buena","Buena","Buena","Buena","Buena","Buena","Buena"]
[2234339,"Encuesta General de Satisfacción HOSPITALES","HOSPITAL REGIONAL DR. ALEJANDRO CABRAL","domingo, 24 de diciembre de 2023 10:32:19 p. m.","Tercer Nivel","San Juan","San Juan","Si","Emergencia","Buena","Muy Buena","Muy Buena","Muy Buena","Buena","Muy Buena","Buena","Muy Buena"]
[2234340,"Encuesta General de Satisfacción HOSPITALES","HOSPITAL REGIONAL DR. ALEJANDRO CABRAL","domingo, 24 de diciembre de 2023 10:33:03 p. m.","Tercer Nivel","San Juan","San Juan","Si","Emergencia","Buena","Buena","Buena","Buena","Regular","Muy Buena","Regular","Buena"]
[2234341,"Encuesta General de Satisfacción HOSPITALES","HOSPITAL REGIONAL DR. ALEJANDRO CABRAL","domingo, 24 de diciembre de 2023 10:33:49 p. m.","Tercer Nivel","San Juan","San Juan","Si","Emergencia","Buena","Buena","Regular","Buena","Buena","Buena","Regular","Buena"]
[2234342,"Encuesta General de Satisfacción HOSPITALES","HOSPITAL REGIONAL DR. ALEJANDRO CABRAL","domingo, 24 de diciembre de 2023 10:34:27 p. m.","Tercer Nivel","San Juan","San Juan","Si","Emergencia","Regular","Regular","Regular","Regular","Regular","Regular","Regular","Regular"]
[2234343,"Encuesta General de Satisfacción HOSPITALES","HOSPITAL REGIONAL DR. ALEJANDRO CABRAL","domingo, 24 de diciembre de 2023 10:34:56 p. m.","Tercer Nivel","San Juan","San Juan","Si","Hospitalización","Buena","Buena","Buena","Buena","Regular","Regular","Buena","Buena"]
[2234344,"Encuesta General de Satisfacción HOSPITALES","HOSPITAL REGIONAL DR. ALEJANDRO CABRAL","domingo, 24 de diciembre de 2023 10:35:53 p. m.","Tercer Nivel","San Juan","San Juan","Si","Hospitalización","Muy Buena","Muy Buena","Muy Buena","Buena","Buena","Buena","Buena","Buena"]
[2234345,"Encuesta General de Satisfacción HOSPITALES","HOSPITAL REGIONAL DR. ALEJANDRO CABRAL","domingo, 24 de diciembre de 2023 10:36:23 p. m.","Tercer Nivel","San Juan","San Juan","Si","Hospitalización","Buena","Muy Buena","Muy Buena","Muy Buena","Muy Buena","Muy Buena","Buena","Buena"]
[2234373,"Encuesta General de Satisfacción HOSPITALES","HOSPITAL REGIONAL DR. ALEJANDRO CABRAL","lunes, 25 de diciembre de 2023 10:24:48 p. m.","Tercer Nivel","San Juan","San Juan","Si","Emergencia","Buena","Buena","Buena","Buena","Buena","Buena","Regular","Buena"]
[2234374,"Encuesta General de Satisfacción HOSPITALES","HOSPITAL REGIONAL DR. ALEJANDRO CABRAL","lunes, 25 de diciembre de 2023 10:25:22 p. m.","Tercer Nivel","San Juan","San Juan","Si","Emergencia","Buena","Buena","Buena","Buena","Buena","Buena","Buena","Buena"]
[2234375,"Encuesta General de Satisfacción HOSPITALES","HOSPITAL REGIONAL DR. ALEJANDRO CABRAL","lunes, 25 de diciembre de 2023 10:26:10 p. m.","Tercer Nivel","San Juan","San Juan","Si","Emergencia","Buena","Muy Buena","Buena","Regular","Regular","Buena","Buena","Buena"]
[2234376,"Encuesta General de Satisfacción HOSPITALES","HOSPITAL REGIONAL DR. ALEJANDRO CABRAL","lunes, 25 de diciembre de 2023 10:26:27 p. m.","Tercer Nivel","San Juan","San Juan","Si","Hospitalización","Buena","Buena","Buena","Buena","Buena","Buena","Buena","Buena"]
[2234377,"Encuesta General de Satisfacción HOSPITALES","HOSPITAL REGIONAL DR. ALEJANDRO CABRAL","lunes, 25 de diciembre de 2023 10:27:00 p. m.","Tercer Nivel","San Juan","San Juan","Si","Hospitalización","Muy Buena","Muy Buena","Muy Buena","Muy Buena","Muy Buena","Muy Buena","Buena","Buena"]
[2237706,"Encuesta General de Satisfacción HOSPITALES","HOSPITAL REGIONAL DR. ALEJANDRO CABRAL","miércoles, 27 de diciembre de 2023 5:17:11 p. m.","Tercer Nivel","San Juan","San Juan","Si","Consulta Externa","Buena","Buena","Buena","Buena","Buena","Buena","Buena","Buena"]
[2237709,"Encuesta General de Satisfacción HOSPITALES","HOSPITAL REGIONAL DR. ALEJANDRO CABRAL","miércoles, 27 de diciembre de 2023 5:17:44 p. m.","Tercer Nivel","San Juan","San Juan","Si","Consulta Externa","Buena","Buena","Buena","Buena","Buena","Buena","Buena","Buena"]
[2237729,"Encuesta General de Satisfacción HOSPITALES","HOSPITAL REGIONAL DR. ALEJANDRO CABRAL","miércoles, 27 de diciembre de 2023 5:21:52 p. m.","Tercer Nivel","San Juan","San Juan","Si","Consulta Externa","Buena","Buena","Buena","Buena","Buena","Buena","Buena","Buena"]
[2237731,"Encuesta General de Satisfacción HOSPITALES","HOSPITAL REGIONAL DR. ALEJANDRO CABRAL","miércoles, 27 de diciembre de 2023 5:22:20 p. m.","Tercer Nivel","San Juan","San Juan","Si","Consulta Externa","Buena","Buena","Buena","Buena","Buena","Buena","Buena","Buena"]
[2237734,"Encuesta General de Satisfacción HOSPITALES","HOSPITAL REGIONAL DR. ALEJANDRO CABRAL","miércoles, 27 de diciembre de 2023 5:22:43 p. m.","Tercer Nivel","San Juan","San Juan","Si","Consulta Externa","Muy Buena","Buena","Buena","Buena","Buena","Buena","Buena","Buena"]
[2237737,"Encuesta General de Satisfacción HOSPITALES","HOSPITAL REGIONAL DR. ALEJANDRO CABRAL","miércoles, 27 de diciembre de 2023 5:23:12 p. m.","Tercer Nivel","San Juan","San Juan","Si","Consulta Externa","Buena","Buena","Buena","Buena","Buena","Buena","Buena","Buena"]
[2237740,"Encuesta General de Satisfacción HOSPITALES","HOSPITAL REGIONAL DR. ALEJANDRO CABRAL","miércoles, 27 de diciembre de 2023 5:23:32 p. m.","Tercer Nivel","San Juan","San Juan","Si","Consulta Externa","Buena","Buena","Buena","Buena","Buena","Buena","Buena","Buena"]
[2237742,"Encuesta General de Satisfacción HOSPITALES","HOSPITAL REGIONAL DR. ALEJANDRO CABRAL","miércoles, 27 de diciembre de 2023 5:23:48 p. m.","Tercer Nivel","San Juan","San Juan","Si","Consulta Externa","Buena","Buena","Regular","Buena","Buena","Buena","Buena","Buena"]
[2237745,"Encuesta General de Satisfacción HOSPITALES","HOSPITAL REGIONAL DR. ALEJANDRO CABRAL","miércoles, 27 de diciembre de 2023 5:24:06 p. m.","Tercer Nivel","San Juan","San Juan","Si","Laboratorio","Buena","Buena","Buena","Buena","Buena","Buena","Buena","Buena"]
[2237747,"Encuesta General de Satisfacción HOSPITALES","HOSPITAL REGIONAL DR. ALEJANDRO CABRAL","miércoles, 27 de diciembre de 2023 5:24:28 p. m.","Tercer Nivel","San Juan","San Juan","Si","Laboratorio","Buena","Buena","Buena","Buena","Buena","Buena","Buena","Buena"]
[2237749,"Encuesta General de Satisfacción HOSPITALES","HOSPITAL REGIONAL DR. ALEJANDRO CABRAL","miércoles, 27 de diciembre de 2023 5:24:51 p. m.","Tercer Nivel","San Juan","San Juan","Si","Laboratorio","Buena","Buena","Buena","Buena","Buena","Buena","Buena","Buena"]
[2237751,"Encuesta General de Satisfacción HOSPITALES","HOSPITAL REGIONAL DR. ALEJANDRO CABRAL","miércoles, 27 de diciembre de 2023 5:25:07 p. m.","Tercer Nivel","San Juan","San Juan","Si","Laboratorio","Muy Buena","Buena","Buena","Buena","Buena","Buena","Buena","Buena"]
[2237752,"Encuesta General de Satisfacción HOSPITALES","HOSPITAL REGIONAL DR. ALEJANDRO CABRAL","miércoles, 27 de diciembre de 2023 5:25:25 p. m.","Tercer Nivel","San Juan","San Juan","Si","Laboratorio","Muy Buena","Buena","Buena","Buena","Muy Buena","Buena","Buena","Buena"]
[2237755,"Encuesta General de Satisfacción HOSPITALES","HOSPITAL REGIONAL DR. ALEJANDRO CABRAL","miércoles, 27 de diciembre de 2023 5:25:45 p. m.","Tercer Nivel","San Juan","San Juan","Si","Laboratorio","Buena","Buena","Buena","Buena","Buena","Buena","Buena","Buena"]
[2237756,"Encuesta General de Satisfacción HOSPITALES","HOSPITAL REGIONAL DR. ALEJANDRO CABRAL","miércoles, 27 de diciembre de 2023 5:26:04 p. m.","Tercer Nivel","San Juan","San Juan","Si","Imágenes","Buena","Buena","Buena","Buena","Buena","Buena","Buena","Buena"]
[2237757,"Encuesta General de Satisfacción HOSPITALES","HOSPITAL REGIONAL DR. ALEJANDRO CABRAL","miércoles, 27 de diciembre de 2023 5:26:17 p. m.","Tercer Nivel","San Juan","San Juan","Si","Imágenes","Buena","Buena","Buena","Buena","Buena","Buena","Buena","Buena"]
[2237758,"Encuesta General de Satisfacción HOSPITALES","HOSPITAL REGIONAL DR. ALEJANDRO CABRAL","miércoles, 27 de diciembre de 2023 5:26:33 p. m.","Tercer Nivel","San Juan","San Juan","Si","Hospitalización","Buena","Buena","Buena","Buena","Buena","Buena","Buena","Buena"]
[2237759,"Encuesta General de Satisfacción HOSPITALES","HOSPITAL REGIONAL DR. ALEJANDRO CABRAL","miércoles, 27 de diciembre de 2023 5:26:50 p. m.","Tercer Nivel","San Juan","San Juan","Si","Hospitalización","Buena","Buena","Buena","Buena","Buena","Buena","Buena","Buena"]
[2237760,"Encuesta General de Satisfacción HOSPITALES","HOSPITAL REGIONAL DR. ALEJANDRO CABRAL","miércoles, 27 de diciembre de 2023 5:27:07 p. m.","Tercer Nivel","San Juan","San Juan","Si","Emergencia","Buena","Buena","Regular","Buena","Buena","Buena","Buena","Buena"]
[2237761,"Encuesta General de Satisfacción HOSPITALES","HOSPITAL REGIONAL DR. ALEJANDRO CABRAL","miércoles, 27 de diciembre de 2023 5:27:22 p. m.","Tercer Nivel","San Juan","San Juan","Si","Emergencia","Regular","Buena","Buena","Buena","Buena","Buena","Buena","Buena"]
[2237762,"Encuesta General de Satisfacción HOSPITALES","HOSPITAL REGIONAL DR. ALEJANDRO CABRAL","miércoles, 27 de diciembre de 2023 5:27:40 p. m.","Tercer Nivel","San Juan","San Juan","Si","Emergencia","Buena","Buena","Buena","Buena","Buena","Buena","Buena","Buena"]
[2239536,"Encuesta General de Satisfacción HOSPITALES","HOSPITAL REGIONAL DR. ALEJANDRO CABRAL","jueves, 28 de diciembre de 2023 4:24:26 p. m.","Tercer Nivel","San Juan","San Juan","Si","Consulta Externa","Buena","Buena","Buena","Buena","Buena","Buena","Buena","Buena"]
[2239538,"Encuesta General de Satisfacción HOSPITALES","HOSPITAL REGIONAL DR. ALEJANDRO CABRAL","jueves, 28 de diciembre de 2023 4:24:49 p. m.","Tercer Nivel","San Juan","San Juan","Si","Consulta Externa","Buena","Buena","Buena","Buena","Buena","Buena","Buena","Buena"]
[2239540,"Encuesta General de Satisfacción HOSPITALES","HOSPITAL REGIONAL DR. ALEJANDRO CABRAL","jueves, 28 de diciembre de 2023 4:25:17 p. m.","Tercer Nivel","San Juan","San Juan","Si","Consulta Externa","Buena","Buena","Buena","Buena","Buena","Buena","Buena","Buena"]
[2239543,"Encuesta General de Satisfacción HOSPITALES","HOSPITAL REGIONAL DR. ALEJANDRO CABRAL","jueves, 28 de diciembre de 2023 4:26:12 p. m.","Tercer Nivel","San Juan","San Juan","Si","Consulta Externa","Buena","Buena","Buena","Buena","Buena","Buena","Buena","Muy Buena"]
[2239545,"Encuesta General de Satisfacción HOSPITALES","HOSPITAL REGIONAL DR. ALEJANDRO CABRAL","jueves, 28 de diciembre de 2023 4:26:26 p. m.","Tercer Nivel","San Juan","San Juan","Si","Consulta Externa","Buena","Buena","Buena","Buena","Buena","Buena","Buena","Buena"]
[2239546,"Encuesta General de Satisfacción HOSPITALES","HOSPITAL REGIONAL DR. ALEJANDRO CABRAL","jueves, 28 de diciembre de 2023 4:26:41 p. m.","Tercer Nivel","San Juan","San Juan","Si","Consulta Externa","Buena","Muy Buena","Buena","Buena","Buena","Buena","Buena","Buena"]
[2239547,"Encuesta General de Satisfacción HOSPITALES","HOSPITAL REGIONAL DR. ALEJANDRO CABRAL","jueves, 28 de diciembre de 2023 4:26:54 p. m.","Tercer Nivel","San Juan","San Juan","Si","Laboratorio","Buena","Buena","Buena","Buena","Buena","Buena","Buena","Buena"]
[2239551,"Encuesta General de Satisfacción HOSPITALES","HOSPITAL REGIONAL DR. ALEJANDRO CABRAL","jueves, 28 de diciembre de 2023 4:27:18 p. m.","Tercer Nivel","San Juan","San Juan","Si","Laboratorio","Buena","Buena","Buena","Buena","Buena","Buena","Buena","Buena"]
[2239552,"Encuesta General de Satisfacción HOSPITALES","HOSPITAL REGIONAL DR. ALEJANDRO CABRAL","jueves, 28 de diciembre de 2023 4:28:04 p. m.","Tercer Nivel","San Juan","San Juan","Si","Laboratorio","Buena","Buena","Buena","Buena","Buena","Buena","Buena","Buena"]
[2239556,"Encuesta General de Satisfacción HOSPITALES","HOSPITAL REGIONAL DR. ALEJANDRO CABRAL","jueves, 28 de diciembre de 2023 4:28:55 p. m.","Tercer Nivel","San Juan","San Juan","Si","Laboratorio","Buena","Buena","Buena","Buena","Buena","Muy Buena","Buena","Buena"]
[2239557,"Encuesta General de Satisfacción HOSPITALES","HOSPITAL REGIONAL DR. ALEJANDRO CABRAL","jueves, 28 de diciembre de 2023 4:29:35 p. m.","Tercer Nivel","San Juan","San Juan","Si","Laboratorio","Buena","Buena","Buena","Buena","Buena","Buena","Buena","Buena"]
[2239563,"Encuesta General de Satisfacción HOSPITALES","HOSPITAL REGIONAL DR. ALEJANDRO CABRAL","jueves, 28 de diciembre de 2023 4:31:16 p. m.","Tercer Nivel","San Juan","San Juan","Si","Laboratorio","Buena","Buena","Buena","Buena","Buena","Buena","Buena","Buena"]
[2239565,"Encuesta General de Satisfacción HOSPITALES","HOSPITAL REGIONAL DR. ALEJANDRO CABRAL","jueves, 28 de diciembre de 2023 4:31:34 p. m.","Tercer Nivel","San Juan","San Juan","Si","Imágenes","Buena","Buena","Buena","Buena","Buena","Buena","Buena","Buena"]
[2239567,"Encuesta General de Satisfacción HOSPITALES","HOSPITAL REGIONAL DR. ALEJANDRO CABRAL","jueves, 28 de diciembre de 2023 4:31:51 p. m.","Tercer Nivel","San Juan","San Juan","Si","Imágenes","Buena","Buena","Buena","Buena","Buena","Buena","Buena","Buena"]
[2239572,"Encuesta General de Satisfacción HOSPITALES","HOSPITAL REGIONAL DR. ALEJANDRO CABRAL","jueves, 28 de diciembre de 2023 4:32:52 p. m.","Tercer Nivel","San Juan","San Juan","Si","Hospitalización","Buena","Buena","Buena","Buena","Buena","Buena","Buena","Buena"]
[2239573,"Encuesta General de Satisfacción HOSPITALES","HOSPITAL REGIONAL DR. ALEJANDRO CABRAL","jueves, 28 de diciembre de 2023 4:33:07 p. m.","Tercer Nivel","San Juan","San Juan","Si","Hospitalización","Buena","Buena","Buena","Buena","Buena","Buena","Buena","Buena"]
[2239574,"Encuesta General de Satisfacción HOSPITALES","HOSPITAL REGIONAL DR. ALEJANDRO CABRAL","jueves, 28 de diciembre de 2023 4:33:21 p. m.","Tercer Nivel","San Juan","San Juan","Si","Emergencia","Buena","Buena","Buena","Buena","Buena","Buena","Buena","Buena"]
[2239575,"Encuesta General de Satisfacción HOSPITALES","HOSPITAL REGIONAL DR. ALEJANDRO CABRAL","jueves, 28 de diciembre de 2023 4:33:47 p. m.","Tercer Nivel","San Juan","San Juan","Si","Emergencia","Buena","Buena","Buena","Buena","Buena","Buena","Buena","Buena"]
[2239576,"Encuesta General de Satisfacción HOSPITALES","HOSPITAL REGIONAL DR. ALEJANDRO CABRAL","jueves, 28 de diciembre de 2023 4:34:01 p. m.","Tercer Nivel","San Juan","San Juan","Si","Emergencia","Buena","Buena","Buena","Buena","Buena","Buena","Buena","Buena"]
[2240637,"Encuesta General de Satisfacción HOSPITALES","HOSPITAL REGIONAL DR. ALEJANDRO CABRAL","viernes, 29 de diciembre de 2023 1:24:40 p. m.","Tercer Nivel","San Juan","San Juan","Si","Consulta Externa","Buena","Buena","Buena","Buena","Buena","Buena","Buena","Buena"]
[2240639,"Encuesta General de Satisfacción HOSPITALES","HOSPITAL REGIONAL DR. ALEJANDRO CABRAL","viernes, 29 de diciembre de 2023 1:24:59 p. m.","Tercer Nivel","San Juan","San Juan","Si","Consulta Externa","Buena","Buena","Buena","Buena","Buena","Buena","Buena","Buena"]
[2240642,"Encuesta General de Satisfacción HOSPITALES","HOSPITAL REGIONAL DR. ALEJANDRO CABRAL","viernes, 29 de diciembre de 2023 1:25:25 p. m.","Tercer Nivel","San Juan","San Juan","Si","Consulta Externa","Buena","Buena","Buena","Buena","Buena","Buena","Buena","Buena"]
[2240645,"Encuesta General de Satisfacción HOSPITALES","HOSPITAL REGIONAL DR. ALEJANDRO CABRAL","viernes, 29 de diciembre de 2023 1:25:45 p. m.","Tercer Nivel","San Juan","San Juan","Si","Consulta Externa","Buena","Buena","Muy Buena","Buena","Buena","Buena","Buena","Buena"]
[2240646,"Encuesta General de Satisfacción HOSPITALES","HOSPITAL REGIONAL DR. ALEJANDRO CABRAL","viernes, 29 de diciembre de 2023 1:26:02 p. m.","Tercer Nivel","San Juan","San Juan","Si","Consulta Externa","Buena","Buena","Buena","Buena","Buena","Buena","Buena","Buena"]
[2240649,"Encuesta General de Satisfacción HOSPITALES","HOSPITAL REGIONAL DR. ALEJANDRO CABRAL","viernes, 29 de diciembre de 2023 1:26:24 p. m.","Tercer Nivel","San Juan","San Juan","Si","Consulta Externa","Buena","Buena","Buena","Buena","Buena","Buena","Buena","Buena"]
[2240651,"Encuesta General de Satisfacción HOSPITALES","HOSPITAL REGIONAL DR. ALEJANDRO CABRAL","viernes, 29 de diciembre de 2023 1:26:51 p. m.","Tercer Nivel","San Juan","San Juan","Si","Consulta Externa","Buena","Buena","Buena","Buena","Buena","Buena","Regular","Buena"]
[2240653,"Encuesta General de Satisfacción HOSPITALES","HOSPITAL REGIONAL DR. ALEJANDRO CABRAL","viernes, 29 de diciembre de 2023 1:27:07 p. m.","Tercer Nivel","San Juan","San Juan","Si","Laboratorio","Buena","Buena","Buena","Buena","Buena","Buena","Buena","Buena"]
[2240655,"Encuesta General de Satisfacción HOSPITALES","HOSPITAL REGIONAL DR. ALEJANDRO CABRAL","viernes, 29 de diciembre de 2023 1:27:26 p. m.","Tercer Nivel","San Juan","San Juan","Si","Laboratorio","Buena","Buena","Buena","Buena","Buena","Buena","Buena","Buena"]
[2240657,"Encuesta General de Satisfacción HOSPITALES","HOSPITAL REGIONAL DR. ALEJANDRO CABRAL","viernes, 29 de diciembre de 2023 1:28:53 p. m.","Tercer Nivel","San Juan","San Juan","Si","Laboratorio","Buena","Buena","Buena","Buena","Buena","Buena","Buena","Buena"]
[2240658,"Encuesta General de Satisfacción HOSPITALES","HOSPITAL REGIONAL DR. ALEJANDRO CABRAL","viernes, 29 de diciembre de 2023 1:29:07 p. m.","Tercer Nivel","San Juan","San Juan","Si","Laboratorio","Buena","Buena","Buena","Buena","Buena","Buena","Buena","Buena"]
[2240661,"Encuesta General de Satisfacción HOSPITALES","HOSPITAL REGIONAL DR. ALEJANDRO CABRAL","viernes, 29 de diciembre de 2023 1:29:22 p. m.","Tercer Nivel","San Juan","San Juan","Si","Laboratorio","Buena","Buena","Buena","Buena","Buena","Buena","Buena","Muy Buena"]
[2240663,"Encuesta General de Satisfacción HOSPITALES","HOSPITAL REGIONAL DR. ALEJANDRO CABRAL","viernes, 29 de diciembre de 2023 1:29:38 p. m.","Tercer Nivel","San Juan","San Juan","Si","Laboratorio","Buena","Buena","Buena","Buena","Buena","Buena","Buena","Buena"]
[2240664,"Encuesta General de Satisfacción HOSPITALES","HOSPITAL REGIONAL DR. ALEJANDRO CABRAL","viernes, 29 de diciembre de 2023 1:29:53 p. m.","Tercer Nivel","San Juan","San Juan","Si","Laboratorio","Buena","Buena","Buena","Buena","Buena","Buena","Buena","Buena"]
[2240665,"Encuesta General de Satisfacción HOSPITALES","HOSPITAL REGIONAL DR. ALEJANDRO CABRAL","viernes, 29 de diciembre de 2023 1:30:10 p. m.","Tercer Nivel","San Juan","San Juan","Si","Imágenes","Buena","Buena","Buena","Buena","Buena","Buena","Buena","Buena"]
[2240666,"Encuesta General de Satisfacción HOSPITALES","HOSPITAL REGIONAL DR. ALEJANDRO CABRAL","viernes, 29 de diciembre de 2023 1:30:24 p. m.","Tercer Nivel","San Juan","San Juan","Si","Imágenes","Buena","Buena","Buena","Buena","Buena","Buena","Buena","Buena"]
[2240667,"Encuesta General de Satisfacción HOSPITALES","HOSPITAL REGIONAL DR. ALEJANDRO CABRAL","viernes, 29 de diciembre de 2023 1:30:41 p. m.","Tercer Nivel","San Juan","San Juan","Si","Hospitalización","Buena","Buena","Buena","Buena","Muy Buena","Buena","Buena","Buena"]
[2240669,"Encuesta General de Satisfacción HOSPITALES","HOSPITAL REGIONAL DR. ALEJANDRO CABRAL","viernes, 29 de diciembre de 2023 1:31:01 p. m.","Tercer Nivel","San Juan","San Juan","Si","Hospitalización","Buena","Buena","Buena","Buena","Buena","Buena","Buena","Buena"]
[2240673,"Encuesta General de Satisfacción HOSPITALES","HOSPITAL REGIONAL DR. ALEJANDRO CABRAL","viernes, 29 de diciembre de 2023 1:31:15 p. m.","Tercer Nivel","San Juan","San Juan","Si","Emergencia","Buena","Buena","Buena","Buena","Buena","Buena","Buena","Buena"]
[2240674,"Encuesta General de Satisfacción HOSPITALES","HOSPITAL REGIONAL DR. ALEJANDRO CABRAL","viernes, 29 de diciembre de 2023 1:31:32 p. m.","Tercer Nivel","San Juan","San Juan","Si","Emergencia","Buena","Buena","Buena","Buena","Buena","Buena","Buena","Buena"]
[2241786,"Encuesta General de Satisfacción HOSPITALES","HOSPITAL REGIONAL DR. ALEJANDRO CABRAL","sábado, 30 de diciembre de 2023 10:28:11 p. m.","Tercer Nivel","San Juan","San Juan","Si","Emergencia","Buena","Buena","Buena","Muy Buena","Buena","Buena","Buena","Buena"]
[2241787,"Encuesta General de Satisfacción HOSPITALES","HOSPITAL REGIONAL DR. ALEJANDRO CABRAL","sábado, 30 de diciembre de 2023 10:28:35 p. m.","Tercer Nivel","San Juan","San Juan","Si","Emergencia","Buena","Buena","Muy Buena","Muy Buena","Buena","Buena","Regular","Buena"]
[2241788,"Encuesta General de Satisfacción HOSPITALES","HOSPITAL REGIONAL DR. ALEJANDRO CABRAL","sábado, 30 de diciembre de 2023 10:29:20 p. m.","Tercer Nivel","San Juan","San Juan","Si","Emergencia","Regular","Buena","Buena","Buena","Regular","Buena","Buena","Buena"]
[2241789,"Encuesta General de Satisfacción HOSPITALES","HOSPITAL REGIONAL DR. ALEJANDRO CABRAL","sábado, 30 de diciembre de 2023 10:29:44 p. m.","Tercer Nivel","San Juan","San Juan","Si","Hospitalización","Buena","Muy Buena","Buena","Muy Buena","Buena","Muy Buena","Buena","Buena"]
[2241790,"Encuesta General de Satisfacción HOSPITALES","HOSPITAL REGIONAL DR. ALEJANDRO CABRAL","sábado, 30 de diciembre de 2023 10:30:11 p. m.","Tercer Nivel","San Juan","San Juan","Si","Hospitalización","Buena","Buena","Buena","Regular","Buena","Regular","Regular","Buena"]
[2241898,"Encuesta General de Satisfacción HOSPITALES","HOSPITAL REGIONAL DR. ALEJANDRO CABRAL","domingo, 31 de diciembre de 2023 10:32:30 p. m.","Tercer Nivel","San Juan","San Juan","Si","Emergencia","Muy Buena","Muy Buena","Muy Buena","Buena","Buena","Buena","Buena","Buena"]
[2241899,"Encuesta General de Satisfacción HOSPITALES","HOSPITAL REGIONAL DR. ALEJANDRO CABRAL","domingo, 31 de diciembre de 2023 10:32:52 p. m.","Tercer Nivel","San Juan","San Juan","Si","Emergencia","Regular","Regular","Regular","Regular","Regular","Regular","Regular","Regular"]
[2241900,"Encuesta General de Satisfacción HOSPITALES","HOSPITAL REGIONAL DR. ALEJANDRO CABRAL","domingo, 31 de diciembre de 2023 10:33:27 p. m.","Tercer Nivel","San Juan","San Juan","Si","Emergencia","Buena","Buena","Buena","Regular","Regular","Regular","Regular","Buena"]
[2241901,"Encuesta General de Satisfacción HOSPITALES","HOSPITAL REGIONAL DR. ALEJANDRO CABRAL","domingo, 31 de diciembre de 2023 10:34:08 p. m.","Tercer Nivel","San Juan","San Juan","Si","Hospitalización","Buena","Buena","Regular","Buena","Regular","Buena","Regular","Regular"]
[2241902,"Encuesta General de Satisfacción HOSPITALES","HOSPITAL REGIONAL DR. ALEJANDRO CABRAL","domingo, 31 de diciembre de 2023 10:34:48 p. m.","Tercer Nivel","San Juan","San Juan","Si","Hospitalización","Regular","Regular","Regular","Regular","Regular","Regular","Regular","Regular"]